BODY NAME,,SERVICE AREA,EXPENSES TYPE,EXPENSE CODE,DATE,TRANSACTION NO.,AMOUNT, SUPPLIER NAME,SUPPLIER ID
EFDC,PH100,PRIVATE SECTOR HOUSING,GRANTS GENERAL,3720,02-Jan-18,27536,2270,STANNAH LIFT SERVICES LTD,STA002
EFDC,PH100,PRIVATE SECTOR HOUSING,GRANTS GENERAL,3720,09-Jan-18,27582,6435,ACCESSIBLE SOLUTIONS LTD,3571P
EFDC,BAL01,EFDC BALANCE SHEET,HOME ASST GRANT CHARGE ON PROP,Z055,09-Jan-18,27586,5500,PRESTIGE DEVELOPMENTS,1442P
EFDC,BAL01,EFDC BALANCE SHEET,MISC DEDUCTIONS,Z611,16-Jan-18,27650,1825,PRUDENTIAL,PRU001
EFDC,BAL01,EFDC BALANCE SHEET,DEPOSITS - PAID,Z223,16-Jan-18,27656,1250,KINGS LETTINGS CLIENT ACCOUNT,1996P
EFDC,BAL01,EFDC BALANCE SHEET,SUNDRY DEBTORS (OTHER),Z208,16-Jan-18,27656,1250,KINGS LETTINGS CLIENT ACCOUNT,1996P
EFDC,BAL01,EFDC BALANCE SHEET,SALARIES - UNIONS,Z605,16-Jan-18,27668,1517.8,UNISON,UNI001
EFDC,32140,OTHER SUPPORT SERVICES (HR),COMMISSION,9320,16-Jan-18,27668,-37.95,UNISON,UNI001
EFDC,PH100,PRIVATE SECTOR HOUSING,GRANTS GENERAL,3720,23-Jan-18,27723,8060,AMOROSI & BROS,AMO001
EFDC,PH100,PRIVATE SECTOR HOUSING,GRANTS GENERAL,3720,23-Jan-18,27744,2270,STANNAH LIFT SERVICES LTD,STA002
EFDC,PH100,PRIVATE SECTOR HOUSING,GRANTS GENERAL,3720,30-Jan-18,27787,6185,ACCESSIBLE SOLUTIONS LIMITED,ACC002
EFDC,PH100,PRIVATE SECTOR HOUSING,GRANTS GENERAL,3720,30-Jan-18,27789,14640,AMOROSI & BROS,AMO001
EFDC,PH100,PRIVATE SECTOR HOUSING,GRANTS GENERAL,3720,30-Jan-18,27791,8060,AMOROSI & BROS,AMO001
EFDC,BAL01,EFDC BALANCE SHEET,HOME ASST GRANT CHARGE ON PROP,Z055,30-Jan-18,27794,860,S J BLACKBOURN,BLA001
EFDC,RS400,"COMMUNITY, HEALTH & WELLBEING",ACTIVITIES,3372,30-Jan-18,27813,1250,THE RED BALLOON FAMILY FOUNDATION,3537P
EFDC,RS400,"COMMUNITY, HEALTH & WELLBEING",ACTIVITIES,3372,30-Jan-18,27815,3800,THE RED BALLOON FAMILY FOUNDATION,3537P
EFDC,RS400,"COMMUNITY, HEALTH & WELLBEING",ACTIVITIES,3372,30-Jan-18,27816,3750,THE RED BALLOON FAMILY FOUNDATION,3537P
EFDC,BAL01,EFDC BALANCE SHEET,SUNDRY DEBTORS (OTHER),Z208,30-Jan-18,27828,950,MONTAGUES LETTING AGENTS,2356P
EFDC,BAL01,EFDC BALANCE SHEET,HOME ASST GRANT CHARGE ON PROP,Z055,06-Feb-18,27880,3043.54,GRACELANDS COMPLETE MAINTENANCE SERVICES LTD,GRA015
EFDC,BAL01,EFDC BALANCE SHEET,HOME ASST GRANT CHARGE ON PROP,Z055,06-Feb-18,27882,1075,HAINAULT HOME IMPROVEMENTS LTD,HAI002
EFDC,GD100,VOLUNTARY SECTOR SUPPORT,GRANTS TO VOLUNTARY ORGS,3710,13-Feb-18,27954,2520,EPPING FOREST COMMUNITY TRANSPORT,2107P
EFDC,BAL01,EFDC BALANCE SHEET,MISC DEDUCTIONS,Z611,13-Feb-18,27966,1825,PRUDENTIAL,PRU001
EFDC,BAL01,EFDC BALANCE SHEET,SALARIES - UNIONS,Z605,13-Feb-18,27970,1517.8,UNISON,UNI001
EFDC,32140,OTHER SUPPORT SERVICES (HR),COMMISSION,9320,13-Feb-18,27970,-37.95,UNISON,UNI001
EFDC,PH100,PRIVATE SECTOR HOUSING,GRANTS GENERAL,3720,13-Feb-18,27972,7120,ARKLEY LIMITED,ARK002
EFDC,PH100,PRIVATE SECTOR HOUSING,GRANTS GENERAL,3720,13-Feb-18,27993,998.4,TOWNSEND BOWEN LIMITED,5731P
EFDC,33080,OTHER ACTIVITIES,OTHER TRAVEL EXPENSES,2850,20-Feb-18,28071,18,EPPING FOREST DISTRICT COUNCIL,EPP002
EFDC,33080,OTHER ACTIVITIES,OTHER TRAVEL EXPENSES,2850,20-Feb-18,28071,2.96,EPPING FOREST DISTRICT COUNCIL,EPP002
EFDC,33080,OTHER ACTIVITIES,OTHER TRAVEL EXPENSES,2850,20-Feb-18,28071,12.3,EPPING FOREST DISTRICT COUNCIL,EPP002
EFDC,33080,OTHER ACTIVITIES,OTHER TRAVEL EXPENSES,2850,20-Feb-18,28071,5.42,EPPING FOREST DISTRICT COUNCIL,EPP002
EFDC,33080,OTHER ACTIVITIES,OTHER TRAVEL EXPENSES,2850,20-Feb-18,28071,2.67,EPPING FOREST DISTRICT COUNCIL,EPP002
EFDC,41100,OTHER ACTIVITIES,OTHER TRAVEL EXPENSES,2850,20-Feb-18,28071,5.92,EPPING FOREST DISTRICT COUNCIL,EPP002
EFDC,33080,OTHER ACTIVITIES,OTHER TRAVEL EXPENSES,2850,20-Feb-18,28071,8.2,EPPING FOREST DISTRICT COUNCIL,EPP002
EFDC,33080,OTHER ACTIVITIES,OTHER TRAVEL EXPENSES,2850,20-Feb-18,28071,18,EPPING FOREST DISTRICT COUNCIL,EPP002
EFDC,41100,OTHER ACTIVITIES,OTHER TRAVEL EXPENSES,2850,20-Feb-18,28071,12.4,EPPING FOREST DISTRICT COUNCIL,EPP002
EFDC,33075,OTHER ACTIVITIES,OTHER TRAVEL EXPENSES,2850,20-Feb-18,28071,8,EPPING FOREST DISTRICT COUNCIL,EPP002
EFDC,44100,FINANCE SUPPORT SERVICES,OTHER TRAVEL EXPENSES,2850,20-Feb-18,28071,4.58,EPPING FOREST DISTRICT COUNCIL,EPP002
EFDC,33075,OTHER ACTIVITIES,OTHER TRAVEL EXPENSES,2850,20-Feb-18,28071,20.6,EPPING FOREST DISTRICT COUNCIL,EPP002
EFDC,33070,OTHER ACTIVITIES,OTHER TRAVEL EXPENSES,2850,20-Feb-18,28071,19.5,EPPING FOREST DISTRICT COUNCIL,EPP002
EFDC,33070,OTHER ACTIVITIES,OTHER TRAVEL EXPENSES,2850,20-Feb-18,28071,21.9,EPPING FOREST DISTRICT COUNCIL,EPP002
EFDC,33055,OTHER ACTIVITIES,OTHER TRAVEL EXPENSES,2850,20-Feb-18,28071,7.8,EPPING FOREST DISTRICT COUNCIL,EPP002
EFDC,33080,OTHER ACTIVITIES,OTHER TRAVEL EXPENSES,2850,20-Feb-18,28071,15,EPPING FOREST DISTRICT COUNCIL,EPP002
EFDC,42110,GOVERNANCE SUPPORT SERVICES,OTHER TRAVEL EXPENSES,2850,20-Feb-18,28071,4.8,EPPING FOREST DISTRICT COUNCIL,EPP002
EFDC,37600,PLANNING OTHER,OTHER TRAVEL EXPENSES,2850,20-Feb-18,28071,14.35,EPPING FOREST DISTRICT COUNCIL,EPP002
EFDC,36200,OTHER ACTIVITIES,TRAINING EXPENSES,0310,20-Feb-18,28071,22.6,EPPING FOREST DISTRICT COUNCIL,EPP002
EFDC,36200,OTHER ACTIVITIES,TRAINING EXPENSES,0310,20-Feb-18,28071,15.4,EPPING FOREST DISTRICT COUNCIL,EPP002
EFDC,36200,OTHER ACTIVITIES,TRAINING EXPENSES,0310,20-Feb-18,28071,20.2,EPPING FOREST DISTRICT COUNCIL,EPP002
EFDC,36200,OTHER ACTIVITIES,TRAINING EXPENSES,0310,20-Feb-18,28071,20.2,EPPING FOREST DISTRICT COUNCIL,EPP002
EFDC,36200,OTHER ACTIVITIES,TRAINING EXPENSES,0310,20-Feb-18,28071,12.7,EPPING FOREST DISTRICT COUNCIL,EPP002
EFDC,44100,FINANCE SUPPORT SERVICES,OTHER TRAVEL EXPENSES,2850,20-Feb-18,28071,27.6,EPPING FOREST DISTRICT COUNCIL,EPP002
EFDC,42110,GOVERNANCE SUPPORT SERVICES,OTHER TRAVEL EXPENSES,2850,20-Feb-18,28071,5.8,EPPING FOREST DISTRICT COUNCIL,EPP002
EFDC,41100,OTHER ACTIVITIES,OTHER TRAVEL EXPENSES,2850,20-Feb-18,28071,23.1,EPPING FOREST DISTRICT COUNCIL,EPP002
EFDC,33010,OTHER ACTIVITIES,OTHER TRAVEL EXPENSES,2850,20-Feb-18,28071,21,EPPING FOREST DISTRICT COUNCIL,EPP002
EFDC,44100,FINANCE SUPPORT SERVICES,OTHER TRAVEL EXPENSES,2850,20-Feb-18,28071,6.25,EPPING FOREST DISTRICT COUNCIL,EPP002
EFDC,36200,OTHER ACTIVITIES,TRAINING EXPENSES,0310,20-Feb-18,28071,22.6,EPPING FOREST DISTRICT COUNCIL,EPP002
EFDC,44100,FINANCE SUPPORT SERVICES,OTHER TRAVEL EXPENSES,2850,20-Feb-18,28071,4.5,EPPING FOREST DISTRICT COUNCIL,EPP002
EFDC,41100,OTHER ACTIVITIES,OTHER TRAVEL EXPENSES,2850,20-Feb-18,28071,4.67,EPPING FOREST DISTRICT COUNCIL,EPP002
EFDC,41100,OTHER ACTIVITIES,OTHER TRAVEL EXPENSES,2850,20-Feb-18,28071,21.1,EPPING FOREST DISTRICT COUNCIL,EPP002
EFDC,42110,GOVERNANCE SUPPORT SERVICES,OTHER TRAVEL EXPENSES,2850,20-Feb-18,28071,5.5,EPPING FOREST DISTRICT COUNCIL,EPP002
EFDC,37600,PLANNING OTHER,OTHER TRAVEL EXPENSES,2850,20-Feb-18,28071,17.5,EPPING FOREST DISTRICT COUNCIL,EPP002
EFDC,33080,OTHER ACTIVITIES,MATERIALS,3080,20-Feb-18,28071,8.33,EPPING FOREST DISTRICT COUNCIL,EPP002
EFDC,PP111,FORWARD PLANNING & ECONOMIC,PROFESSIONAL FEES,3420,20-Feb-18,28071,17.5,EPPING FOREST DISTRICT COUNCIL,EPP002
EFDC,PP111,FORWARD PLANNING & ECONOMIC,PROFESSIONAL FEES,3420,20-Feb-18,28071,14.35,EPPING FOREST DISTRICT COUNCIL,EPP002
EFDC,PP111,FORWARD PLANNING & ECONOMIC,PROFESSIONAL FEES,3420,20-Feb-18,28071,14.35,EPPING FOREST DISTRICT COUNCIL,EPP002
EFDC,PP111,FORWARD PLANNING & ECONOMIC,PROFESSIONAL FEES,3420,20-Feb-18,28071,13.35,EPPING FOREST DISTRICT COUNCIL,EPP002
EFDC,32060,OTHER SUPPORT SERVICES (HR),BOOKS & PUBLICATIONS,3350,20-Feb-18,28071,8.55,EPPING FOREST DISTRICT COUNCIL,EPP002
EFDC,42520,GOVERNANCE SUPPORT SERVICES,STATIONERY,3320,20-Feb-18,28071,2,EPPING FOREST DISTRICT COUNCIL,EPP002
EFDC,EH143,OTHER ACTIVITIES,PROFESSIONAL FEES,3420,20-Feb-18,28071,6.33,EPPING FOREST DISTRICT COUNCIL,EPP002
EFDC,42520,GOVERNANCE SUPPORT SERVICES,STATIONERY,3320,20-Feb-18,28071,13.58,EPPING FOREST DISTRICT COUNCIL,EPP002
EFDC,EH143,OTHER ACTIVITIES,PROFESSIONAL FEES,3420,20-Feb-18,28071,15.55,EPPING FOREST DISTRICT COUNCIL,EPP002
EFDC,DR140,MEMBER ACTIVITIES,MATERIALS,3080,20-Feb-18,28071,22.5,EPPING FOREST DISTRICT COUNCIL,EPP002
EFDC,33010,OTHER ACTIVITIES,OTHER TRAVEL EXPENSES,2850,20-Feb-18,28071,17.7,EPPING FOREST DISTRICT COUNCIL,EPP002
EFDC,27050,ACCOMMODATION,MATERIALS,3080,20-Feb-18,28071,10.83,EPPING FOREST DISTRICT COUNCIL,EPP002
EFDC,27050,ACCOMMODATION,MATERIALS,3080,20-Feb-18,28071,10.83,EPPING FOREST DISTRICT COUNCIL,EPP002
EFDC,33080,OTHER ACTIVITIES,MATERIALS,3080,20-Feb-18,28071,13.32,EPPING FOREST DISTRICT COUNCIL,EPP002
EFDC,33080,OTHER ACTIVITIES,MATERIALS,3080,20-Feb-18,28071,16.65,EPPING FOREST DISTRICT COUNCIL,EPP002
EFDC,33080,OTHER ACTIVITIES,MATERIALS,3080,20-Feb-18,28071,10,EPPING FOREST DISTRICT COUNCIL,EPP002
EFDC,33080,OTHER ACTIVITIES,MATERIALS,3080,20-Feb-18,28071,24.8,EPPING FOREST DISTRICT COUNCIL,EPP002
EFDC,42520,GOVERNANCE SUPPORT SERVICES,STATIONERY,3320,20-Feb-18,28071,10.83,EPPING FOREST DISTRICT COUNCIL,EPP002
EFDC,CY100,SAFER COMMUNITIES,CONTRIBUTIONS,3740,20-Feb-18,28071,5.89,EPPING FOREST DISTRICT COUNCIL,EPP002
EFDC,36200,OTHER ACTIVITIES,OTHER MISCELLANEOUS EXPENSES,3850,20-Feb-18,28071,3.75,EPPING FOREST DISTRICT COUNCIL,EPP002
EFDC,DR140,MEMBER ACTIVITIES,OTHER MISCELLANEOUS EXPENSES,3850,20-Feb-18,28071,10,EPPING FOREST DISTRICT COUNCIL,EPP002
EFDC,33080,OTHER ACTIVITIES,OTHER MISCELLANEOUS EXPENSES,3850,20-Feb-18,28071,15,EPPING FOREST DISTRICT COUNCIL,EPP002
EFDC,33080,OTHER ACTIVITIES,OTHER MISCELLANEOUS EXPENSES,3850,20-Feb-18,28071,17.5,EPPING FOREST DISTRICT COUNCIL,EPP002
EFDC,CM100,CORPORATE ACTIVITIES,HOSPITALITY,3840,20-Feb-18,28071,3.13,EPPING FOREST DISTRICT COUNCIL,EPP002
EFDC,42100,GOVERNANCE SUPPORT SERVICES,HOSPITALITY,3840,20-Feb-18,28071,4.98,EPPING FOREST DISTRICT COUNCIL,EPP002
EFDC,42100,GOVERNANCE SUPPORT SERVICES,HOSPITALITY,3840,20-Feb-18,28071,5.48,EPPING FOREST DISTRICT COUNCIL,EPP002
EFDC,PP111,FORWARD PLANNING & ECONOMIC,PROFESSIONAL FEES,3420,20-Feb-18,28071,14.35,EPPING FOREST DISTRICT COUNCIL,EPP002
EFDC,CY100,SAFER COMMUNITIES,CONTRIBUTIONS,3740,20-Feb-18,28071,5.6,EPPING FOREST DISTRICT COUNCIL,EPP002
EFDC,27050,ACCOMMODATION,MATERIALS,3080,20-Feb-18,28071,16.25,EPPING FOREST DISTRICT COUNCIL,EPP002
EFDC,37600,PLANNING OTHER,SUBSISTENCE EXPENSES,3610,20-Feb-18,28071,17.5,EPPING FOREST DISTRICT COUNCIL,EPP002
EFDC,37600,PLANNING OTHER,SUBSISTENCE EXPENSES,3610,20-Feb-18,28071,14.25,EPPING FOREST DISTRICT COUNCIL,EPP002
EFDC,37600,PLANNING OTHER,SUBSISTENCE EXPENSES,3610,20-Feb-18,28071,17.5,EPPING FOREST DISTRICT COUNCIL,EPP002
EFDC,37600,PLANNING OTHER,SUBSISTENCE EXPENSES,3610,20-Feb-18,28071,17.5,EPPING FOREST DISTRICT COUNCIL,EPP002
EFDC,42100,GOVERNANCE SUPPORT SERVICES,SUBSISTENCE EXPENSES,3610,20-Feb-18,28071,3.49,EPPING FOREST DISTRICT COUNCIL,EPP002
EFDC,EH143,OTHER ACTIVITIES,PROFESSIONAL FEES,3420,20-Feb-18,28071,8,EPPING FOREST DISTRICT COUNCIL,EPP002
EFDC,EH143,OTHER ACTIVITIES,PROFESSIONAL FEES,3420,20-Feb-18,28071,4,EPPING FOREST DISTRICT COUNCIL,EPP002
EFDC,EH143,OTHER ACTIVITIES,PROFESSIONAL FEES,3420,20-Feb-18,28071,8,EPPING FOREST DISTRICT COUNCIL,EPP002
EFDC,CY100,SAFER COMMUNITIES,CONTRIBUTIONS,3740,20-Feb-18,28071,16.33,EPPING FOREST DISTRICT COUNCIL,EPP002
EFDC,33010,OTHER ACTIVITIES,OTHER TRAVEL EXPENSES,2850,20-Feb-18,28071,18.8,EPPING FOREST DISTRICT COUNCIL,EPP002
EFDC,32060,OTHER SUPPORT SERVICES (HR),OTHER TRAVEL EXPENSES,2850,20-Feb-18,28071,24,EPPING FOREST DISTRICT COUNCIL,EPP002
EFDC,32060,OTHER SUPPORT SERVICES (HR),OTHER TRAVEL EXPENSES,2850,20-Feb-18,28071,9.8,EPPING FOREST DISTRICT COUNCIL,EPP002
EFDC,32180,OTHER SUPPORT SERVICES (HR),OTHER TRAVEL EXPENSES,2850,20-Feb-18,28071,5.91,EPPING FOREST DISTRICT COUNCIL,EPP002
EFDC,32060,OTHER SUPPORT SERVICES (HR),OTHER TRAVEL EXPENSES,2850,20-Feb-18,28071,7.9,EPPING FOREST DISTRICT COUNCIL,EPP002
EFDC,32060,OTHER SUPPORT SERVICES (HR),OTHER TRAVEL EXPENSES,2850,20-Feb-18,28071,6.6,EPPING FOREST DISTRICT COUNCIL,EPP002
EFDC,32060,OTHER SUPPORT SERVICES (HR),OTHER TRAVEL EXPENSES,2850,20-Feb-18,28071,8.2,EPPING FOREST DISTRICT COUNCIL,EPP002
EFDC,78001,OTHER ACTIVITIES,STOCK ISSUES,3070,20-Feb-18,28071,8.48,EPPING FOREST DISTRICT COUNCIL,EPP002
EFDC,31140,CORPORATE SUPPORT SERVICES,OTHER TRAVEL EXPENSES,2850,20-Feb-18,28071,27.1,EPPING FOREST DISTRICT COUNCIL,EPP002
EFDC,32060,OTHER SUPPORT SERVICES (HR),OTHER TRAVEL EXPENSES,2850,20-Feb-18,28071,8.1,EPPING FOREST DISTRICT COUNCIL,EPP002
EFDC,32060,OTHER SUPPORT SERVICES (HR),OTHER TRAVEL EXPENSES,2850,20-Feb-18,28071,7.7,EPPING FOREST DISTRICT COUNCIL,EPP002
EFDC,33010,OTHER ACTIVITIES,OTHER TRAVEL EXPENSES,2850,20-Feb-18,28071,24.1,EPPING FOREST DISTRICT COUNCIL,EPP002
EFDC,32180,OTHER SUPPORT SERVICES (HR),OTHER TRAVEL EXPENSES,2850,20-Feb-18,28071,0.42,EPPING FOREST DISTRICT COUNCIL,EPP002
EFDC,32180,OTHER SUPPORT SERVICES (HR),OTHER TRAVEL EXPENSES,2850,20-Feb-18,28071,1.42,EPPING FOREST DISTRICT COUNCIL,EPP002
EFDC,32060,OTHER SUPPORT SERVICES (HR),OTHER TRAVEL EXPENSES,2850,20-Feb-18,28071,1.67,EPPING FOREST DISTRICT COUNCIL,EPP002
EFDC,32060,OTHER SUPPORT SERVICES (HR),OTHER TRAVEL EXPENSES,2850,20-Feb-18,28071,15.65,EPPING FOREST DISTRICT COUNCIL,EPP002
EFDC,32060,OTHER SUPPORT SERVICES (HR),OTHER TRAVEL EXPENSES,2850,20-Feb-18,28071,15.4,EPPING FOREST DISTRICT COUNCIL,EPP002
EFDC,32060,OTHER SUPPORT SERVICES (HR),OTHER TRAVEL EXPENSES,2850,20-Feb-18,28071,15.4,EPPING FOREST DISTRICT COUNCIL,EPP002
EFDC,32180,OTHER SUPPORT SERVICES (HR),OTHER TRAVEL EXPENSES,2850,20-Feb-18,28071,8.2,EPPING FOREST DISTRICT COUNCIL,EPP002
EFDC,DR140,MEMBER ACTIVITIES,MATERIALS,3080,20-Feb-18,28071,14.95,EPPING FOREST DISTRICT COUNCIL,EPP002
EFDC,37600,PLANNING OTHER,OTHER TRAVEL EXPENSES,2850,20-Feb-18,28071,12.1,EPPING FOREST DISTRICT COUNCIL,EPP002
EFDC,36500,OTHER ACTIVITIES,OTHER TRAVEL EXPENSES,2850,20-Feb-18,28071,9.3,EPPING FOREST DISTRICT COUNCIL,EPP002
EFDC,36500,OTHER ACTIVITIES,OTHER TRAVEL EXPENSES,2850,20-Feb-18,28071,10,EPPING FOREST DISTRICT COUNCIL,EPP002
EFDC,36500,OTHER ACTIVITIES,OTHER TRAVEL EXPENSES,2850,20-Feb-18,28071,4.5,EPPING FOREST DISTRICT COUNCIL,EPP002
EFDC,37100,PLANNING OTHER,OTHER TRAVEL EXPENSES,2850,20-Feb-18,28071,10.2,EPPING FOREST DISTRICT COUNCIL,EPP002
EFDC,37500,PLANNING OTHER,OTHER TRAVEL EXPENSES,2850,20-Feb-18,28071,20,EPPING FOREST DISTRICT COUNCIL,EPP002
EFDC,32060,OTHER SUPPORT SERVICES (HR),OTHER TRAVEL EXPENSES,2850,20-Feb-18,28071,15.9,EPPING FOREST DISTRICT COUNCIL,EPP002
EFDC,42100,GOVERNANCE SUPPORT SERVICES,EQUIPMENT - NEW,3010,20-Feb-18,28071,18.1,EPPING FOREST DISTRICT COUNCIL,EPP002
EFDC,36500,OTHER ACTIVITIES,OTHER TRAVEL EXPENSES,2850,20-Feb-18,28071,3.17,EPPING FOREST DISTRICT COUNCIL,EPP002
EFDC,32030,OTHER SUPPORT SERVICES (HR),EQUIPMENT - NEW,3010,20-Feb-18,28071,10.1,EPPING FOREST DISTRICT COUNCIL,EPP002
EFDC,37600,PLANNING OTHER,OTHER TRAVEL EXPENSES,2850,20-Feb-18,28071,14.35,EPPING FOREST DISTRICT COUNCIL,EPP002
EFDC,32030,OTHER SUPPORT SERVICES (HR),EQUIPMENT - NEW,3010,20-Feb-18,28071,7.5,EPPING FOREST DISTRICT COUNCIL,EPP002
EFDC,37600,PLANNING OTHER,OTHER TRAVEL EXPENSES,2850,20-Feb-18,28071,11.8,EPPING FOREST DISTRICT COUNCIL,EPP002
EFDC,37600,PLANNING OTHER,OTHER TRAVEL EXPENSES,2850,20-Feb-18,28071,17.5,EPPING FOREST DISTRICT COUNCIL,EPP002
EFDC,YA150,SUPERVISION/MANAGEMENT GENERAL,OTHER TRAVEL EXPENSES,2850,20-Feb-18,28071,25,EPPING FOREST DISTRICT COUNCIL,EPP002
EFDC,26200,OTHER SUPPORT SERVICES (HR),OTHER TRAVEL EXPENSES,2850,20-Feb-18,28071,2.67,EPPING FOREST DISTRICT COUNCIL,EPP002
EFDC,31140,CORPORATE SUPPORT SERVICES,OTHER TRAVEL EXPENSES,2850,20-Feb-18,28071,8.2,EPPING FOREST DISTRICT COUNCIL,EPP002
EFDC,31140,CORPORATE SUPPORT SERVICES,OTHER TRAVEL EXPENSES,2850,20-Feb-18,28071,30.8,EPPING FOREST DISTRICT COUNCIL,EPP002
EFDC,31140,CORPORATE SUPPORT SERVICES,OTHER TRAVEL EXPENSES,2850,20-Feb-18,28071,21.1,EPPING FOREST DISTRICT COUNCIL,EPP002
EFDC,31140,CORPORATE SUPPORT SERVICES,OTHER TRAVEL EXPENSES,2850,20-Feb-18,28071,27.1,EPPING FOREST DISTRICT COUNCIL,EPP002
EFDC,PH100,PRIVATE SECTOR HOUSING,GRANTS GENERAL,3720,20-Feb-18,28075,6451,HD PROPERTY SERVICES LIMITED,6878P
EFDC,BAL01,EFDC BALANCE SHEET,HOUSING RENT REFUNDS,Z613,20-Feb-18,28078,513.47,MR B & MRS L A RAY,2697P
EFDC,BAL01,EFDC BALANCE SHEET,HOUSING RENT REFUNDS,Z613,27-Feb-18,28115,3153.56,MRS B JARMAN,1874P
EFDC,GD100,VOLUNTARY SECTOR SUPPORT,GRANTS TO VOLUNTARY ORGS,3710,27-Feb-18,28123,1500,LOUGHTON BROADWAY TOWN CENTRE PARTNERSHIP,1019P
EFDC,GD100,VOLUNTARY SECTOR SUPPORT,GRANTS TO VOLUNTARY ORGS,3710,27-Feb-18,28124,1000,LOUGHTON HIGH ROAD TOWN CENTRE PARTNERSHIP,2273P
EFDC,GD100,VOLUNTARY SECTOR SUPPORT,GRANTS TO VOLUNTARY ORGS,3710,27-Feb-18,28132,2195,REVITALISE RESPITE HOLIDAYS,6492P
EFDC,GD100,VOLUNTARY SECTOR SUPPORT,GRANTS TO VOLUNTARY ORGS,3710,27-Feb-18,28133,1500,ROYDON PLAYING FIELDS MANAGEMENT COMM.,1895P
EFDC,PH100,PRIVATE SECTOR HOUSING,GRANTS GENERAL,3720,27-Feb-18,28140,5302.67,STANNAH LIFT SERVICES LTD,STA002
EFDC,GD100,VOLUNTARY SECTOR SUPPORT,GRANTS TO VOLUNTARY ORGS,3710,06-Mar-18,28196,1434.36,EPPING FOREST COMMUNITY TRANSPORT,2107P
EFDC,GD100,VOLUNTARY SECTOR SUPPORT,GRANTS TO VOLUNTARY ORGS,3710,06-Mar-18,28200,2470,HASTINGWOOD VILLAGE HALL,6481P
EFDC,PH100,PRIVATE SECTOR HOUSING,GRANTS GENERAL,3720,06-Mar-18,28254,8894,ACCESSIBLE SOLUTIONS LIMITED,ACC002
EFDC,BAL01,EFDC BALANCE SHEET,HOME ASST GRANT CHARGE ON PROP,Z055,06-Mar-18,28258,5855.77,HAINAULT HOME IMPROVEMENTS LTD,HAI002
EFDC,BAL01,EFDC BALANCE SHEET,DEPOSITS - PAID,Z223,06-Mar-18,28263,800,RAINBOW ESTATES,156P
EFDC,BAL01,EFDC BALANCE SHEET,SUNDRY DEBTORS (OTHER),Z208,06-Mar-18,28263,800,RAINBOW ESTATES,156P
EFDC,BAL01,EFDC BALANCE SHEET,DEPOSITS - PAID,Z223,13-Mar-18,28325,1100,INTERCOUNTY ESTATE AGENTS,3068P
EFDC,BAL01,EFDC BALANCE SHEET,SUNDRY DEBTORS (OTHER),Z208,13-Mar-18,28325,1100,INTERCOUNTY ESTATE AGENTS,3068P
EFDC,05240,LEASEHOLDERS,CASH RECEIPTS,7790,20-Mar-18,28372,851.82,MRS L JAGGERS,2608P
EFDC,BAL01,EFDC BALANCE SHEET,SUNDRY DEBTORS (OTHER),Z208,20-Mar-18,28373,1050,MONTAGUES LETTINGS,5724P
EFDC,TO100,LAND & PROPERTY,LICENSES,2360,20-Mar-18,28376,3600,POST OFFICE LTD,5023P
EFDC,BAL01,EFDC BALANCE SHEET,MISC DEDUCTIONS,Z611,20-Mar-18,28377,1825,PRUDENTIAL,PRU001
EFDC,BAL01,EFDC BALANCE SHEET,SALARIES - UNIONS,Z605,20-Mar-18,28382,1511.2,UNISON,UNI001
EFDC,32140,OTHER SUPPORT SERVICES (HR),COMMISSION,9320,20-Mar-18,28382,-28.78,UNISON,UNI001
EFDC,BAL01,EFDC BALANCE SHEET,HOUSING RENT REFUNDS,Z613,27-Mar-18,28473,890.78,MRS J STONEBROOK,5938P
EFDC,BAL01,EFDC BALANCE SHEET,HOUSING RENT REFUNDS,Z613,31-Mar-18,28565,807.17,MR H PRATT,5189P
EFDC,RM100,RESPONSIVE & VOID REPAIRS,BUILDING MAINTENANCE,1010,14-Mar-18,108568,2151.85,EXTERIOR PLAS,EXT001
EFDC,RM100,RESPONSIVE & VOID REPAIRS,BUILDING MAINTENANCE,1010,14-Mar-18,108569,1451.41,EXTERIOR PLAS,EXT001
EFDC,YA110,SUPERVISION/MANAGEMENT GENERAL,PROFESSIONAL FEES,3420,21-Mar-18,112096,850,DERRICK WADE WATERS,DER001
EFDC,32220,OTHER SUPPORT SERVICES (HR),FEES & CHARGES,9210,03-Jan-18,112097,850,DERRICK WADE WATERS,DER001
EFDC,PP111,FORWARD PLANNING & ECONOMIC,CONSULTANTS FEES,3490,28-Mar-18,112135,1351,4 GLOBAL CONSULTING LTD,GLO005
EFDC,78001,OTHER ACTIVITIES,REFUSE REMOVAL,1640,24-Jan-18,116379,765,HEATHERLAND LTD T/A LUNNON PLANT & WASTE SERV,HEA001
EFDC,CAPCM,COMMUNITIES CAPITAL,WORKS,A040,17-Jan-18,116786,688.83,GRACELANDS COMPLETE MAINTENANCE SERVICES LTD,GRA007
EFDC,RM100,RESPONSIVE & VOID REPAIRS,BUILDING MAINTENANCE,1010,10-Jan-18,116787,784.25,GRACELANDS COMPLETE MAINTENANCE SERVICES LTD,GRA007
EFDC,RM100,RESPONSIVE & VOID REPAIRS,BUILDING MAINTENANCE,1010,24-Jan-18,116788,705.93,GRACELANDS COMPLETE MAINTENANCE SERVICES LTD,GRA007
EFDC,RM100,RESPONSIVE & VOID REPAIRS,BUILDING MAINTENANCE,1010,24-Jan-18,117057,891.17,GRACELANDS COMPLETE MAINTENANCE SERVICES LTD,GRA007
EFDC,23130,ACCOMMODATION,CLEANING,1630,10-Jan-18,117134,227.84,ATLAS CONTRACTORS LTD,ATL001
EFDC,CH110,"MUSEUM, HERITAGE & CULTURE",CLEANING,1630,10-Jan-18,117134,517.79,ATLAS CONTRACTORS LTD,ATL001
EFDC,23110,ACCOMMODATION,CLEANING,1630,10-Jan-18,117134,1327.17,ATLAS CONTRACTORS LTD,ATL001
EFDC,23110,ACCOMMODATION,CLEANING,1630,10-Jan-18,117134,62.12,ATLAS CONTRACTORS LTD,ATL001
EFDC,27050,ACCOMMODATION,CLEANING,1630,10-Jan-18,117134,7874.2,ATLAS CONTRACTORS LTD,ATL001
EFDC,23140,ACCOMMODATION,CLEANING,1630,10-Jan-18,117134,450.34,ATLAS CONTRACTORS LTD,ATL001
EFDC,27060,ACCOMMODATION,CLEANING,1630,10-Jan-18,117134,414.58,ATLAS CONTRACTORS LTD,ATL001
EFDC,23130,ACCOMMODATION,CLEANING,1630,17-Jan-18,117135,12,ATLAS CONTRACTORS LTD,ATL001
EFDC,CH110,"MUSEUM, HERITAGE & CULTURE",CLEANING,1630,17-Jan-18,117135,84,ATLAS CONTRACTORS LTD,ATL001
EFDC,23110,ACCOMMODATION,CLEANING,1630,17-Jan-18,117135,52,ATLAS CONTRACTORS LTD,ATL001
EFDC,23140,ACCOMMODATION,CLEANING,1630,17-Jan-18,117135,22,ATLAS CONTRACTORS LTD,ATL001
EFDC,27050,ACCOMMODATION,CLEANING,1630,17-Jan-18,117135,450,ATLAS CONTRACTORS LTD,ATL001
EFDC,27060,ACCOMMODATION,CLEANING,1630,17-Jan-18,117135,88,ATLAS CONTRACTORS LTD,ATL001
EFDC,78001,OTHER ACTIVITIES,MATERIALS,3080,31-Jan-18,117736,529.12,TRAVIS PERKINS TRADING COMPANY LTD,TRA001
EFDC,UO120,LAND & PROPERTY,CONSULTANTS FEES,3490,07-Mar-18,117760,6376.75,KEEGANS LTD,KEE007
EFDC,CAPCM,COMMUNITIES CAPITAL,WORKS,A040,10-Jan-18,117929,723.5,EXTERIOR PLAS,EXT001
EFDC,RM100,RESPONSIVE & VOID REPAIRS,BUILDING MAINTENANCE,1010,07-Feb-18,117930,1127.99,EXTERIOR PLAS,EXT001
EFDC,RM100,RESPONSIVE & VOID REPAIRS,BUILDING MAINTENANCE,1010,24-Jan-18,117936,812.85,GRACELANDS COMPLETE MAINTENANCE SERVICES LTD,GRA007
EFDC,UO130,LAND & PROPERTY,PREMISES,1030,17-Jan-18,118117,750,CLARKE HILLYER LTD,CLA002
EFDC,CAPNB,NEIGHBOURHOODS CAPITAL,LETTINGS AGENT,E132,31-Jan-18,118496,6004,COLLIERS INTERNATIONAL PROPERTY CONSULTANTS L,COL013
EFDC,YB140,SUPERVISION/MANAGEMENT SPECIAL,OTHER MAINTENANCE,1050,31-Jan-18,118623,176.52,BINDER LTD,BIN001
EFDC,YB140,SUPERVISION/MANAGEMENT SPECIAL,OTHER MAINTENANCE,1050,31-Jan-18,118623,176.52,BINDER LTD,BIN001
EFDC,YB140,SUPERVISION/MANAGEMENT SPECIAL,OTHER MAINTENANCE,1050,31-Jan-18,118623,176.52,BINDER LTD,BIN001
EFDC,YB140,SUPERVISION/MANAGEMENT SPECIAL,OTHER MAINTENANCE,1050,31-Jan-18,118623,176.52,BINDER LTD,BIN001
EFDC,YB140,SUPERVISION/MANAGEMENT SPECIAL,OTHER MAINTENANCE,1050,31-Jan-18,118623,176.52,BINDER LTD,BIN001
EFDC,YB140,SUPERVISION/MANAGEMENT SPECIAL,OTHER MAINTENANCE,1050,31-Jan-18,118623,176.52,BINDER LTD,BIN001
EFDC,YB140,SUPERVISION/MANAGEMENT SPECIAL,OTHER MAINTENANCE,1050,31-Jan-18,118623,176.52,BINDER LTD,BIN001
EFDC,YB140,SUPERVISION/MANAGEMENT SPECIAL,OTHER MAINTENANCE,1050,31-Jan-18,118623,176.52,BINDER LTD,BIN001
EFDC,YB140,SUPERVISION/MANAGEMENT SPECIAL,OTHER MAINTENANCE,1050,31-Jan-18,118623,176.52,BINDER LTD,BIN001
EFDC,YB140,SUPERVISION/MANAGEMENT SPECIAL,OTHER MAINTENANCE,1050,31-Jan-18,118623,176.52,BINDER LTD,BIN001
EFDC,YB140,SUPERVISION/MANAGEMENT SPECIAL,OTHER MAINTENANCE,1050,31-Jan-18,118623,176.52,BINDER LTD,BIN001
EFDC,YB140,SUPERVISION/MANAGEMENT SPECIAL,OTHER MAINTENANCE,1050,31-Jan-18,118623,176.52,BINDER LTD,BIN001
EFDC,YB140,SUPERVISION/MANAGEMENT SPECIAL,OTHER MAINTENANCE,1050,31-Jan-18,118623,176.52,BINDER LTD,BIN001
EFDC,YB140,SUPERVISION/MANAGEMENT SPECIAL,OTHER MAINTENANCE,1050,31-Jan-18,118623,176.52,BINDER LTD,BIN001
EFDC,RS301,NORTH WEALD CENTRE,OTHER MAINTENANCE,1050,31-Jan-18,118623,636.42,BINDER LTD,BIN001
EFDC,RS301,NORTH WEALD CENTRE,OTHER MAINTENANCE,1050,31-Jan-18,118623,801,BINDER LTD,BIN001
EFDC,RS301,NORTH WEALD CENTRE,OTHER MAINTENANCE,1050,31-Jan-18,118623,321,BINDER LTD,BIN001
EFDC,RS301,NORTH WEALD CENTRE,OTHER MAINTENANCE,1050,31-Jan-18,118623,321,BINDER LTD,BIN001
EFDC,RS301,NORTH WEALD CENTRE,OTHER MAINTENANCE,1050,31-Jan-18,118623,176.52,BINDER LTD,BIN001
EFDC,RS301,NORTH WEALD CENTRE,OTHER MAINTENANCE,1050,31-Jan-18,118623,176.52,BINDER LTD,BIN001
EFDC,RS301,NORTH WEALD CENTRE,OTHER MAINTENANCE,1050,31-Jan-18,118623,176.52,BINDER LTD,BIN001
EFDC,RS301,NORTH WEALD CENTRE,OTHER MAINTENANCE,1050,31-Jan-18,118623,176.52,BINDER LTD,BIN001
EFDC,YB140,SUPERVISION/MANAGEMENT SPECIAL,OTHER MAINTENANCE,1050,31-Jan-18,118623,176.52,BINDER LTD,BIN001
EFDC,YB140,SUPERVISION/MANAGEMENT SPECIAL,OTHER MAINTENANCE,1050,31-Jan-18,118623,176.52,BINDER LTD,BIN001
EFDC,YB140,SUPERVISION/MANAGEMENT SPECIAL,OTHER MAINTENANCE,1050,31-Jan-18,118623,321,BINDER LTD,BIN001
EFDC,YB140,SUPERVISION/MANAGEMENT SPECIAL,OTHER MAINTENANCE,1050,31-Jan-18,118623,885.96,BINDER LTD,BIN001
EFDC,YB140,SUPERVISION/MANAGEMENT SPECIAL,OTHER MAINTENANCE,1050,31-Jan-18,118623,174.48,BINDER LTD,BIN001
EFDC,YB140,SUPERVISION/MANAGEMENT SPECIAL,OTHER MAINTENANCE,1050,31-Jan-18,118623,910.98,BINDER LTD,BIN001
EFDC,YB140,SUPERVISION/MANAGEMENT SPECIAL,OTHER MAINTENANCE,1050,31-Jan-18,118623,525.96,BINDER LTD,BIN001
EFDC,YB140,SUPERVISION/MANAGEMENT SPECIAL,OTHER MAINTENANCE,1050,31-Jan-18,118623,855.96,BINDER LTD,BIN001
EFDC,YB140,SUPERVISION/MANAGEMENT SPECIAL,OTHER MAINTENANCE,1050,31-Jan-18,118623,471,BINDER LTD,BIN001
EFDC,YB140,SUPERVISION/MANAGEMENT SPECIAL,OTHER MAINTENANCE,1050,31-Jan-18,118623,525.96,BINDER LTD,BIN001
EFDC,YB140,SUPERVISION/MANAGEMENT SPECIAL,OTHER MAINTENANCE,1050,31-Jan-18,118623,525.96,BINDER LTD,BIN001
EFDC,YB140,SUPERVISION/MANAGEMENT SPECIAL,OTHER MAINTENANCE,1050,31-Jan-18,118623,306,BINDER LTD,BIN001
EFDC,YB140,SUPERVISION/MANAGEMENT SPECIAL,OTHER MAINTENANCE,1050,31-Jan-18,118623,306,BINDER LTD,BIN001
EFDC,YB140,SUPERVISION/MANAGEMENT SPECIAL,OTHER MAINTENANCE,1050,31-Jan-18,118623,525.96,BINDER LTD,BIN001
EFDC,YB140,SUPERVISION/MANAGEMENT SPECIAL,OTHER MAINTENANCE,1050,31-Jan-18,118623,525.96,BINDER LTD,BIN001
EFDC,YB140,SUPERVISION/MANAGEMENT SPECIAL,OTHER MAINTENANCE,1050,31-Jan-18,118623,801,BINDER LTD,BIN001
EFDC,YB140,SUPERVISION/MANAGEMENT SPECIAL,OTHER MAINTENANCE,1050,31-Jan-18,118623,525.96,BINDER LTD,BIN001
EFDC,YB140,SUPERVISION/MANAGEMENT SPECIAL,OTHER MAINTENANCE,1050,31-Jan-18,118623,306,BINDER LTD,BIN001
EFDC,78001,OTHER ACTIVITIES,REFUSE REMOVAL,1640,24-Jan-18,118697,510,HEATHERLAND LTD T/A LUNNON PLANT & WASTE SERV,HEA001
EFDC,78001,OTHER ACTIVITIES,MATERIALS,3080,10-Jan-18,119530,678.66,TRAVIS PERKINS TRADING COMPANY LTD,TRA001
EFDC,RM100,RESPONSIVE & VOID REPAIRS,BUILDING MAINTENANCE,1010,07-Feb-18,119756,1199.52,EXTERIOR PLAS,EXT001
EFDC,RM100,RESPONSIVE & VOID REPAIRS,BUILDING MAINTENANCE,1010,24-Jan-18,119759,1200.8,EXTERIOR PLAS,EXT001
EFDC,RM100,RESPONSIVE & VOID REPAIRS,BUILDING MAINTENANCE,1010,07-Feb-18,119760,1027.64,EXTERIOR PLAS,EXT001
EFDC,RM100,RESPONSIVE & VOID REPAIRS,BUILDING MAINTENANCE,1010,10-Jan-18,119816,539.75,GRACELANDS COMPLETE MAINTENANCE SERVICES LTD,GRA007
EFDC,RM100,RESPONSIVE & VOID REPAIRS,BUILDING MAINTENANCE,1010,10-Jan-18,119821,1626,GRACELANDS COMPLETE MAINTENANCE SERVICES LTD,GRA007
EFDC,TO100,LAND & PROPERTY,BANKING AND CASH COLLECTION,3440,14-Feb-18,119829,72.58,CONTRACT SECURITY SERVICES LTD,CON033
EFDC,33020,OTHER ACTIVITIES,BANKING AND CASH COLLECTION,3440,14-Feb-18,119829,362.92,CONTRACT SECURITY SERVICES LTD,CON033
EFDC,33020,OTHER ACTIVITIES,BANKING AND CASH COLLECTION,3440,14-Feb-18,119829,725.83,CONTRACT SECURITY SERVICES LTD,CON033
EFDC,YB620,SUPERVISION/MANAGEMENT SPECIAL,BANKING AND CASH COLLECTION,3440,14-Feb-18,119829,72.58,CONTRACT SECURITY SERVICES LTD,CON033
EFDC,EH160,OTHER ACTIVITIES,BANKING AND CASH COLLECTION,3440,14-Feb-18,119829,80.4,CONTRACT SECURITY SERVICES LTD,CON033
EFDC,CH110,"MUSEUM, HERITAGE & CULTURE",BANKING AND CASH COLLECTION,3440,14-Feb-18,119829,36.29,CONTRACT SECURITY SERVICES LTD,CON033
EFDC,34110,COMMUNITIES SUPPORT SERVICES,BANKING AND CASH COLLECTION,3440,14-Feb-18,119829,72.59,CONTRACT SECURITY SERVICES LTD,CON033
EFDC,YB500,SUPERVISION/MANAGEMENT SPECIAL,EQUIPMENT - MAINTENANCE,3030,07-Feb-18,119839,501.13,WESTON DIGITAL TECHNOLOGIES LTD,WES004
EFDC,23130,ACCOMMODATION,CLEANING,1630,10-Jan-18,120129,227.84,ATLAS CONTRACTORS LTD,ATL001
EFDC,CH110,"MUSEUM, HERITAGE & CULTURE",CLEANING,1630,10-Jan-18,120129,517.79,ATLAS CONTRACTORS LTD,ATL001
EFDC,23110,ACCOMMODATION,CLEANING,1630,10-Jan-18,120129,1327.17,ATLAS CONTRACTORS LTD,ATL001
EFDC,23110,ACCOMMODATION,CLEANING,1630,10-Jan-18,120129,62.12,ATLAS CONTRACTORS LTD,ATL001
EFDC,27060,ACCOMMODATION,CLEANING,1630,10-Jan-18,120129,414.58,ATLAS CONTRACTORS LTD,ATL001
EFDC,27050,ACCOMMODATION,CLEANING,1630,10-Jan-18,120129,7874.2,ATLAS CONTRACTORS LTD,ATL001
EFDC,23140,ACCOMMODATION,CLEANING,1630,10-Jan-18,120129,450.34,ATLAS CONTRACTORS LTD,ATL001
EFDC,RM100,RESPONSIVE & VOID REPAIRS,BUILDING MAINTENANCE,1010,24-Jan-18,120248,657.16,GRACELANDS COMPLETE MAINTENANCE SERVICES LTD,GRA007
EFDC,RM100,RESPONSIVE & VOID REPAIRS,BUILDING MAINTENANCE,1010,10-Jan-18,120249,525.89,GRACELANDS COMPLETE MAINTENANCE SERVICES LTD,GRA007
EFDC,36700,OTHER ACTIVITIES,AGENCY STAFF,0120,17-Jan-18,120256,5160.8,JAMES ANDREWS RECRUITMENT SOLUTIONS LTD,JAM001
EFDC,RM300,PLANNED & CYCLICAL MAINTENANCE,BUILDING MAINTENANCE,1010,07-Mar-18,120269,1118,SCCI ALPHATRACK LTD,SCC003
EFDC,FD100,LAND DRAINAGE/SEWERAGE,CLEANSING CONTRACTORS,4320,17-Jan-18,120286,972.2,HUGH PEARL (LAND DRAINAGE) LTD,HUG001
EFDC,FD100,LAND DRAINAGE/SEWERAGE,HIGHWAYS CONTRACTORS,4310,17-Jan-18,120287,836,HUGH PEARL (LAND DRAINAGE) LTD,HUG001
EFDC,RM100,RESPONSIVE & VOID REPAIRS,BUILDING MAINTENANCE,1010,10-Jan-18,120300,1116.5,GRACELANDS COMPLETE MAINTENANCE SERVICES LTD,GRA007
EFDC,TO100,LAND & PROPERTY,BANKING AND CASH COLLECTION,3440,14-Feb-18,120311,72.58,CONTRACT SECURITY SERVICES LTD,CON033
EFDC,33020,OTHER ACTIVITIES,BANKING AND CASH COLLECTION,3440,14-Feb-18,120311,362.92,CONTRACT SECURITY SERVICES LTD,CON033
EFDC,33020,OTHER ACTIVITIES,BANKING AND CASH COLLECTION,3440,14-Feb-18,120311,725.83,CONTRACT SECURITY SERVICES LTD,CON033
EFDC,YB620,SUPERVISION/MANAGEMENT SPECIAL,BANKING AND CASH COLLECTION,3440,14-Feb-18,120311,72.58,CONTRACT SECURITY SERVICES LTD,CON033
EFDC,EH160,OTHER ACTIVITIES,BANKING AND CASH COLLECTION,3440,14-Feb-18,120311,80.4,CONTRACT SECURITY SERVICES LTD,CON033
EFDC,CH110,"MUSEUM, HERITAGE & CULTURE",BANKING AND CASH COLLECTION,3440,14-Feb-18,120311,36.29,CONTRACT SECURITY SERVICES LTD,CON033
EFDC,34110,COMMUNITIES SUPPORT SERVICES,BANKING AND CASH COLLECTION,3440,14-Feb-18,120311,72.59,CONTRACT SECURITY SERVICES LTD,CON033
EFDC,33055,OTHER ACTIVITIES,AGENCY STAFF,0120,03-Jan-18,120325,900,EDEN BROWN LTD,EDE001
EFDC,33055,OTHER ACTIVITIES,AGENCY STAFF,0120,03-Jan-18,120326,900,EDEN BROWN LTD,EDE001
EFDC,ED100,FORWARD PLANNING & ECONOMIC,PREMISES,1030,31-Jan-18,120336,28458.38,MODEL SIGNAGE LTD,MOD003
EFDC,PP111,FORWARD PLANNING & ECONOMIC,CONSULTANTS FEES,3490,28-Mar-18,120355,1089,4 GLOBAL CONSULTING LTD,GLO005
EFDC,RM300,PLANNED & CYCLICAL MAINTENANCE,BUILDING MAINTENANCE,1010,03-Jan-18,120529,970,GRACELANDS COMPLETE MAINTENANCE SERVICES LTD,GRA007
EFDC,RM100,RESPONSIVE & VOID REPAIRS,BUILDING MAINTENANCE,1010,10-Jan-18,120533,568.9,GRACELANDS COMPLETE MAINTENANCE SERVICES LTD,GRA007
EFDC,RM100,RESPONSIVE & VOID REPAIRS,BUILDING MAINTENANCE,1010,17-Jan-18,120534,831.17,GRACELANDS COMPLETE MAINTENANCE SERVICES LTD,GRA007
EFDC,RM100,RESPONSIVE & VOID REPAIRS,BUILDING MAINTENANCE,1010,07-Feb-18,120543,1244.03,EXTERIOR PLAS,EXT001
EFDC,CAPRS,RESOURCES CAPITAL,EQUIPMENT ACQUISITION,C330,03-Jan-18,120554,645.2,SOFTCAT LTD,SOF002
EFDC,RM300,PLANNED & CYCLICAL MAINTENANCE,BUILDING MAINTENANCE,1010,03-Jan-18,120647,1738.73,GRACELANDS COMPLETE MAINTENANCE SERVICES LTD,GRA007
EFDC,RM300,PLANNED & CYCLICAL MAINTENANCE,BUILDING MAINTENANCE,1010,03-Jan-18,120648,602.48,GRACELANDS COMPLETE MAINTENANCE SERVICES LTD,GRA007
EFDC,HI122,HIGHWAYS,TREE  MAINTENANCE,1070,03-Jan-18,120794,850,D F CLARK CONTRACTORS LTD,DFC001
EFDC,78001,OTHER ACTIVITIES,MATERIALS,3080,03-Jan-18,120804,1260,CRANBROOK ELECTRICS,CRA001
EFDC,32200,OTHER SUPPORT SERVICES (HR),STOCK ISSUES,3070,03-Jan-18,120895,716,CORBEAU PROCUREMENT SUPPLIES LTD,PAP002
EFDC,RS301,NORTH WEALD CENTRE,FIXED PLANT MAINTENANCE,1020,03-Jan-18,120904,2000,MAINTECH POWER SERVICES LTD,MAI003
EFDC,33055,OTHER ACTIVITIES,AGENCY STAFF,0120,03-Jan-18,120905,900,EDEN BROWN LTD,EDE001
EFDC,33055,OTHER ACTIVITIES,AGENCY STAFF,0120,03-Jan-18,120906,900,EDEN BROWN LTD,EDE001
EFDC,YB400,SUPERVISION/MANAGEMENT SPECIAL,GROUNDS MAINTENANCE,1040,03-Jan-18,120908,2166,SAFEPLAY PLAYGROUND MAINTENANCE SERVICES LTD,SAF013
EFDC,YB400,SUPERVISION/MANAGEMENT SPECIAL,GROUNDS MAINTENANCE,1040,03-Jan-18,120909,1365.6,SAFEPLAY PLAYGROUND MAINTENANCE SERVICES LTD,SAF013
EFDC,EH155,ENVIRONMENTAL HEALTH,FUEL,2330,10-Jan-18,120926,85.07,SHELL U.K. OIL PRODUCTS LIMITED,SHE007
EFDC,78001,OTHER ACTIVITIES,FUEL,2330,10-Jan-18,120926,1017.58,SHELL U.K. OIL PRODUCTS LIMITED,SHE007
EFDC,YB120,SUPERVISION/MANAGEMENT SPECIAL,FUEL,2330,10-Jan-18,120926,109.88,SHELL U.K. OIL PRODUCTS LIMITED,SHE007
EFDC,35300,ENVIRONMENTAL OTHER,FUEL,2330,03-Jan-18,120928,1932.83,SHELL U.K. OIL PRODUCTS LIMITED,SHE007
EFDC,LC100,OTHER ACTIVITIES,AGENCY STAFF,0120,03-Jan-18,120930,532,VIVID RESOURCING LTD,VIV002
EFDC,37600,PLANNING OTHER,AGENCY STAFF,0120,03-Jan-18,120932,1312.5,VIVID RESOURCING LTD,VIV002
EFDC,RS301,NORTH WEALD CENTRE,OTHER MAINTENANCE,1050,03-Jan-18,120939,565,EAGLE AUTOMATION SYSTEMS LTD,EAG001
EFDC,33080,OTHER ACTIVITIES,EQUIPMENT - HIRED,3020,03-Jan-18,120956,514.72,XEROX (UK) LTD,XER002
EFDC,78001,OTHER ACTIVITIES,REFUSE REMOVAL,1640,21-Feb-18,120971,510,HEATHERLAND LTD T/A LUNNON PLANT & WASTE SERV,HEA001
EFDC,33075,OTHER ACTIVITIES,AGENCY STAFF,0120,03-Jan-18,120983,653.43,MORGAN HUNT UK LTD,MOR001
EFDC,78001,OTHER ACTIVITIES,MATERIALS,3080,31-Jan-18,121084,525,TRAVIS PERKINS TRADING COMPANY LTD,TRA001
EFDC,26200,OTHER SUPPORT SERVICES (HR),BUILDING MAINTENANCE,1010,03-Jan-18,121122,512.02,EDMUNDSON ELECTRICAL LTD,EDM001
EFDC,26200,OTHER SUPPORT SERVICES (HR),BUILDING MAINTENANCE,1010,03-Jan-18,121124,3500,T B PROPERTY SERVICES (ESSEX) LTD,TBP001
EFDC,26200,OTHER SUPPORT SERVICES (HR),BUILDING MAINTENANCE,1010,03-Jan-18,121124,3180,T B PROPERTY SERVICES (ESSEX) LTD,TBP001
EFDC,33080,OTHER ACTIVITIES,FIXED NETWORK LINE COSTS,3520,14-Mar-18,121125,4475.49,SOLAR COMMUNICATION LIMITED,SOL002
EFDC,32200,OTHER SUPPORT SERVICES (HR),STOCK ISSUES,3070,03-Jan-18,121153,561,ELMSTOK LTD,ELM001
EFDC,32030,OTHER SUPPORT SERVICES (HR),EQUIPMENT - NEW,3010,03-Jan-18,121154,708,ELMSTOK LTD,ELM001
EFDC,LT120,LOCAL TAXATION,PROFESSIONAL FEES,3420,03-Jan-18,121159,950,CAPITA BUSINESS SERVICES LTD,CAP004
EFDC,HI125,HIGHWAYS,OTHER MAINTENANCE,1050,03-Jan-18,121175,900,W H CONSTRUCTION LTD,CON014
EFDC,32220,OTHER SUPPORT SERVICES (HR),AGENCY STAFF,0120,03-Jan-18,121176,1038.81,HAYS SPECIALIST RECRUITMENT LTD,HAY011
EFDC,32220,OTHER SUPPORT SERVICES (HR),AGENCY STAFF,0120,03-Jan-18,121177,1544.48,HAYS SPECIALIST RECRUITMENT LTD,HAY011
EFDC,32220,OTHER SUPPORT SERVICES (HR),AGENCY STAFF,0120,03-Jan-18,121178,986.44,HAYS SPECIALIST RECRUITMENT LTD,HAY011
EFDC,32220,OTHER SUPPORT SERVICES (HR),AGENCY STAFF,0120,03-Jan-18,121180,506.1,HAYS SPECIALIST RECRUITMENT LTD,HAY011
EFDC,RM100,RESPONSIVE & VOID REPAIRS,BUILDING MAINTENANCE,1010,24-Jan-18,121214,640,GRACELANDS COMPLETE MAINTENANCE SERVICES LTD,GRA007
EFDC,78001,OTHER ACTIVITIES,MATERIALS,3080,17-Jan-18,121252,503.86,THE PREMIERE KITCHEN COMPANY,PRE014
EFDC,EH112,LAND DRAINAGE/SEWERAGE,OTHER MAINTENANCE,1050,03-Jan-18,121288,1556.53,VEOLIA ES (UK) LTD,VER004
EFDC,78001,OTHER ACTIVITIES,FUEL,2330,24-Jan-18,121297,1893.59,SHELL U.K. OIL PRODUCTS LIMITED,SHE007
EFDC,YB120,SUPERVISION/MANAGEMENT SPECIAL,FUEL,2330,24-Jan-18,121297,189.53,SHELL U.K. OIL PRODUCTS LIMITED,SHE007
EFDC,RS400,"COMMUNITY, HEALTH & WELLBEING",CRB POLICE CHECK COSTS,0381,10-Jan-18,121298,44,DISCLOSURE & BARRING SERVICE,CRB002
EFDC,CH110,"MUSEUM, HERITAGE & CULTURE",CRB POLICE CHECK COSTS,0381,10-Jan-18,121298,44,DISCLOSURE & BARRING SERVICE,CRB002
EFDC,36200,OTHER ACTIVITIES,CRB POLICE CHECK COSTS,0381,10-Jan-18,121298,44,DISCLOSURE & BARRING SERVICE,CRB002
EFDC,EH150,REGULATORY SERVICES,CRB POLICE CHECK COSTS,0381,10-Jan-18,121298,352,DISCLOSURE & BARRING SERVICE,CRB002
EFDC,EI131,FORWARD PLANNING & ECONOMIC,CRB POLICE CHECK COSTS,0381,10-Jan-18,121298,44,DISCLOSURE & BARRING SERVICE,CRB002
EFDC,RS400,"COMMUNITY, HEALTH & WELLBEING",ACTIVITIES,3372,03-Jan-18,121443,2200,THE RED BALLON FAMILY FOUNDATION,RED014
EFDC,RM100,RESPONSIVE & VOID REPAIRS,BUILDING MAINTENANCE,1010,31-Mar-18,121449,753.86,GRACELANDS COMPLETE MAINTENANCE SERVICES LTD,GRA007
EFDC,35005,ENVIRONMENTAL OTHER,EQUIPMENT - NEW,3010,10-Jan-18,121451,512.15,CHELMSFORD SAFETY SUPPLIES LTD,CHE020
EFDC,33075,OTHER ACTIVITIES,LICENCES,3870,31-Jan-18,121457,1575,SOLAR COMMUNICATION LIMITED,SOL002
EFDC,33080,OTHER ACTIVITIES,LICENCES,3870,31-Jan-18,121457,1267.78,SOLAR COMMUNICATION LIMITED,SOL002
EFDC,78001,OTHER ACTIVITIES,REFUSE REMOVAL,1640,03-Jan-18,121458,559,GBN SERVICES LTD,GBN002
EFDC,42310,GOVERNANCE SUPPORT SERVICES,AGENCY STAFF,0120,10-Jan-18,121459,865.85,THE OYSTER PARTNERSHIP LTD,OYS001
EFDC,37600,PLANNING OTHER,AGENCY STAFF,0120,10-Jan-18,121460,2337,THE OYSTER PARTNERSHIP LTD,OYS001
EFDC,CAPRS,RESOURCES CAPITAL,EQUIPMENT ACQUISITION,C330,10-Jan-18,121463,2290,PROBRAND LTD,PRO011
EFDC,RM200,RESPONSIVE & VOID REPAIRS,BUILDING MAINTENANCE,1010,28-Mar-18,121513,665,GRACELANDS COMPLETE MAINTENANCE SERVICES LTD,GRA007
EFDC,RM100,RESPONSIVE & VOID REPAIRS,BUILDING MAINTENANCE,1010,07-Feb-18,121517,575,GRACELANDS COMPLETE MAINTENANCE SERVICES LTD,GRA007
EFDC,42410,GOVERNANCE SUPPORT SERVICES,PROFESSIONAL FEES,3420,31-Mar-18,121520,1583.1,EXPERIAN LTD,EXP002
EFDC,LT120,LOCAL TAXATION,SUBSCRIPTIONS,3730,17-Jan-18,121521,1095,INSTITUTE OF REVENUES RATING & VALUATION,INS008
EFDC,37600,PLANNING OTHER,AGENCY STAFF,0120,10-Jan-18,121522,1312.5,VIVID RESOURCING LTD,VIV002
EFDC,33080,OTHER ACTIVITIES,ANNUAL SUPPORT /  LICENSES,3872,03-Jan-18,121523,1673.1,BYTES SOFTWARE SERVICES LTD,BYT001
EFDC,RS301,NORTH WEALD CENTRE,OTHER MAINTENANCE,1050,10-Jan-18,121524,150,BINDER LTD,BIN001
EFDC,RS301,NORTH WEALD CENTRE,OTHER MAINTENANCE,1050,10-Jan-18,121524,150,BINDER LTD,BIN001
EFDC,RS301,NORTH WEALD CENTRE,OTHER MAINTENANCE,1050,10-Jan-18,121524,150,BINDER LTD,BIN001
EFDC,YB140,SUPERVISION/MANAGEMENT SPECIAL,OTHER MAINTENANCE,1050,10-Jan-18,121524,150,BINDER LTD,BIN001
EFDC,YB140,SUPERVISION/MANAGEMENT SPECIAL,OTHER MAINTENANCE,1050,10-Jan-18,121524,150,BINDER LTD,BIN001
EFDC,YB140,SUPERVISION/MANAGEMENT SPECIAL,OTHER MAINTENANCE,1050,10-Jan-18,121524,150,BINDER LTD,BIN001
EFDC,YB140,SUPERVISION/MANAGEMENT SPECIAL,OTHER MAINTENANCE,1050,10-Jan-18,121524,150,BINDER LTD,BIN001
EFDC,YB140,SUPERVISION/MANAGEMENT SPECIAL,OTHER MAINTENANCE,1050,10-Jan-18,121524,150,BINDER LTD,BIN001
EFDC,YB140,SUPERVISION/MANAGEMENT SPECIAL,OTHER MAINTENANCE,1050,10-Jan-18,121524,150,BINDER LTD,BIN001
EFDC,YB140,SUPERVISION/MANAGEMENT SPECIAL,OTHER MAINTENANCE,1050,10-Jan-18,121524,150,BINDER LTD,BIN001
EFDC,YB140,SUPERVISION/MANAGEMENT SPECIAL,OTHER MAINTENANCE,1050,10-Jan-18,121524,150,BINDER LTD,BIN001
EFDC,YB140,SUPERVISION/MANAGEMENT SPECIAL,OTHER MAINTENANCE,1050,10-Jan-18,121524,150,BINDER LTD,BIN001
EFDC,YB140,SUPERVISION/MANAGEMENT SPECIAL,OTHER MAINTENANCE,1050,10-Jan-18,121524,150,BINDER LTD,BIN001
EFDC,YB140,SUPERVISION/MANAGEMENT SPECIAL,OTHER MAINTENANCE,1050,10-Jan-18,121524,150,BINDER LTD,BIN001
EFDC,YB140,SUPERVISION/MANAGEMENT SPECIAL,OTHER MAINTENANCE,1050,10-Jan-18,121524,150,BINDER LTD,BIN001
EFDC,YB150,SUPERVISION/MANAGEMENT SPECIAL,OTHER MAINTENANCE,1050,10-Jan-18,121524,150,BINDER LTD,BIN001
EFDC,YB140,SUPERVISION/MANAGEMENT SPECIAL,OTHER MAINTENANCE,1050,10-Jan-18,121524,150,BINDER LTD,BIN001
EFDC,YB140,SUPERVISION/MANAGEMENT SPECIAL,OTHER MAINTENANCE,1050,10-Jan-18,121524,150,BINDER LTD,BIN001
EFDC,CH110,"MUSEUM, HERITAGE & CULTURE",RENTS / HIRE OF HALL,1210,03-Jan-18,121527,1100,GRANGEWOOD INVESTMENTS LTD,GRA006
EFDC,32115,OTHER SUPPORT SERVICES (HR),CONSULTANTS FEES,3490,10-Jan-18,121530,725,NORTH WEALD FIRE RESCUE,NOR001
EFDC,35300,ENVIRONMENTAL OTHER,STOCK ISSUES,3070,10-Jan-18,121531,610.5,MATTHEW'S PLANTS,MAT001
EFDC,LC100,OTHER ACTIVITIES,AGENCY STAFF,0120,10-Jan-18,121534,700,VIVID RESOURCING LTD,VIV002
EFDC,33055,OTHER ACTIVITIES,AGENCY STAFF,0120,10-Jan-18,121538,900,EDEN BROWN LTD,EDE001
EFDC,33055,OTHER ACTIVITIES,AGENCY STAFF,0120,10-Jan-18,121540,900,EDEN BROWN LTD,EDE001
EFDC,RM100,RESPONSIVE & VOID REPAIRS,BUILDING MAINTENANCE,1010,10-Jan-18,121542,850,W H CONSTRUCTION LTD,CON014
EFDC,33075,OTHER ACTIVITIES,AGENCY STAFF,0120,10-Jan-18,121543,775.25,MORGAN HUNT UK LTD,MOR001
EFDC,BAL01,EFDC BALANCE SHEET,INSURANCE EXCESS CREDITOR,Z621,14-Feb-18,121553,15617.05,GRACELANDS COMPLETE MAINTENANCE SERVICES LTD,GRA007
EFDC,HI126,HIGHWAYS,OTHER MAINTENANCE,1050,10-Jan-18,121560,8615.3,GLASDON U K LTD,GLA002
EFDC,32120,OTHER SUPPORT SERVICES (HR),EMPLOYEES - OTHER PAYMENTS,0191,10-Jan-18,121566,416.25,HARLOW OCCUPATIONAL HEALTH SERVICE LTD,HAR006
EFDC,32120,OTHER SUPPORT SERVICES (HR),EMPLOYEES - OTHER PAYMENTS,0191,10-Jan-18,121566,173.95,HARLOW OCCUPATIONAL HEALTH SERVICE LTD,HAR006
EFDC,RM400,PLANNED & CYCLICAL MAINTENANCE,BUILDING MAINTENANCE,1010,03-Jan-18,121586,637.69,MULTI ALARM SYSTEMS GB LTD,MUL001
EFDC,32200,OTHER SUPPORT SERVICES (HR),EQUIPMENT - HIRED,3020,07-Mar-18,121604,6810.49,CANON (UK) LTD,CAN004
EFDC,PS100,CAR PARKING,OTHER MAINTENANCE,1050,17-Jan-18,121608,525.88,GRIGGS STREETLIGHTING & MAINTENANCE LTD,GRI003
EFDC,36200,OTHER ACTIVITIES,POSTAGE,3510,10-Jan-18,121610,178.2,ROYAL MAIL GROUP PLC,ROY015
EFDC,37100,PLANNING OTHER,POSTAGE,3510,10-Jan-18,121610,124.8,ROYAL MAIL GROUP PLC,ROY015
EFDC,34110,COMMUNITIES SUPPORT SERVICES,POSTAGE,3510,10-Jan-18,121610,1.5,ROYAL MAIL GROUP PLC,ROY015
EFDC,35900,ENVIRONMENTAL OTHER,POSTAGE,3510,10-Jan-18,121610,69.9,ROYAL MAIL GROUP PLC,ROY015
EFDC,33055,OTHER ACTIVITIES,POSTAGE,3510,10-Jan-18,121610,212.1,ROYAL MAIL GROUP PLC,ROY015
EFDC,CH110,"MUSEUM, HERITAGE & CULTURE",POSTAGE,3510,10-Jan-18,121610,0.6,ROYAL MAIL GROUP PLC,ROY015
EFDC,33075,OTHER ACTIVITIES,POSTAGE,3510,10-Jan-18,121610,433.18,ROYAL MAIL GROUP PLC,ROY015
EFDC,RE100,ELECTIONS,POSTAGE,3510,10-Jan-18,121610,107.4,ROYAL MAIL GROUP PLC,ROY015
EFDC,32030,OTHER SUPPORT SERVICES (HR),POSTAGE,3510,10-Jan-18,121610,26.4,ROYAL MAIL GROUP PLC,ROY015
EFDC,42310,GOVERNANCE SUPPORT SERVICES,AGENCY STAFF,0120,03-Jan-18,121621,836.35,THE OYSTER PARTNERSHIP LTD,OYS001
EFDC,HI124,HIGHWAYS,OTHER MAINTENANCE,1050,10-Jan-18,121629,590,SIGNWAY SUPPLIES (DATCHET) LTD,SIG009
EFDC,OS101,PARKS & GROUNDS,BUILDING MAINTENANCE,1010,17-Jan-18,121671,1525,PRINCIPAL TREES LTD,PRI017
EFDC,36700,OTHER ACTIVITIES,SUBSCRIPTIONS,3730,24-Jan-18,121678,600,M3 HOUSING LTD,MTH001
EFDC,RM200,RESPONSIVE & VOID REPAIRS,BUILDING MAINTENANCE,1010,24-Jan-18,121683,3377.14,GRACELANDS COMPLETE MAINTENANCE SERVICES LTD,GRA007
EFDC,26200,OTHER SUPPORT SERVICES (HR),BUILDING MAINTENANCE,1010,17-Jan-18,121687,1495.1,CHELMSFORD SAFETY SUPPLIES LTD,CHE020
EFDC,32220,OTHER SUPPORT SERVICES (HR),AGENCY STAFF,0120,03-Jan-18,121689,4805.58,CAPSTONE PROPERTY RECRUITMENT LTD,CAP001
EFDC,UO120,LAND & PROPERTY,AGENCY STAFF,0120,03-Jan-18,121690,3585.12,CAPSTONE PROPERTY RECRUITMENT LTD,CAP001
EFDC,CAPNB,NEIGHBOURHOODS CAPITAL,LEGAL FEES,F140,03-Jan-18,121706,658,SHARPE PRITCHARD LLP,SHA004
EFDC,CAPNB,NEIGHBOURHOODS CAPITAL,QUANTITY SURVEYORS FEES,E170,10-Jan-18,121903,1500,RIDGE AND PARTNERS LLP,RID002
EFDC,CAPCM,COMMUNITIES CAPITAL,VOIDS WORKS,A045,07-Feb-18,121906,922,WOODS BUILDING SERVICES LTD,WOO001
EFDC,32220,OTHER SUPPORT SERVICES (HR),AGENCY STAFF,0120,10-Jan-18,121913,1478.64,CAPSTONE PROPERTY RECRUITMENT LTD,CAP001
EFDC,35300,ENVIRONMENTAL OTHER,EQUIPMENT - NEW,3010,17-Jan-18,121914,532.08,P TUCKWELL LTD,TUC002
EFDC,CAPNB,NEIGHBOURHOODS CAPITAL,CONSULTANCY FEES,L049,17-Jan-18,121915,3704,SYSTRA LTD,SYS004
EFDC,ED100,FORWARD PLANNING & ECONOMIC,PRINTING - EXTERNAL,3390,24-Jan-18,121917,628,MFP,MFP001
EFDC,CAPCM,COMMUNITIES CAPITAL,SURVEYS,E120,10-Jan-18,121921,10000,PRICEWATERHOUSECOOPERS LLP,PRI002
EFDC,CAPRS,RESOURCES CAPITAL,SURVEYS,L120,10-Jan-18,121921,63667,PRICEWATERHOUSECOOPERS LLP,PRI002
EFDC,36650,OTHER ACTIVITIES,AGENCY STAFF,0120,10-Jan-18,121923,923.3,ADECCO UK LTD,ADE002
EFDC,YB520,SUPERVISION/MANAGEMENT SPECIAL,OTHER CONTRACTORS,4340,21-Mar-18,121924,9295.45,TUNSTALL HEALTHCARE (UK) LTD,TUN001
EFDC,RE100,ELECTIONS,PRINTING - EXTERNAL,3390,03-Jan-18,121925,1034.14,ELECTORAL REFORM SERVICES,ELE013
EFDC,37600,PLANNING OTHER,AGENCY STAFF,0120,17-Jan-18,121929,1197,THE OYSTER PARTNERSHIP LTD,OYS001
EFDC,RM100,RESPONSIVE & VOID REPAIRS,BUILDING MAINTENANCE,1010,10-Jan-18,121932,1215,FIELDWHITE SERVICES LTD,FIE003
EFDC,PS100,CAR PARKING,OTHER MAINTENANCE,1050,17-Jan-18,121934,1213,MURRILL CONSTRUCTION LTD,MUR004
EFDC,PS100,CAR PARKING,OTHER MAINTENANCE,1050,17-Jan-18,121935,551.28,MURRILL CONSTRUCTION LTD,MUR004
EFDC,CAPNB,NEIGHBOURHOODS CAPITAL,EQUIPMENT ACQUISITION,C330,17-Jan-18,121936,15139.97,MURRILL CONSTRUCTION LTD,MUR004
EFDC,33075,OTHER ACTIVITIES,AGENCY STAFF,0120,10-Jan-18,121942,775.25,MORGAN HUNT UK LTD,MOR001
EFDC,RM100,RESPONSIVE & VOID REPAIRS,BUILDING MAINTENANCE,1010,14-Mar-18,121950,1446.13,GRACELANDS COMPLETE MAINTENANCE SERVICES LTD,GRA007
EFDC,RM100,RESPONSIVE & VOID REPAIRS,BUILDING MAINTENANCE,1010,14-Mar-18,121951,1325.09,GRACELANDS COMPLETE MAINTENANCE SERVICES LTD,GRA007
EFDC,CAPCM,COMMUNITIES CAPITAL,WORKS,A040,10-Jan-18,121952,793.07,GRACELANDS COMPLETE MAINTENANCE SERVICES LTD,GRA007
EFDC,PP111,FORWARD PLANNING & ECONOMIC,CONSULTANTS FEES,3490,24-Jan-18,121958,7025,DIXON SEALE LLP,DIX001
EFDC,78001,OTHER ACTIVITIES,MATERIALS,3080,10-Jan-18,121962,599.58,CRANBROOK ELECTRICS,CRA001
EFDC,78001,OTHER ACTIVITIES,MATERIALS,3080,10-Jan-18,121963,1829.66,CRANBROOK ELECTRICS,CRA001
EFDC,78001,OTHER ACTIVITIES,MATERIALS,3080,17-Jan-18,121967,990,CRANBROOK ELECTRICS,CRA001
EFDC,LC100,OTHER ACTIVITIES,AGENCY STAFF,0120,17-Jan-18,121969,861,VIVID RESOURCING LTD,VIV002
EFDC,37600,PLANNING OTHER,AGENCY STAFF,0120,17-Jan-18,121970,1050,VIVID RESOURCING LTD,VIV002
EFDC,27050,ACCOMMODATION,CLEANING,1630,21-Feb-18,121974,12118.8,ATLAS CONTRACTORS LTD,ATL001
EFDC,FD100,LAND DRAINAGE/SEWERAGE,CLEANSING CONTRACTORS,4320,17-Jan-18,121975,1130.8,HUGH PEARL (LAND DRAINAGE) LTD,HUG001
EFDC,26200,OTHER SUPPORT SERVICES (HR),BUILDING MAINTENANCE,1010,17-Jan-18,121976,978.02,HUGH PEARL (LAND DRAINAGE) LTD,HUG001
EFDC,OS110,PARKS & GROUNDS,GROUNDS MAINTENANCE,1040,17-Jan-18,121977,574.82,HUGH PEARL (LAND DRAINAGE) LTD,HUG001
EFDC,FD100,LAND DRAINAGE/SEWERAGE,HIGHWAYS CONTRACTORS,4310,17-Jan-18,121979,1862,HUGH PEARL (LAND DRAINAGE) LTD,HUG001
EFDC,35013,ENVIRONMENTAL OTHER,SUBSCRIPTIONS,3730,10-Jan-18,121983,707,THOMSON REUTERS (PROFESSIONAL) UK LTD,THO010
EFDC,78001,OTHER ACTIVITIES,MATERIALS,3080,17-Jan-18,121985,621,TOUCAN TOOL CO LTD,TOU001
EFDC,RM100,RESPONSIVE & VOID REPAIRS,BUILDING MAINTENANCE,1010,31-Jan-18,121986,1004.91,GRACELANDS COMPLETE MAINTENANCE SERVICES LTD,GRA007
EFDC,RM100,RESPONSIVE & VOID REPAIRS,BUILDING MAINTENANCE,1010,07-Feb-18,121987,683.13,GRACELANDS COMPLETE MAINTENANCE SERVICES LTD,GRA007
EFDC,EH150,REGULATORY SERVICES,EQUIPMENT - NEW,3010,17-Jan-18,121988,1412.38,VIP-SYSTEM LIMITED,VIP001
EFDC,CAPCM,COMMUNITIES CAPITAL,LEGAL FEES,E140,03-Jan-18,121989,4000,RUND PARTNERSHIP LIMITED,RUN003
EFDC,RM500,OTHER ITEMS,BUILDING MAINTENANCE,1010,17-Jan-18,121990,1200,ENVIRONTEC LTD,ENV002
EFDC,YB400,SUPERVISION/MANAGEMENT SPECIAL,TREE  MAINTENANCE,1070,10-Jan-18,121993,10632.94,GRISTWOOD & TOMS LTD,GRI001
EFDC,OS101,PARKS & GROUNDS,TREE  MAINTENANCE,1070,10-Jan-18,121993,1819.01,GRISTWOOD & TOMS LTD,GRI001
EFDC,OS110,PARKS & GROUNDS,GROUNDS MAINTENANCE,1040,10-Jan-18,121993,606.33,GRISTWOOD & TOMS LTD,GRI001
EFDC,HI122,HIGHWAYS,TREE  MAINTENANCE,1070,10-Jan-18,121993,3056.87,GRISTWOOD & TOMS LTD,GRI001
EFDC,RM100,RESPONSIVE & VOID REPAIRS,BUILDING MAINTENANCE,1010,31-Jan-18,121994,675,W H CONSTRUCTION LTD,CON014
EFDC,28030,OTHER SUPPORT SERVICES (HR),MATERIALS,3080,17-Jan-18,121998,693.91,CARE VENDING SERVICES LTD,CAR017
EFDC,28030,OTHER SUPPORT SERVICES (HR),MATERIALS,3080,17-Jan-18,121998,-95.5,CARE VENDING SERVICES LTD,CAR017
EFDC,CAPCM,COMMUNITIES CAPITAL,VOIDS WORKS,A045,14-Feb-18,121999,1633.6,GRACELANDS COMPLETE MAINTENANCE SERVICES LTD,GRA007
EFDC,RM100,RESPONSIVE & VOID REPAIRS,BUILDING MAINTENANCE,1010,21-Feb-18,122000,1027,GRACELANDS COMPLETE MAINTENANCE SERVICES LTD,GRA007
EFDC,CAPCM,COMMUNITIES CAPITAL,WORKS,A040,10-Jan-18,122014,640,GRACELANDS COMPLETE MAINTENANCE SERVICES LTD,GRA007
EFDC,36200,OTHER ACTIVITIES,POSTAGE,3510,17-Jan-18,122015,111.3,ROYAL MAIL GROUP PLC,ROY015
EFDC,36200,OTHER ACTIVITIES,POSTAGE,3510,17-Jan-18,122015,1405.77,ROYAL MAIL GROUP PLC,ROY015
EFDC,37100,PLANNING OTHER,POSTAGE,3510,17-Jan-18,122015,185.7,ROYAL MAIL GROUP PLC,ROY015
EFDC,34110,COMMUNITIES SUPPORT SERVICES,POSTAGE,3510,17-Jan-18,122015,8.7,ROYAL MAIL GROUP PLC,ROY015
EFDC,35900,ENVIRONMENTAL OTHER,POSTAGE,3510,17-Jan-18,122015,221.1,ROYAL MAIL GROUP PLC,ROY015
EFDC,33055,OTHER ACTIVITIES,POSTAGE,3510,17-Jan-18,122015,159.3,ROYAL MAIL GROUP PLC,ROY015
EFDC,33075,OTHER ACTIVITIES,POSTAGE,3510,17-Jan-18,122015,1002.81,ROYAL MAIL GROUP PLC,ROY015
EFDC,33075,OTHER ACTIVITIES,POSTAGE,3510,17-Jan-18,122015,139.2,ROYAL MAIL GROUP PLC,ROY015
EFDC,RE100,ELECTIONS,POSTAGE,3510,17-Jan-18,122015,56.1,ROYAL MAIL GROUP PLC,ROY015
EFDC,32030,OTHER SUPPORT SERVICES (HR),POSTAGE,3510,17-Jan-18,122015,63.9,ROYAL MAIL GROUP PLC,ROY015
EFDC,OS100,PARKS & GROUNDS,GROUNDS MAINTENANCE,1040,31-Jan-18,122016,890.4,MURRILL CONSTRUCTION LTD,MUR004
EFDC,32220,OTHER SUPPORT SERVICES (HR),AGENCY STAFF,0120,10-Jan-18,122018,1298.51,HAYS SPECIALIST RECRUITMENT LTD,HAY011
EFDC,32220,OTHER SUPPORT SERVICES (HR),AGENCY STAFF,0120,10-Jan-18,122019,506.1,HAYS SPECIALIST RECRUITMENT LTD,HAY011
EFDC,32220,OTHER SUPPORT SERVICES (HR),AGENCY STAFF,0120,10-Jan-18,122020,1233.05,HAYS SPECIALIST RECRUITMENT LTD,HAY011
EFDC,RM100,RESPONSIVE & VOID REPAIRS,BUILDING MAINTENANCE,1010,07-Feb-18,122023,1194.78,GRACELANDS COMPLETE MAINTENANCE SERVICES LTD,GRA007
EFDC,RM400,PLANNED & CYCLICAL MAINTENANCE,BUILDING MAINTENANCE,1010,03-Jan-18,122038,3733.33,PURDY CONTRACTS LTD,PUR002
EFDC,33075,OTHER ACTIVITIES,AGENCY STAFF,0120,10-Jan-18,122042,658.96,MORGAN HUNT UK LTD,MOR001
EFDC,33080,OTHER ACTIVITIES,ANNUAL SUPPORT /  LICENSES,3872,31-Jan-18,122043,7188.32,PHOENIX SOFTWARE LTD,PHO002
EFDC,33080,OTHER ACTIVITIES,ANNUAL SUPPORT /  LICENSES,3872,31-Jan-18,122044,5166.24,PHOENIX SOFTWARE LTD,PHO002
EFDC,PS100,CAR PARKING,OTHER MAINTENANCE,1050,17-Jan-18,122047,4290,METRIC GROUP LTD,MET005
EFDC,78001,OTHER ACTIVITIES,MATERIALS,3080,17-Jan-18,122048,749.98,TRADE UK,TRA027
EFDC,TO100,LAND & PROPERTY,BANKING AND CASH COLLECTION,3440,14-Feb-18,122051,72.58,CONTRACT SECURITY SERVICES LTD,CON033
EFDC,33020,OTHER ACTIVITIES,BANKING AND CASH COLLECTION,3440,14-Feb-18,122051,362.92,CONTRACT SECURITY SERVICES LTD,CON033
EFDC,33020,OTHER ACTIVITIES,BANKING AND CASH COLLECTION,3440,14-Feb-18,122051,725.83,CONTRACT SECURITY SERVICES LTD,CON033
EFDC,YB620,SUPERVISION/MANAGEMENT SPECIAL,BANKING AND CASH COLLECTION,3440,14-Feb-18,122051,72.58,CONTRACT SECURITY SERVICES LTD,CON033
EFDC,CH110,"MUSEUM, HERITAGE & CULTURE",BANKING AND CASH COLLECTION,3440,14-Feb-18,122051,36.29,CONTRACT SECURITY SERVICES LTD,CON033
EFDC,34110,COMMUNITIES SUPPORT SERVICES,BANKING AND CASH COLLECTION,3440,14-Feb-18,122051,72.59,CONTRACT SECURITY SERVICES LTD,CON033
EFDC,RM400,PLANNED & CYCLICAL MAINTENANCE,BUILDING MAINTENANCE,1010,03-Jan-18,122054,1499.99,ESSEX LIFT SERVICES LTD,ESS032
EFDC,26200,OTHER SUPPORT SERVICES (HR),FIXED PLANT MAINTENANCE,1020,03-Jan-18,122054,306.67,ESSEX LIFT SERVICES LTD,ESS032
EFDC,26200,OTHER SUPPORT SERVICES (HR),BUILDING MAINTENANCE,1010,03-Jan-18,122054,81.67,ESSEX LIFT SERVICES LTD,ESS032
EFDC,26200,OTHER SUPPORT SERVICES (HR),BUILDING MAINTENANCE,1010,03-Jan-18,122054,81.67,ESSEX LIFT SERVICES LTD,ESS032
EFDC,26200,OTHER SUPPORT SERVICES (HR),BUILDING MAINTENANCE,1010,03-Jan-18,122054,81.67,ESSEX LIFT SERVICES LTD,ESS032
EFDC,YB620,SUPERVISION/MANAGEMENT SPECIAL,WATER CHARGES,1410,03-Jan-18,122055,656.95,AFFINITY FOR BUSINESS LTD,AFF001
EFDC,CAPCM,COMMUNITIES CAPITAL,WORKS,E040,03-Jan-18,122060,55796.28,LINDEN HOMES EASTERN (2500),LIN002
EFDC,CAPCM,COMMUNITIES CAPITAL,WORKS,E040,03-Jan-18,122061,310450.43,MULALLEY & CO LTD,MUL003
EFDC,78001,OTHER ACTIVITIES,MATERIALS,3080,24-Jan-18,122070,580,J W MACHINERY SERVICES LTD,JWM001
EFDC,32220,OTHER SUPPORT SERVICES (HR),AGENCY STAFF,0120,10-Jan-18,122072,4867.19,CAPSTONE PROPERTY RECRUITMENT LTD,CAP001
EFDC,42310,GOVERNANCE SUPPORT SERVICES,AGENCY STAFF,0120,24-Jan-18,122074,1471.1,THE OYSTER PARTNERSHIP LTD,OYS001
EFDC,RM100,RESPONSIVE & VOID REPAIRS,BUILDING MAINTENANCE,1010,31-Jan-18,122087,1220.95,EXTERIOR PLAS,EXT001
EFDC,RM100,RESPONSIVE & VOID REPAIRS,BUILDING MAINTENANCE,1010,31-Jan-18,122088,1358.32,EXTERIOR PLAS,EXT001
EFDC,CAPCM,COMMUNITIES CAPITAL,ARCHITECTS FEES,E160,03-Jan-18,122093,5255,ECD ARCHITECTS LTD,ECD001
EFDC,33080,OTHER ACTIVITIES,ANNUAL SUPPORT /  LICENSES,3872,03-Jan-18,122096,6743.3,GROSVENOR SYSTEMS LTD,GRO005
EFDC,YB520,SUPERVISION/MANAGEMENT SPECIAL,OTHER CONTRACTORS,4340,21-Mar-18,122097,4784.13,TUNSTALL RESPONSE LTD,TUN002
EFDC,YB200,SUPERVISION/MANAGEMENT SPECIAL,EQUIPMENT - NEW,3010,17-Jan-18,122098,922.7,TUNSTALL HEALTHCARE (UK) LTD,TUN001
EFDC,CAPRS,RESOURCES CAPITAL,EQUIPMENT ACQUISITION,C330,10-Jan-18,122102,925.53,CCS MEDIA LTD,CCS002
EFDC,33020,OTHER ACTIVITIES,LICENCES,3870,10-Jan-18,122104,4660,CAPITA BUSINESS SERVICES LTD,CAP004
EFDC,33020,OTHER ACTIVITIES,CONSULTANTS FEES,3490,10-Jan-18,122104,2090,CAPITA BUSINESS SERVICES LTD,CAP004
EFDC,33020,OTHER ACTIVITIES,MISC INSURANCES,3810,31-Jan-18,122105,5197.5,CAPITA BUSINESS SERVICES LTD,CAP004
EFDC,PP111,FORWARD PLANNING & ECONOMIC,ADVERTISING,3820,10-Jan-18,122107,2191.25,NEWSQUEST MEDIA GROUP,NEW002
EFDC,PP111,FORWARD PLANNING & ECONOMIC,ADVERTISING,3820,10-Jan-18,122108,1628.75,NEWSQUEST MEDIA GROUP,NEW002
EFDC,WC100,WASTE MANAGEMENT,ADVERTISING,3820,10-Jan-18,122109,656.25,NEWSQUEST MEDIA GROUP,NEW002
EFDC,CAPCM,COMMUNITIES CAPITAL,WORKS,A040,03-Jan-18,122110,6890.24,EXTERIOR PLAS,EXT001
EFDC,CAPCM,COMMUNITIES CAPITAL,WORKS,A040,03-Jan-18,122110,41433.21,EXTERIOR PLAS,EXT001
EFDC,CAPCM,COMMUNITIES CAPITAL,WORKS,A040,03-Jan-18,122110,5995.05,EXTERIOR PLAS,EXT001
EFDC,32200,OTHER SUPPORT SERVICES (HR),STOCK ISSUES,3070,24-Jan-18,122111,716,CORBEAU PROCUREMENT SUPPLIES LTD,PAP002
EFDC,SC100,WASTE MANAGEMENT,HIGHWAYS CONTRACTORS,4310,24-Jan-18,122115,6064.96,EASTERN WASTE DISPOSAL LTD,EAS002
EFDC,32220,OTHER SUPPORT SERVICES (HR),AGENCY STAFF,0120,17-Jan-18,122117,551.6,HAYS SPECIALIST RECRUITMENT LTD,HAY011
EFDC,32220,OTHER SUPPORT SERVICES (HR),AGENCY STAFF,0120,17-Jan-18,122118,506.1,HAYS SPECIALIST RECRUITMENT LTD,HAY011
EFDC,36200,OTHER ACTIVITIES,POSTAGE,3510,24-Jan-18,122119,162.3,ROYAL MAIL GROUP PLC,ROY015
EFDC,37100,PLANNING OTHER,POSTAGE,3510,24-Jan-18,122119,288,ROYAL MAIL GROUP PLC,ROY015
EFDC,34110,COMMUNITIES SUPPORT SERVICES,POSTAGE,3510,24-Jan-18,122119,4.2,ROYAL MAIL GROUP PLC,ROY015
EFDC,35900,ENVIRONMENTAL OTHER,POSTAGE,3510,24-Jan-18,122119,100.2,ROYAL MAIL GROUP PLC,ROY015
EFDC,33055,OTHER ACTIVITIES,POSTAGE,3510,24-Jan-18,122119,191.7,ROYAL MAIL GROUP PLC,ROY015
EFDC,33075,OTHER ACTIVITIES,POSTAGE,3510,24-Jan-18,122119,309.65,ROYAL MAIL GROUP PLC,ROY015
EFDC,PP111,FORWARD PLANNING & ECONOMIC,POSTAGE,3510,24-Jan-18,122119,3037.38,ROYAL MAIL GROUP PLC,ROY015
EFDC,RE100,ELECTIONS,POSTAGE,3510,24-Jan-18,122119,95.4,ROYAL MAIL GROUP PLC,ROY015
EFDC,32030,OTHER SUPPORT SERVICES (HR),POSTAGE,3510,24-Jan-18,122119,44.1,ROYAL MAIL GROUP PLC,ROY015
EFDC,32220,OTHER SUPPORT SERVICES (HR),AGENCY STAFF,0120,17-Jan-18,122123,1313.58,HAYS SPECIALIST RECRUITMENT LTD,HAY011
EFDC,32220,OTHER SUPPORT SERVICES (HR),AGENCY STAFF,0120,24-Jan-18,122124,1118.55,HAYS SPECIALIST RECRUITMENT LTD,HAY011
EFDC,32220,OTHER SUPPORT SERVICES (HR),AGENCY STAFF,0120,17-Jan-18,122125,898.37,HAYS SPECIALIST RECRUITMENT LTD,HAY011
EFDC,YB400,SUPERVISION/MANAGEMENT SPECIAL,TREE  MAINTENANCE,1070,10-Jan-18,122126,895,J. CURRY & CO LTD,CUR001
EFDC,GD190,VOLUNTARY SECTOR SUPPORT,GROUNDS MAINTENANCE,1040,24-Jan-18,122132,75.67,BIFFA MUNICIPAL LTD,BIF001
EFDC,HI126,HIGHWAYS,OTHER MAINTENANCE,1050,24-Jan-18,122132,50.45,BIFFA MUNICIPAL LTD,BIF001
EFDC,WC200,WASTE MANAGEMENT,CONTRIBUTIONS FROM OTHER L.A'S,9060,24-Jan-18,122132,1606.4,BIFFA MUNICIPAL LTD,BIF001
EFDC,RS301,NORTH WEALD CENTRE,RENTS,9410,24-Jan-18,122132,-600,BIFFA MUNICIPAL LTD,BIF001
EFDC,OS100,PARKS & GROUNDS,GROUNDS MAINTENANCE,1040,24-Jan-18,122132,18.67,BIFFA MUNICIPAL LTD,BIF001
EFDC,SC100,WASTE MANAGEMENT,CLEANSING CONTRACTORS,4320,24-Jan-18,122132,410.67,BIFFA MUNICIPAL LTD,BIF001
EFDC,WC300,WASTE MANAGEMENT,CLEANSING CONTRACTORS,4320,24-Jan-18,122132,332.5,BIFFA MUNICIPAL LTD,BIF001
EFDC,PS100,CAR PARKING,CLEANSING CONTRACTORS,4320,24-Jan-18,122132,-284.17,BIFFA MUNICIPAL LTD,BIF001
EFDC,YB400,SUPERVISION/MANAGEMENT SPECIAL,CLEANSING CONTRACTORS,4320,24-Jan-18,122132,17.51,BIFFA MUNICIPAL LTD,BIF001
EFDC,YB400,SUPERVISION/MANAGEMENT SPECIAL,CLEANSING CONTRACTORS,4320,24-Jan-18,122132,50.45,BIFFA MUNICIPAL LTD,BIF001
EFDC,WC200,WASTE MANAGEMENT,CLEANSING CONTRACTORS,4320,24-Jan-18,122132,296.35,BIFFA MUNICIPAL LTD,BIF001
EFDC,WC200,WASTE MANAGEMENT,CLEANSING CONTRACTORS,4320,24-Jan-18,122132,5921.41,BIFFA MUNICIPAL LTD,BIF001
EFDC,WC200,WASTE MANAGEMENT,CLEANSING CONTRACTORS,4320,24-Jan-18,122132,14464,BIFFA MUNICIPAL LTD,BIF001
EFDC,WC200,WASTE MANAGEMENT,CLEANSING CONTRACTORS,4320,24-Jan-18,122132,-100,BIFFA MUNICIPAL LTD,BIF001
EFDC,WC102,WASTE MANAGEMENT,CLEANSING CONTRACTORS,4320,24-Jan-18,122132,340.04,BIFFA MUNICIPAL LTD,BIF001
EFDC,WC100,WASTE MANAGEMENT,CLEANSING CONTRACTORS,4320,24-Jan-18,122132,7103.65,BIFFA MUNICIPAL LTD,BIF001
EFDC,27050,ACCOMMODATION,REFUSE REMOVAL,1640,24-Jan-18,122132,416.52,BIFFA MUNICIPAL LTD,BIF001
EFDC,23110,ACCOMMODATION,REFUSE REMOVAL,1640,24-Jan-18,122132,10.68,BIFFA MUNICIPAL LTD,BIF001
EFDC,27050,ACCOMMODATION,REFUSE REMOVAL,1640,24-Jan-18,122132,145,BIFFA MUNICIPAL LTD,BIF001
EFDC,23140,ACCOMMODATION,REFUSE REMOVAL,1640,24-Jan-18,122132,21.36,BIFFA MUNICIPAL LTD,BIF001
EFDC,23110,ACCOMMODATION,REFUSE REMOVAL,1640,24-Jan-18,122132,82.35,BIFFA MUNICIPAL LTD,BIF001
EFDC,27110,ACCOMMODATION,REFUSE REMOVAL,1640,24-Jan-18,122132,10.68,BIFFA MUNICIPAL LTD,BIF001
EFDC,YB400,SUPERVISION/MANAGEMENT SPECIAL,REFUSE REMOVAL,1640,24-Jan-18,122132,1252.77,BIFFA MUNICIPAL LTD,BIF001
EFDC,YB620,SUPERVISION/MANAGEMENT SPECIAL,REFUSE REMOVAL,1640,24-Jan-18,122132,10.68,BIFFA MUNICIPAL LTD,BIF001
EFDC,YB500,SUPERVISION/MANAGEMENT SPECIAL,REFUSE REMOVAL,1640,24-Jan-18,122132,10.68,BIFFA MUNICIPAL LTD,BIF001
EFDC,27150,"COMMUNITY, HEALTH & WELLBEING",REFUSE REMOVAL,1640,24-Jan-18,122132,10.68,BIFFA MUNICIPAL LTD,BIF001
EFDC,UO130,LAND & PROPERTY,REFUSE REMOVAL,1640,24-Jan-18,122132,10.09,BIFFA MUNICIPAL LTD,BIF001
EFDC,WC100,WASTE MANAGEMENT,EQUIPMENT - NEW,3010,24-Jan-18,122132,912,BIFFA MUNICIPAL LTD,BIF001
EFDC,WC100,WASTE MANAGEMENT,EQUIPMENT - NEW,3010,24-Jan-18,122132,5082.67,BIFFA MUNICIPAL LTD,BIF001
EFDC,PS100,CAR PARKING,BANKING AND CASH COLLECTION,3440,17-Jan-18,122137,784.73,CHIPSIDE LIMITED,CHI030
EFDC,PS100,CAR PARKING,BANKING AND CASH COLLECTION,3440,17-Jan-18,122138,1096.07,CHIPSIDE LIMITED,CHI030
EFDC,CAPCM,COMMUNITIES CAPITAL,EQUIPMENT ACQUISITION,C330,10-Jan-18,122143,6400,ADVANCED VISION SURVEILLANCE LTD,ADV001
EFDC,CAPCM,COMMUNITIES CAPITAL,EQUIPMENT ACQUISITION,C330,17-Jan-18,122175,6400,ADVANCED VISION SURVEILLANCE LTD,ADV001
EFDC,36650,OTHER ACTIVITIES,AGENCY STAFF,0120,24-Jan-18,122255,923.3,ADECCO UK LTD,ADE002
EFDC,36650,OTHER ACTIVITIES,AGENCY STAFF,0120,17-Jan-18,122257,751.83,ADECCO UK LTD,ADE002
EFDC,PS100,CAR PARKING,OTHER MAINTENANCE,1050,31-Jan-18,122260,2968.8,MURRILL CONSTRUCTION LTD,MUR004
EFDC,PS100,CAR PARKING,OTHER MAINTENANCE,1050,31-Jan-18,122261,986.72,MURRILL CONSTRUCTION LTD,MUR004
EFDC,PS100,CAR PARKING,OTHER MAINTENANCE,1050,31-Jan-18,122262,1326.6,MURRILL CONSTRUCTION LTD,MUR004
EFDC,PS100,CAR PARKING,OTHER MAINTENANCE,1050,31-Jan-18,122263,986.72,MURRILL CONSTRUCTION LTD,MUR004
EFDC,PS100,CAR PARKING,OTHER MAINTENANCE,1050,31-Jan-18,122264,1547.7,MURRILL CONSTRUCTION LTD,MUR004
EFDC,RM300,PLANNED & CYCLICAL MAINTENANCE,BUILDING MAINTENANCE,1010,17-Jan-18,122271,2034.24,GRACELANDS COMPLETE MAINTENANCE SERVICES LTD,GRA007
EFDC,CAPCM,COMMUNITIES CAPITAL,WORKS,A040,17-Jan-18,122271,7850.24,GRACELANDS COMPLETE MAINTENANCE SERVICES LTD,GRA007
EFDC,CAPCM,COMMUNITIES CAPITAL,CONSTRUCTION,D030,17-Jan-18,122273,2630,STACE LLP,STA012
EFDC,42520,GOVERNANCE SUPPORT SERVICES,EQUIPMENT - NEW,3010,28-Feb-18,122275,556.41,TANGIBLE BENEFIT LTD,TAN001
EFDC,35300,ENVIRONMENTAL OTHER,VEHICLE HIRE,2620,17-Jan-18,122278,2200,ERNEST DOE & SONS LTD,ERN001
EFDC,LA100,LAA POOLED FUNDS,LAA EXPENDITURE,Y100,10-Jan-18,122287,4600,POLICE & CRIME COMMISSIONER FOR ESSEX,POL007
EFDC,YB110,SUPERVISION/MANAGEMENT SPECIAL,ELECTRICITY,1120,10-Jan-18,122293,10.01,BRITISH GAS,BRI040
EFDC,YB110,SUPERVISION/MANAGEMENT SPECIAL,ELECTRICITY,1120,10-Jan-18,122293,12.74,BRITISH GAS,BRI040
EFDC,YB110,SUPERVISION/MANAGEMENT SPECIAL,ELECTRICITY,1120,10-Jan-18,122293,12.74,BRITISH GAS,BRI040
EFDC,YB110,SUPERVISION/MANAGEMENT SPECIAL,ELECTRICITY,1120,10-Jan-18,122293,11.91,BRITISH GAS,BRI040
EFDC,YB110,SUPERVISION/MANAGEMENT SPECIAL,ELECTRICITY,1120,10-Jan-18,122293,12.74,BRITISH GAS,BRI040
EFDC,YB110,SUPERVISION/MANAGEMENT SPECIAL,ELECTRICITY,1120,10-Jan-18,122293,10.67,BRITISH GAS,BRI040
EFDC,YB110,SUPERVISION/MANAGEMENT SPECIAL,ELECTRICITY,1120,10-Jan-18,122293,13.57,BRITISH GAS,BRI040
EFDC,YB110,SUPERVISION/MANAGEMENT SPECIAL,ELECTRICITY,1120,10-Jan-18,122293,7.55,BRITISH GAS,BRI040
EFDC,YB110,SUPERVISION/MANAGEMENT SPECIAL,ELECTRICITY,1120,10-Jan-18,122293,12.69,BRITISH GAS,BRI040
EFDC,YB110,SUPERVISION/MANAGEMENT SPECIAL,ELECTRICITY,1120,10-Jan-18,122293,38.08,BRITISH GAS,BRI040
EFDC,YB110,SUPERVISION/MANAGEMENT SPECIAL,ELECTRICITY,1120,10-Jan-18,122293,13.68,BRITISH GAS,BRI040
EFDC,YB110,SUPERVISION/MANAGEMENT SPECIAL,ELECTRICITY,1120,10-Jan-18,122293,12.12,BRITISH GAS,BRI040
EFDC,YB110,SUPERVISION/MANAGEMENT SPECIAL,ELECTRICITY,1120,10-Jan-18,122293,13.37,BRITISH GAS,BRI040
EFDC,YB110,SUPERVISION/MANAGEMENT SPECIAL,ELECTRICITY,1120,10-Jan-18,122293,12.43,BRITISH GAS,BRI040
EFDC,YB110,SUPERVISION/MANAGEMENT SPECIAL,ELECTRICITY,1120,10-Jan-18,122293,14.61,BRITISH GAS,BRI040
EFDC,YB110,SUPERVISION/MANAGEMENT SPECIAL,ELECTRICITY,1120,10-Jan-18,122293,14.82,BRITISH GAS,BRI040
EFDC,YB110,SUPERVISION/MANAGEMENT SPECIAL,ELECTRICITY,1120,10-Jan-18,122293,13.16,BRITISH GAS,BRI040
EFDC,YB110,SUPERVISION/MANAGEMENT SPECIAL,ELECTRICITY,1120,10-Jan-18,122293,14.51,BRITISH GAS,BRI040
EFDC,YB110,SUPERVISION/MANAGEMENT SPECIAL,ELECTRICITY,1120,10-Jan-18,122293,15.82,BRITISH GAS,BRI040
EFDC,YB110,SUPERVISION/MANAGEMENT SPECIAL,ELECTRICITY,1120,10-Jan-18,122293,15.03,BRITISH GAS,BRI040
EFDC,YB110,SUPERVISION/MANAGEMENT SPECIAL,ELECTRICITY,1120,10-Jan-18,122293,33.13,BRITISH GAS,BRI040
EFDC,YB110,SUPERVISION/MANAGEMENT SPECIAL,ELECTRICITY,1120,10-Jan-18,122293,10.33,BRITISH GAS,BRI040
EFDC,YB110,SUPERVISION/MANAGEMENT SPECIAL,ELECTRICITY,1120,10-Jan-18,122293,17.58,BRITISH GAS,BRI040
EFDC,YB110,SUPERVISION/MANAGEMENT SPECIAL,ELECTRICITY,1120,10-Jan-18,122293,9.69,BRITISH GAS,BRI040
EFDC,YB110,SUPERVISION/MANAGEMENT SPECIAL,ELECTRICITY,1120,10-Jan-18,122293,14.31,BRITISH GAS,BRI040
EFDC,YB110,SUPERVISION/MANAGEMENT SPECIAL,ELECTRICITY,1120,10-Jan-18,122293,36.27,BRITISH GAS,BRI040
EFDC,YB110,SUPERVISION/MANAGEMENT SPECIAL,ELECTRICITY,1120,10-Jan-18,122293,18.27,BRITISH GAS,BRI040
EFDC,YB110,SUPERVISION/MANAGEMENT SPECIAL,ELECTRICITY,1120,10-Jan-18,122293,15.88,BRITISH GAS,BRI040
EFDC,YB110,SUPERVISION/MANAGEMENT SPECIAL,ELECTRICITY,1120,10-Jan-18,122293,7.55,BRITISH GAS,BRI040
EFDC,YB110,SUPERVISION/MANAGEMENT SPECIAL,ELECTRICITY,1120,10-Jan-18,122293,11.22,BRITISH GAS,BRI040
EFDC,YB110,SUPERVISION/MANAGEMENT SPECIAL,ELECTRICITY,1120,10-Jan-18,122293,7.55,BRITISH GAS,BRI040
EFDC,YB110,SUPERVISION/MANAGEMENT SPECIAL,ELECTRICITY,1120,10-Jan-18,122293,17.83,BRITISH GAS,BRI040
EFDC,YB110,SUPERVISION/MANAGEMENT SPECIAL,ELECTRICITY,1120,10-Jan-18,122293,14.09,BRITISH GAS,BRI040
EFDC,YB110,SUPERVISION/MANAGEMENT SPECIAL,ELECTRICITY,1120,10-Jan-18,122293,10.33,BRITISH GAS,BRI040
EFDC,YB110,SUPERVISION/MANAGEMENT SPECIAL,ELECTRICITY,1120,10-Jan-18,122293,15.34,BRITISH GAS,BRI040
EFDC,YB110,SUPERVISION/MANAGEMENT SPECIAL,ELECTRICITY,1120,10-Jan-18,122293,13.68,BRITISH GAS,BRI040
EFDC,YB110,SUPERVISION/MANAGEMENT SPECIAL,ELECTRICITY,1120,10-Jan-18,122293,14.82,BRITISH GAS,BRI040
EFDC,YB110,SUPERVISION/MANAGEMENT SPECIAL,ELECTRICITY,1120,10-Jan-18,122293,12.85,BRITISH GAS,BRI040
EFDC,YB110,SUPERVISION/MANAGEMENT SPECIAL,ELECTRICITY,1120,10-Jan-18,122293,15.57,BRITISH GAS,BRI040
EFDC,YB110,SUPERVISION/MANAGEMENT SPECIAL,ELECTRICITY,1120,10-Jan-18,122293,15.65,BRITISH GAS,BRI040
EFDC,YB110,SUPERVISION/MANAGEMENT SPECIAL,ELECTRICITY,1120,10-Jan-18,122293,11.99,BRITISH GAS,BRI040
EFDC,YB110,SUPERVISION/MANAGEMENT SPECIAL,ELECTRICITY,1120,10-Jan-18,122293,11.76,BRITISH GAS,BRI040
EFDC,YB110,SUPERVISION/MANAGEMENT SPECIAL,ELECTRICITY,1120,10-Jan-18,122293,19.24,BRITISH GAS,BRI040
EFDC,YB110,SUPERVISION/MANAGEMENT SPECIAL,ELECTRICITY,1120,10-Jan-18,122293,20.74,BRITISH GAS,BRI040
EFDC,YB110,SUPERVISION/MANAGEMENT SPECIAL,ELECTRICITY,1120,10-Jan-18,122293,10.67,BRITISH GAS,BRI040
EFDC,YB110,SUPERVISION/MANAGEMENT SPECIAL,ELECTRICITY,1120,10-Jan-18,122293,15.34,BRITISH GAS,BRI040
EFDC,YB110,SUPERVISION/MANAGEMENT SPECIAL,ELECTRICITY,1120,10-Jan-18,122293,7.55,BRITISH GAS,BRI040
EFDC,YB110,SUPERVISION/MANAGEMENT SPECIAL,ELECTRICITY,1120,10-Jan-18,122293,25.4,BRITISH GAS,BRI040
EFDC,YB110,SUPERVISION/MANAGEMENT SPECIAL,ELECTRICITY,1120,10-Jan-18,122293,13.57,BRITISH GAS,BRI040
EFDC,YB110,SUPERVISION/MANAGEMENT SPECIAL,ELECTRICITY,1120,10-Jan-18,122293,15.03,BRITISH GAS,BRI040
EFDC,YB110,SUPERVISION/MANAGEMENT SPECIAL,ELECTRICITY,1120,10-Jan-18,122293,14.71,BRITISH GAS,BRI040
EFDC,YB110,SUPERVISION/MANAGEMENT SPECIAL,ELECTRICITY,1120,10-Jan-18,122293,14.09,BRITISH GAS,BRI040
EFDC,YB110,SUPERVISION/MANAGEMENT SPECIAL,ELECTRICITY,1120,10-Jan-18,122293,14.09,BRITISH GAS,BRI040
EFDC,YB110,SUPERVISION/MANAGEMENT SPECIAL,ELECTRICITY,1120,10-Jan-18,122293,14.4,BRITISH GAS,BRI040
EFDC,YB110,SUPERVISION/MANAGEMENT SPECIAL,ELECTRICITY,1120,10-Jan-18,122293,14.4,BRITISH GAS,BRI040
EFDC,YB110,SUPERVISION/MANAGEMENT SPECIAL,ELECTRICITY,1120,10-Jan-18,122293,10.67,BRITISH GAS,BRI040
EFDC,YB110,SUPERVISION/MANAGEMENT SPECIAL,ELECTRICITY,1120,10-Jan-18,122293,10.81,BRITISH GAS,BRI040
EFDC,YB110,SUPERVISION/MANAGEMENT SPECIAL,ELECTRICITY,1120,10-Jan-18,122293,12.43,BRITISH GAS,BRI040
EFDC,YB110,SUPERVISION/MANAGEMENT SPECIAL,ELECTRICITY,1120,10-Jan-18,122293,15.76,BRITISH GAS,BRI040
EFDC,YB110,SUPERVISION/MANAGEMENT SPECIAL,ELECTRICITY,1120,10-Jan-18,122293,25.18,BRITISH GAS,BRI040
EFDC,YB110,SUPERVISION/MANAGEMENT SPECIAL,ELECTRICITY,1120,10-Jan-18,122293,12.64,BRITISH GAS,BRI040
EFDC,YB110,SUPERVISION/MANAGEMENT SPECIAL,ELECTRICITY,1120,10-Jan-18,122293,10.15,BRITISH GAS,BRI040
EFDC,YB110,SUPERVISION/MANAGEMENT SPECIAL,ELECTRICITY,1120,10-Jan-18,122293,12.89,BRITISH GAS,BRI040
EFDC,YB110,SUPERVISION/MANAGEMENT SPECIAL,ELECTRICITY,1120,10-Jan-18,122293,11.08,BRITISH GAS,BRI040
EFDC,YB110,SUPERVISION/MANAGEMENT SPECIAL,ELECTRICITY,1120,10-Jan-18,122293,12.64,BRITISH GAS,BRI040
EFDC,YB110,SUPERVISION/MANAGEMENT SPECIAL,ELECTRICITY,1120,10-Jan-18,122293,12.85,BRITISH GAS,BRI040
EFDC,YB110,SUPERVISION/MANAGEMENT SPECIAL,ELECTRICITY,1120,10-Jan-18,122293,76.6,BRITISH GAS,BRI040
EFDC,YB110,SUPERVISION/MANAGEMENT SPECIAL,ELECTRICITY,1120,10-Jan-18,122293,14.36,BRITISH GAS,BRI040
EFDC,YB110,SUPERVISION/MANAGEMENT SPECIAL,ELECTRICITY,1120,10-Jan-18,122293,23.44,BRITISH GAS,BRI040
EFDC,YB110,SUPERVISION/MANAGEMENT SPECIAL,ELECTRICITY,1120,10-Jan-18,122293,12.12,BRITISH GAS,BRI040
EFDC,YB110,SUPERVISION/MANAGEMENT SPECIAL,ELECTRICITY,1120,10-Jan-18,122293,13.82,BRITISH GAS,BRI040
EFDC,YB110,SUPERVISION/MANAGEMENT SPECIAL,ELECTRICITY,1120,10-Jan-18,122293,23.23,BRITISH GAS,BRI040
EFDC,YB110,SUPERVISION/MANAGEMENT SPECIAL,ELECTRICITY,1120,10-Jan-18,122293,25.16,BRITISH GAS,BRI040
EFDC,YB110,SUPERVISION/MANAGEMENT SPECIAL,ELECTRICITY,1120,10-Jan-18,122293,16.1,BRITISH GAS,BRI040
EFDC,YB110,SUPERVISION/MANAGEMENT SPECIAL,ELECTRICITY,1120,10-Jan-18,122293,12.43,BRITISH GAS,BRI040
EFDC,YB110,SUPERVISION/MANAGEMENT SPECIAL,ELECTRICITY,1120,10-Jan-18,122293,8.28,BRITISH GAS,BRI040
EFDC,YB110,SUPERVISION/MANAGEMENT SPECIAL,ELECTRICITY,1120,10-Jan-18,122293,16.75,BRITISH GAS,BRI040
EFDC,YB110,SUPERVISION/MANAGEMENT SPECIAL,ELECTRICITY,1120,10-Jan-18,122293,28.29,BRITISH GAS,BRI040
EFDC,YB110,SUPERVISION/MANAGEMENT SPECIAL,ELECTRICITY,1120,10-Jan-18,122293,9.94,BRITISH GAS,BRI040
EFDC,YB110,SUPERVISION/MANAGEMENT SPECIAL,ELECTRICITY,1120,10-Jan-18,122293,14.82,BRITISH GAS,BRI040
EFDC,YB110,SUPERVISION/MANAGEMENT SPECIAL,ELECTRICITY,1120,10-Jan-18,122293,13.78,BRITISH GAS,BRI040
EFDC,YB110,SUPERVISION/MANAGEMENT SPECIAL,ELECTRICITY,1120,10-Jan-18,122293,14.3,BRITISH GAS,BRI040
EFDC,YB110,SUPERVISION/MANAGEMENT SPECIAL,ELECTRICITY,1120,10-Jan-18,122293,14.19,BRITISH GAS,BRI040
EFDC,YB110,SUPERVISION/MANAGEMENT SPECIAL,ELECTRICITY,1120,10-Jan-18,122293,15.03,BRITISH GAS,BRI040
EFDC,YB110,SUPERVISION/MANAGEMENT SPECIAL,ELECTRICITY,1120,10-Jan-18,122293,10.41,BRITISH GAS,BRI040
EFDC,YB110,SUPERVISION/MANAGEMENT SPECIAL,ELECTRICITY,1120,10-Jan-18,122293,13.03,BRITISH GAS,BRI040
EFDC,YB110,SUPERVISION/MANAGEMENT SPECIAL,ELECTRICITY,1120,10-Jan-18,122293,19.58,BRITISH GAS,BRI040
EFDC,YB110,SUPERVISION/MANAGEMENT SPECIAL,ELECTRICITY,1120,10-Jan-18,122293,12.42,BRITISH GAS,BRI040
EFDC,YB110,SUPERVISION/MANAGEMENT SPECIAL,ELECTRICITY,1120,10-Jan-18,122293,12.49,BRITISH GAS,BRI040
EFDC,YB110,SUPERVISION/MANAGEMENT SPECIAL,ELECTRICITY,1120,10-Jan-18,122293,12.29,BRITISH GAS,BRI040
EFDC,YB110,SUPERVISION/MANAGEMENT SPECIAL,ELECTRICITY,1120,10-Jan-18,122293,20.91,BRITISH GAS,BRI040
EFDC,YB110,SUPERVISION/MANAGEMENT SPECIAL,ELECTRICITY,1120,10-Jan-18,122293,43.65,BRITISH GAS,BRI040
EFDC,YB110,SUPERVISION/MANAGEMENT SPECIAL,ELECTRICITY,1120,10-Jan-18,122293,13.88,BRITISH GAS,BRI040
EFDC,YB110,SUPERVISION/MANAGEMENT SPECIAL,ELECTRICITY,1120,10-Jan-18,122293,18.02,BRITISH GAS,BRI040
EFDC,YB110,SUPERVISION/MANAGEMENT SPECIAL,ELECTRICITY,1120,10-Jan-18,122293,18.23,BRITISH GAS,BRI040
EFDC,YB110,SUPERVISION/MANAGEMENT SPECIAL,ELECTRICITY,1120,10-Jan-18,122293,13.05,BRITISH GAS,BRI040
EFDC,YB110,SUPERVISION/MANAGEMENT SPECIAL,ELECTRICITY,1120,10-Jan-18,122293,11.46,BRITISH GAS,BRI040
EFDC,YB110,SUPERVISION/MANAGEMENT SPECIAL,ELECTRICITY,1120,10-Jan-18,122293,14.05,BRITISH GAS,BRI040
EFDC,YB110,SUPERVISION/MANAGEMENT SPECIAL,ELECTRICITY,1120,10-Jan-18,122293,11.46,BRITISH GAS,BRI040
EFDC,YB110,SUPERVISION/MANAGEMENT SPECIAL,ELECTRICITY,1120,10-Jan-18,122293,17.31,BRITISH GAS,BRI040
EFDC,YB110,SUPERVISION/MANAGEMENT SPECIAL,ELECTRICITY,1120,10-Jan-18,122293,11.35,BRITISH GAS,BRI040
EFDC,YB110,SUPERVISION/MANAGEMENT SPECIAL,ELECTRICITY,1120,10-Jan-18,122293,11.35,BRITISH GAS,BRI040
EFDC,YB110,SUPERVISION/MANAGEMENT SPECIAL,ELECTRICITY,1120,10-Jan-18,122293,22.83,BRITISH GAS,BRI040
EFDC,YB110,SUPERVISION/MANAGEMENT SPECIAL,ELECTRICITY,1120,10-Jan-18,122293,20.49,BRITISH GAS,BRI040
EFDC,YB110,SUPERVISION/MANAGEMENT SPECIAL,ELECTRICITY,1120,10-Jan-18,122293,22.46,BRITISH GAS,BRI040
EFDC,YB110,SUPERVISION/MANAGEMENT SPECIAL,ELECTRICITY,1120,10-Jan-18,122293,14.05,BRITISH GAS,BRI040
EFDC,YB110,SUPERVISION/MANAGEMENT SPECIAL,ELECTRICITY,1120,10-Jan-18,122293,22.72,BRITISH GAS,BRI040
EFDC,YB110,SUPERVISION/MANAGEMENT SPECIAL,ELECTRICITY,1120,10-Jan-18,122293,13.45,BRITISH GAS,BRI040
EFDC,YB110,SUPERVISION/MANAGEMENT SPECIAL,ELECTRICITY,1120,10-Jan-18,122293,14.24,BRITISH GAS,BRI040
EFDC,YB110,SUPERVISION/MANAGEMENT SPECIAL,ELECTRICITY,1120,10-Jan-18,122293,11.33,BRITISH GAS,BRI040
EFDC,YB110,SUPERVISION/MANAGEMENT SPECIAL,ELECTRICITY,1120,10-Jan-18,122293,9.81,BRITISH GAS,BRI040
EFDC,YB110,SUPERVISION/MANAGEMENT SPECIAL,ELECTRICITY,1120,10-Jan-18,122293,19.55,BRITISH GAS,BRI040
EFDC,YB110,SUPERVISION/MANAGEMENT SPECIAL,ELECTRICITY,1120,10-Jan-18,122293,26.96,BRITISH GAS,BRI040
EFDC,YB110,SUPERVISION/MANAGEMENT SPECIAL,ELECTRICITY,1120,10-Jan-18,122293,8.03,BRITISH GAS,BRI040
EFDC,YB110,SUPERVISION/MANAGEMENT SPECIAL,ELECTRICITY,1120,10-Jan-18,122293,19.69,BRITISH GAS,BRI040
EFDC,YB110,SUPERVISION/MANAGEMENT SPECIAL,ELECTRICITY,1120,10-Jan-18,122293,27.67,BRITISH GAS,BRI040
EFDC,YB110,SUPERVISION/MANAGEMENT SPECIAL,ELECTRICITY,1120,10-Jan-18,122293,21.11,BRITISH GAS,BRI040
EFDC,YB110,SUPERVISION/MANAGEMENT SPECIAL,ELECTRICITY,1120,10-Jan-18,122293,16.62,BRITISH GAS,BRI040
EFDC,YB110,SUPERVISION/MANAGEMENT SPECIAL,ELECTRICITY,1120,10-Jan-18,122293,10.4,BRITISH GAS,BRI040
EFDC,YB110,SUPERVISION/MANAGEMENT SPECIAL,ELECTRICITY,1120,10-Jan-18,122293,8.52,BRITISH GAS,BRI040
EFDC,YB110,SUPERVISION/MANAGEMENT SPECIAL,ELECTRICITY,1120,10-Jan-18,122293,13.14,BRITISH GAS,BRI040
EFDC,YB110,SUPERVISION/MANAGEMENT SPECIAL,ELECTRICITY,1120,10-Jan-18,122293,8.03,BRITISH GAS,BRI040
EFDC,YB110,SUPERVISION/MANAGEMENT SPECIAL,ELECTRICITY,1120,10-Jan-18,122293,8.03,BRITISH GAS,BRI040
EFDC,YB110,SUPERVISION/MANAGEMENT SPECIAL,ELECTRICITY,1120,10-Jan-18,122293,30.29,BRITISH GAS,BRI040
EFDC,YB110,SUPERVISION/MANAGEMENT SPECIAL,ELECTRICITY,1120,10-Jan-18,122293,9.71,BRITISH GAS,BRI040
EFDC,YB110,SUPERVISION/MANAGEMENT SPECIAL,ELECTRICITY,1120,10-Jan-18,122293,9.81,BRITISH GAS,BRI040
EFDC,YB110,SUPERVISION/MANAGEMENT SPECIAL,ELECTRICITY,1120,10-Jan-18,122293,34.24,BRITISH GAS,BRI040
EFDC,YB110,SUPERVISION/MANAGEMENT SPECIAL,ELECTRICITY,1120,10-Jan-18,122293,14.26,BRITISH GAS,BRI040
EFDC,YB110,SUPERVISION/MANAGEMENT SPECIAL,ELECTRICITY,1120,10-Jan-18,122293,8.52,BRITISH GAS,BRI040
EFDC,YB110,SUPERVISION/MANAGEMENT SPECIAL,ELECTRICITY,1120,10-Jan-18,122293,11.62,BRITISH GAS,BRI040
EFDC,YB110,SUPERVISION/MANAGEMENT SPECIAL,ELECTRICITY,1120,10-Jan-18,122293,13.64,BRITISH GAS,BRI040
EFDC,YB110,SUPERVISION/MANAGEMENT SPECIAL,ELECTRICITY,1120,10-Jan-18,122293,43.34,BRITISH GAS,BRI040
EFDC,YB110,SUPERVISION/MANAGEMENT SPECIAL,ELECTRICITY,1120,10-Jan-18,122293,13.12,BRITISH GAS,BRI040
EFDC,YB110,SUPERVISION/MANAGEMENT SPECIAL,ELECTRICITY,1120,10-Jan-18,122293,15.4,BRITISH GAS,BRI040
EFDC,YB110,SUPERVISION/MANAGEMENT SPECIAL,ELECTRICITY,1120,10-Jan-18,122293,3.44,BRITISH GAS,BRI040
EFDC,YB110,SUPERVISION/MANAGEMENT SPECIAL,ELECTRICITY,1120,10-Jan-18,122293,4.59,BRITISH GAS,BRI040
EFDC,YB110,SUPERVISION/MANAGEMENT SPECIAL,ELECTRICITY,1120,10-Jan-18,122293,18.2,BRITISH GAS,BRI040
EFDC,YB110,SUPERVISION/MANAGEMENT SPECIAL,ELECTRICITY,1120,10-Jan-18,122293,8.03,BRITISH GAS,BRI040
EFDC,YB110,SUPERVISION/MANAGEMENT SPECIAL,ELECTRICITY,1120,10-Jan-18,122293,42.99,BRITISH GAS,BRI040
EFDC,YB110,SUPERVISION/MANAGEMENT SPECIAL,ELECTRICITY,1120,10-Jan-18,122293,8.03,BRITISH GAS,BRI040
EFDC,YB110,SUPERVISION/MANAGEMENT SPECIAL,ELECTRICITY,1120,10-Jan-18,122293,89.45,BRITISH GAS,BRI040
EFDC,YB110,SUPERVISION/MANAGEMENT SPECIAL,ELECTRICITY,1120,10-Jan-18,122293,8.52,BRITISH GAS,BRI040
EFDC,YB110,SUPERVISION/MANAGEMENT SPECIAL,ELECTRICITY,1120,10-Jan-18,122293,16.84,BRITISH GAS,BRI040
EFDC,YB110,SUPERVISION/MANAGEMENT SPECIAL,ELECTRICITY,1120,10-Jan-18,122293,8.03,BRITISH GAS,BRI040
EFDC,YB110,SUPERVISION/MANAGEMENT SPECIAL,ELECTRICITY,1120,10-Jan-18,122293,19.34,BRITISH GAS,BRI040
EFDC,YB110,SUPERVISION/MANAGEMENT SPECIAL,ELECTRICITY,1120,10-Jan-18,122293,8.03,BRITISH GAS,BRI040
EFDC,YB110,SUPERVISION/MANAGEMENT SPECIAL,ELECTRICITY,1120,10-Jan-18,122293,8.03,BRITISH GAS,BRI040
EFDC,YB110,SUPERVISION/MANAGEMENT SPECIAL,ELECTRICITY,1120,10-Jan-18,122293,26.36,BRITISH GAS,BRI040
EFDC,YB110,SUPERVISION/MANAGEMENT SPECIAL,ELECTRICITY,1120,10-Jan-18,122293,28.64,BRITISH GAS,BRI040
EFDC,YB110,SUPERVISION/MANAGEMENT SPECIAL,ELECTRICITY,1120,10-Jan-18,122293,9.86,BRITISH GAS,BRI040
EFDC,YB110,SUPERVISION/MANAGEMENT SPECIAL,ELECTRICITY,1120,10-Jan-18,122293,13.33,BRITISH GAS,BRI040
EFDC,YB110,SUPERVISION/MANAGEMENT SPECIAL,ELECTRICITY,1120,10-Jan-18,122293,20.09,BRITISH GAS,BRI040
EFDC,YB110,SUPERVISION/MANAGEMENT SPECIAL,ELECTRICITY,1120,10-Jan-18,122293,28.74,BRITISH GAS,BRI040
EFDC,YB110,SUPERVISION/MANAGEMENT SPECIAL,ELECTRICITY,1120,10-Jan-18,122293,11.14,BRITISH GAS,BRI040
EFDC,YB110,SUPERVISION/MANAGEMENT SPECIAL,ELECTRICITY,1120,10-Jan-18,122293,7.51,BRITISH GAS,BRI040
EFDC,YB110,SUPERVISION/MANAGEMENT SPECIAL,ELECTRICITY,1120,10-Jan-18,122293,30.99,BRITISH GAS,BRI040
EFDC,YB110,SUPERVISION/MANAGEMENT SPECIAL,ELECTRICITY,1120,10-Jan-18,122293,13.23,BRITISH GAS,BRI040
EFDC,YB110,SUPERVISION/MANAGEMENT SPECIAL,ELECTRICITY,1120,10-Jan-18,122293,12.13,BRITISH GAS,BRI040
EFDC,YB110,SUPERVISION/MANAGEMENT SPECIAL,ELECTRICITY,1120,10-Jan-18,122293,14.65,BRITISH GAS,BRI040
EFDC,YB110,SUPERVISION/MANAGEMENT SPECIAL,ELECTRICITY,1120,10-Jan-18,122293,18.01,BRITISH GAS,BRI040
EFDC,YB110,SUPERVISION/MANAGEMENT SPECIAL,ELECTRICITY,1120,10-Jan-18,122293,8.96,BRITISH GAS,BRI040
EFDC,YB110,SUPERVISION/MANAGEMENT SPECIAL,ELECTRICITY,1120,10-Jan-18,122293,13.21,BRITISH GAS,BRI040
EFDC,YB110,SUPERVISION/MANAGEMENT SPECIAL,ELECTRICITY,1120,10-Jan-18,122293,11.41,BRITISH GAS,BRI040
EFDC,YB110,SUPERVISION/MANAGEMENT SPECIAL,ELECTRICITY,1120,10-Jan-18,122293,14.56,BRITISH GAS,BRI040
EFDC,YB110,SUPERVISION/MANAGEMENT SPECIAL,ELECTRICITY,1120,10-Jan-18,122293,11.61,BRITISH GAS,BRI040
EFDC,YB110,SUPERVISION/MANAGEMENT SPECIAL,ELECTRICITY,1120,10-Jan-18,122293,11.95,BRITISH GAS,BRI040
EFDC,YB110,SUPERVISION/MANAGEMENT SPECIAL,ELECTRICITY,1120,10-Jan-18,122293,12.18,BRITISH GAS,BRI040
EFDC,YB110,SUPERVISION/MANAGEMENT SPECIAL,ELECTRICITY,1120,10-Jan-18,122293,11.99,BRITISH GAS,BRI040
EFDC,YB110,SUPERVISION/MANAGEMENT SPECIAL,ELECTRICITY,1120,10-Jan-18,122293,16.37,BRITISH GAS,BRI040
EFDC,YB110,SUPERVISION/MANAGEMENT SPECIAL,ELECTRICITY,1120,10-Jan-18,122293,16.37,BRITISH GAS,BRI040
EFDC,YB110,SUPERVISION/MANAGEMENT SPECIAL,ELECTRICITY,1120,10-Jan-18,122293,17.8,BRITISH GAS,BRI040
EFDC,YB110,SUPERVISION/MANAGEMENT SPECIAL,ELECTRICITY,1120,10-Jan-18,122293,17.17,BRITISH GAS,BRI040
EFDC,YB110,SUPERVISION/MANAGEMENT SPECIAL,ELECTRICITY,1120,10-Jan-18,122293,16.36,BRITISH GAS,BRI040
EFDC,YB110,SUPERVISION/MANAGEMENT SPECIAL,ELECTRICITY,1120,10-Jan-18,122293,24.31,BRITISH GAS,BRI040
EFDC,YB110,SUPERVISION/MANAGEMENT SPECIAL,ELECTRICITY,1120,10-Jan-18,122293,14.22,BRITISH GAS,BRI040
EFDC,YB110,SUPERVISION/MANAGEMENT SPECIAL,ELECTRICITY,1120,10-Jan-18,122293,16.79,BRITISH GAS,BRI040
EFDC,YB110,SUPERVISION/MANAGEMENT SPECIAL,ELECTRICITY,1120,10-Jan-18,122293,12.53,BRITISH GAS,BRI040
EFDC,YB110,SUPERVISION/MANAGEMENT SPECIAL,ELECTRICITY,1120,10-Jan-18,122293,16.27,BRITISH GAS,BRI040
EFDC,YB110,SUPERVISION/MANAGEMENT SPECIAL,ELECTRICITY,1120,10-Jan-18,122293,12.28,BRITISH GAS,BRI040
EFDC,YB110,SUPERVISION/MANAGEMENT SPECIAL,ELECTRICITY,1120,10-Jan-18,122293,14.03,BRITISH GAS,BRI040
EFDC,YB110,SUPERVISION/MANAGEMENT SPECIAL,ELECTRICITY,1120,10-Jan-18,122293,12.42,BRITISH GAS,BRI040
EFDC,YB110,SUPERVISION/MANAGEMENT SPECIAL,ELECTRICITY,1120,10-Jan-18,122293,12.42,BRITISH GAS,BRI040
EFDC,YB110,SUPERVISION/MANAGEMENT SPECIAL,ELECTRICITY,1120,10-Jan-18,122293,11.48,BRITISH GAS,BRI040
EFDC,YB110,SUPERVISION/MANAGEMENT SPECIAL,ELECTRICITY,1120,10-Jan-18,122293,12.46,BRITISH GAS,BRI040
EFDC,YB110,SUPERVISION/MANAGEMENT SPECIAL,ELECTRICITY,1120,10-Jan-18,122293,6.13,BRITISH GAS,BRI040
EFDC,YB110,SUPERVISION/MANAGEMENT SPECIAL,ELECTRICITY,1120,10-Jan-18,122293,18.64,BRITISH GAS,BRI040
EFDC,YB110,SUPERVISION/MANAGEMENT SPECIAL,ELECTRICITY,1120,10-Jan-18,122293,12.49,BRITISH GAS,BRI040
EFDC,YB110,SUPERVISION/MANAGEMENT SPECIAL,ELECTRICITY,1120,10-Jan-18,122293,43.57,BRITISH GAS,BRI040
EFDC,YB110,SUPERVISION/MANAGEMENT SPECIAL,ELECTRICITY,1120,10-Jan-18,122293,10.62,BRITISH GAS,BRI040
EFDC,YB110,SUPERVISION/MANAGEMENT SPECIAL,ELECTRICITY,1120,10-Jan-18,122293,41.98,BRITISH GAS,BRI040
EFDC,YB110,SUPERVISION/MANAGEMENT SPECIAL,ELECTRICITY,1120,10-Jan-18,122293,97.26,BRITISH GAS,BRI040
EFDC,YB110,SUPERVISION/MANAGEMENT SPECIAL,ELECTRICITY,1120,10-Jan-18,122293,13.31,BRITISH GAS,BRI040
EFDC,YB110,SUPERVISION/MANAGEMENT SPECIAL,ELECTRICITY,1120,10-Jan-18,122293,10.24,BRITISH GAS,BRI040
EFDC,YB110,SUPERVISION/MANAGEMENT SPECIAL,ELECTRICITY,1120,10-Jan-18,122293,13.75,BRITISH GAS,BRI040
EFDC,YB110,SUPERVISION/MANAGEMENT SPECIAL,ELECTRICITY,1120,10-Jan-18,122293,13.68,BRITISH GAS,BRI040
EFDC,YB110,SUPERVISION/MANAGEMENT SPECIAL,ELECTRICITY,1120,10-Jan-18,122293,12.08,BRITISH GAS,BRI040
EFDC,YB110,SUPERVISION/MANAGEMENT SPECIAL,ELECTRICITY,1120,10-Jan-18,122293,11.42,BRITISH GAS,BRI040
EFDC,YB110,SUPERVISION/MANAGEMENT SPECIAL,ELECTRICITY,1120,10-Jan-18,122293,12.89,BRITISH GAS,BRI040
EFDC,YB110,SUPERVISION/MANAGEMENT SPECIAL,ELECTRICITY,1120,10-Jan-18,122293,17.79,BRITISH GAS,BRI040
EFDC,YB110,SUPERVISION/MANAGEMENT SPECIAL,ELECTRICITY,1120,10-Jan-18,122293,11.88,BRITISH GAS,BRI040
EFDC,YB110,SUPERVISION/MANAGEMENT SPECIAL,ELECTRICITY,1120,10-Jan-18,122293,13.75,BRITISH GAS,BRI040
EFDC,YB110,SUPERVISION/MANAGEMENT SPECIAL,ELECTRICITY,1120,10-Jan-18,122293,27.42,BRITISH GAS,BRI040
EFDC,YB110,SUPERVISION/MANAGEMENT SPECIAL,ELECTRICITY,1120,10-Jan-18,122293,11.63,BRITISH GAS,BRI040
EFDC,YB110,SUPERVISION/MANAGEMENT SPECIAL,ELECTRICITY,1120,10-Jan-18,122293,13.15,BRITISH GAS,BRI040
EFDC,YB110,SUPERVISION/MANAGEMENT SPECIAL,ELECTRICITY,1120,10-Jan-18,122293,8.97,BRITISH GAS,BRI040
EFDC,YB110,SUPERVISION/MANAGEMENT SPECIAL,ELECTRICITY,1120,10-Jan-18,122293,124.03,BRITISH GAS,BRI040
EFDC,YB110,SUPERVISION/MANAGEMENT SPECIAL,ELECTRICITY,1120,10-Jan-18,122293,11.36,BRITISH GAS,BRI040
EFDC,YB110,SUPERVISION/MANAGEMENT SPECIAL,ELECTRICITY,1120,10-Jan-18,122293,16.05,BRITISH GAS,BRI040
EFDC,YB110,SUPERVISION/MANAGEMENT SPECIAL,ELECTRICITY,1120,10-Jan-18,122293,21.74,BRITISH GAS,BRI040
EFDC,YB110,SUPERVISION/MANAGEMENT SPECIAL,ELECTRICITY,1120,10-Jan-18,122293,14.33,BRITISH GAS,BRI040
EFDC,YB110,SUPERVISION/MANAGEMENT SPECIAL,ELECTRICITY,1120,10-Jan-18,122293,26.57,BRITISH GAS,BRI040
EFDC,YB110,SUPERVISION/MANAGEMENT SPECIAL,ELECTRICITY,1120,10-Jan-18,122293,12.97,BRITISH GAS,BRI040
EFDC,YB110,SUPERVISION/MANAGEMENT SPECIAL,ELECTRICITY,1120,10-Jan-18,122293,17.25,BRITISH GAS,BRI040
EFDC,YB110,SUPERVISION/MANAGEMENT SPECIAL,ELECTRICITY,1120,10-Jan-18,122293,13.33,BRITISH GAS,BRI040
EFDC,YB110,SUPERVISION/MANAGEMENT SPECIAL,ELECTRICITY,1120,10-Jan-18,122293,12.9,BRITISH GAS,BRI040
EFDC,YB110,SUPERVISION/MANAGEMENT SPECIAL,ELECTRICITY,1120,10-Jan-18,122293,19.84,BRITISH GAS,BRI040
EFDC,YB110,SUPERVISION/MANAGEMENT SPECIAL,ELECTRICITY,1120,10-Jan-18,122293,19.67,BRITISH GAS,BRI040
EFDC,YB110,SUPERVISION/MANAGEMENT SPECIAL,ELECTRICITY,1120,10-Jan-18,122293,24,BRITISH GAS,BRI040
EFDC,YB110,SUPERVISION/MANAGEMENT SPECIAL,ELECTRICITY,1120,10-Jan-18,122293,19.95,BRITISH GAS,BRI040
EFDC,YB110,SUPERVISION/MANAGEMENT SPECIAL,ELECTRICITY,1120,10-Jan-18,122293,13.08,BRITISH GAS,BRI040
EFDC,YB110,SUPERVISION/MANAGEMENT SPECIAL,ELECTRICITY,1120,10-Jan-18,122293,10.8,BRITISH GAS,BRI040
EFDC,YB110,SUPERVISION/MANAGEMENT SPECIAL,ELECTRICITY,1120,10-Jan-18,122293,12.93,BRITISH GAS,BRI040
EFDC,YB140,SUPERVISION/MANAGEMENT SPECIAL,ELECTRICITY,1120,10-Jan-18,122293,21.85,BRITISH GAS,BRI040
EFDC,YB140,SUPERVISION/MANAGEMENT SPECIAL,ELECTRICITY,1120,10-Jan-18,122293,17.12,BRITISH GAS,BRI040
EFDC,YB140,SUPERVISION/MANAGEMENT SPECIAL,ELECTRICITY,1120,10-Jan-18,122293,30.11,BRITISH GAS,BRI040
EFDC,YB140,SUPERVISION/MANAGEMENT SPECIAL,ELECTRICITY,1120,10-Jan-18,122293,19.21,BRITISH GAS,BRI040
EFDC,YB140,SUPERVISION/MANAGEMENT SPECIAL,ELECTRICITY,1120,10-Jan-18,122293,20.16,BRITISH GAS,BRI040
EFDC,YB140,SUPERVISION/MANAGEMENT SPECIAL,ELECTRICITY,1120,10-Jan-18,122293,19.21,BRITISH GAS,BRI040
EFDC,YB300,SUPERVISION/MANAGEMENT SPECIAL,ELECTRICITY,1120,10-Jan-18,122293,29.02,BRITISH GAS,BRI040
EFDC,EH112,LAND DRAINAGE/SEWERAGE,OTHER MAINTENANCE,1050,10-Jan-18,122293,141.97,BRITISH GAS,BRI040
EFDC,YB200,SUPERVISION/MANAGEMENT SPECIAL,ELECTRICITY,1120,10-Jan-18,122293,11.81,BRITISH GAS,BRI040
EFDC,YB140,SUPERVISION/MANAGEMENT SPECIAL,ELECTRICITY,1120,10-Jan-18,122293,18.16,BRITISH GAS,BRI040
EFDC,YB140,SUPERVISION/MANAGEMENT SPECIAL,ELECTRICITY,1120,10-Jan-18,122293,19.98,BRITISH GAS,BRI040
EFDC,YB140,SUPERVISION/MANAGEMENT SPECIAL,ELECTRICITY,1120,10-Jan-18,122293,11.65,BRITISH GAS,BRI040
EFDC,YB140,SUPERVISION/MANAGEMENT SPECIAL,ELECTRICITY,1120,10-Jan-18,122293,22.06,BRITISH GAS,BRI040
EFDC,YB140,SUPERVISION/MANAGEMENT SPECIAL,ELECTRICITY,1120,10-Jan-18,122293,11.74,BRITISH GAS,BRI040
EFDC,YB140,SUPERVISION/MANAGEMENT SPECIAL,ELECTRICITY,1120,10-Jan-18,122293,26.37,BRITISH GAS,BRI040
EFDC,YB140,SUPERVISION/MANAGEMENT SPECIAL,ELECTRICITY,1120,10-Jan-18,122293,12.93,BRITISH GAS,BRI040
EFDC,YB140,SUPERVISION/MANAGEMENT SPECIAL,ELECTRICITY,1120,10-Jan-18,122293,16.57,BRITISH GAS,BRI040
EFDC,YB140,SUPERVISION/MANAGEMENT SPECIAL,ELECTRICITY,1120,10-Jan-18,122293,21.97,BRITISH GAS,BRI040
EFDC,YB110,SUPERVISION/MANAGEMENT SPECIAL,ELECTRICITY,1120,10-Jan-18,122293,15.38,BRITISH GAS,BRI040
EFDC,YB110,SUPERVISION/MANAGEMENT SPECIAL,ELECTRICITY,1120,10-Jan-18,122293,11.2,BRITISH GAS,BRI040
EFDC,YB110,SUPERVISION/MANAGEMENT SPECIAL,ELECTRICITY,1120,10-Jan-18,122293,13.64,BRITISH GAS,BRI040
EFDC,YB110,SUPERVISION/MANAGEMENT SPECIAL,ELECTRICITY,1120,10-Jan-18,122293,13.91,BRITISH GAS,BRI040
EFDC,YB110,SUPERVISION/MANAGEMENT SPECIAL,ELECTRICITY,1120,10-Jan-18,122293,823.34,BRITISH GAS,BRI040
EFDC,YB110,SUPERVISION/MANAGEMENT SPECIAL,ELECTRICITY,1120,10-Jan-18,122293,13.79,BRITISH GAS,BRI040
EFDC,YB110,SUPERVISION/MANAGEMENT SPECIAL,ELECTRICITY,1120,10-Jan-18,122293,27.08,BRITISH GAS,BRI040
EFDC,YB110,SUPERVISION/MANAGEMENT SPECIAL,ELECTRICITY,1120,10-Jan-18,122293,15.72,BRITISH GAS,BRI040
EFDC,YB110,SUPERVISION/MANAGEMENT SPECIAL,ELECTRICITY,1120,10-Jan-18,122293,12.95,BRITISH GAS,BRI040
EFDC,YB110,SUPERVISION/MANAGEMENT SPECIAL,ELECTRICITY,1120,10-Jan-18,122293,14.52,BRITISH GAS,BRI040
EFDC,YB110,SUPERVISION/MANAGEMENT SPECIAL,ELECTRICITY,1120,10-Jan-18,122293,16.91,BRITISH GAS,BRI040
EFDC,YB110,SUPERVISION/MANAGEMENT SPECIAL,ELECTRICITY,1120,10-Jan-18,122293,15.14,BRITISH GAS,BRI040
EFDC,YB110,SUPERVISION/MANAGEMENT SPECIAL,ELECTRICITY,1120,10-Jan-18,122293,20.07,BRITISH GAS,BRI040
EFDC,YB110,SUPERVISION/MANAGEMENT SPECIAL,ELECTRICITY,1120,10-Jan-18,122293,-13.1,BRITISH GAS,BRI040
EFDC,YB110,SUPERVISION/MANAGEMENT SPECIAL,ELECTRICITY,1120,10-Jan-18,122293,-10.27,BRITISH GAS,BRI040
EFDC,YB110,SUPERVISION/MANAGEMENT SPECIAL,ELECTRICITY,1120,10-Jan-18,122293,-173.57,BRITISH GAS,BRI040
EFDC,YB110,SUPERVISION/MANAGEMENT SPECIAL,ELECTRICITY,1120,10-Jan-18,122293,-452.76,BRITISH GAS,BRI040
EFDC,YB110,SUPERVISION/MANAGEMENT SPECIAL,ELECTRICITY,1120,10-Jan-18,122293,-12.74,BRITISH GAS,BRI040
EFDC,YB110,SUPERVISION/MANAGEMENT SPECIAL,ELECTRICITY,1120,10-Jan-18,122293,-195.76,BRITISH GAS,BRI040
EFDC,YB110,SUPERVISION/MANAGEMENT SPECIAL,ELECTRICITY,1120,10-Jan-18,122293,-14.53,BRITISH GAS,BRI040
EFDC,YB110,SUPERVISION/MANAGEMENT SPECIAL,ELECTRICITY,1120,10-Jan-18,122293,-14.81,BRITISH GAS,BRI040
EFDC,YB110,SUPERVISION/MANAGEMENT SPECIAL,ELECTRICITY,1120,10-Jan-18,122293,-13.3,BRITISH GAS,BRI040
EFDC,YB110,SUPERVISION/MANAGEMENT SPECIAL,ELECTRICITY,1120,10-Jan-18,122293,21.02,BRITISH GAS,BRI040
EFDC,YB110,SUPERVISION/MANAGEMENT SPECIAL,ELECTRICITY,1120,10-Jan-18,122293,16.17,BRITISH GAS,BRI040
EFDC,YB110,SUPERVISION/MANAGEMENT SPECIAL,ELECTRICITY,1120,10-Jan-18,122293,56.59,BRITISH GAS,BRI040
EFDC,YB110,SUPERVISION/MANAGEMENT SPECIAL,ELECTRICITY,1120,10-Jan-18,122293,11.62,BRITISH GAS,BRI040
EFDC,YB110,SUPERVISION/MANAGEMENT SPECIAL,ELECTRICITY,1120,10-Jan-18,122293,7.74,BRITISH GAS,BRI040
EFDC,YB110,SUPERVISION/MANAGEMENT SPECIAL,ELECTRICITY,1120,10-Jan-18,122293,22.67,BRITISH GAS,BRI040
EFDC,YB110,SUPERVISION/MANAGEMENT SPECIAL,ELECTRICITY,1120,10-Jan-18,122293,14.92,BRITISH GAS,BRI040
EFDC,YB110,SUPERVISION/MANAGEMENT SPECIAL,ELECTRICITY,1120,10-Jan-18,122293,15.89,BRITISH GAS,BRI040
EFDC,YB110,SUPERVISION/MANAGEMENT SPECIAL,ELECTRICITY,1120,10-Jan-18,122293,15.65,BRITISH GAS,BRI040
EFDC,YB110,SUPERVISION/MANAGEMENT SPECIAL,ELECTRICITY,1120,10-Jan-18,122293,63.96,BRITISH GAS,BRI040
EFDC,YB110,SUPERVISION/MANAGEMENT SPECIAL,ELECTRICITY,1120,10-Jan-18,122293,16.01,BRITISH GAS,BRI040
EFDC,YB110,SUPERVISION/MANAGEMENT SPECIAL,ELECTRICITY,1120,10-Jan-18,122293,14.51,BRITISH GAS,BRI040
EFDC,YB110,SUPERVISION/MANAGEMENT SPECIAL,ELECTRICITY,1120,10-Jan-18,122293,21.39,BRITISH GAS,BRI040
EFDC,YB110,SUPERVISION/MANAGEMENT SPECIAL,ELECTRICITY,1120,10-Jan-18,122293,11.74,BRITISH GAS,BRI040
EFDC,YB110,SUPERVISION/MANAGEMENT SPECIAL,ELECTRICITY,1120,10-Jan-18,122293,11.12,BRITISH GAS,BRI040
EFDC,YB110,SUPERVISION/MANAGEMENT SPECIAL,ELECTRICITY,1120,10-Jan-18,122293,8.94,BRITISH GAS,BRI040
EFDC,YB110,SUPERVISION/MANAGEMENT SPECIAL,ELECTRICITY,1120,10-Jan-18,122293,14.27,BRITISH GAS,BRI040
EFDC,YB110,SUPERVISION/MANAGEMENT SPECIAL,ELECTRICITY,1120,10-Jan-18,122293,10.32,BRITISH GAS,BRI040
EFDC,YB110,SUPERVISION/MANAGEMENT SPECIAL,ELECTRICITY,1120,10-Jan-18,122293,9.97,BRITISH GAS,BRI040
EFDC,YB110,SUPERVISION/MANAGEMENT SPECIAL,ELECTRICITY,1120,10-Jan-18,122293,63.58,BRITISH GAS,BRI040
EFDC,YB110,SUPERVISION/MANAGEMENT SPECIAL,ELECTRICITY,1120,10-Jan-18,122293,12.29,BRITISH GAS,BRI040
EFDC,YB110,SUPERVISION/MANAGEMENT SPECIAL,ELECTRICITY,1120,10-Jan-18,122293,10.76,BRITISH GAS,BRI040
EFDC,YB110,SUPERVISION/MANAGEMENT SPECIAL,ELECTRICITY,1120,10-Jan-18,122293,13.41,BRITISH GAS,BRI040
EFDC,YB110,SUPERVISION/MANAGEMENT SPECIAL,ELECTRICITY,1120,10-Jan-18,122293,-12.8,BRITISH GAS,BRI040
EFDC,YB110,SUPERVISION/MANAGEMENT SPECIAL,ELECTRICITY,1120,10-Jan-18,122293,13.07,BRITISH GAS,BRI040
EFDC,YB110,SUPERVISION/MANAGEMENT SPECIAL,ELECTRICITY,1120,10-Jan-18,122293,59.18,BRITISH GAS,BRI040
EFDC,YB110,SUPERVISION/MANAGEMENT SPECIAL,ELECTRICITY,1120,10-Jan-18,122293,-12.93,BRITISH GAS,BRI040
EFDC,YB110,SUPERVISION/MANAGEMENT SPECIAL,ELECTRICITY,1120,10-Jan-18,122293,63.75,BRITISH GAS,BRI040
EFDC,YB110,SUPERVISION/MANAGEMENT SPECIAL,ELECTRICITY,1120,10-Jan-18,122293,61.78,BRITISH GAS,BRI040
EFDC,YB110,SUPERVISION/MANAGEMENT SPECIAL,ELECTRICITY,1120,10-Jan-18,122293,61.79,BRITISH GAS,BRI040
EFDC,YB110,SUPERVISION/MANAGEMENT SPECIAL,ELECTRICITY,1120,10-Jan-18,122293,90.13,BRITISH GAS,BRI040
EFDC,YB110,SUPERVISION/MANAGEMENT SPECIAL,ELECTRICITY,1120,10-Jan-18,122293,65.93,BRITISH GAS,BRI040
EFDC,YB110,SUPERVISION/MANAGEMENT SPECIAL,ELECTRICITY,1120,10-Jan-18,122293,12.87,BRITISH GAS,BRI040
EFDC,YB110,SUPERVISION/MANAGEMENT SPECIAL,ELECTRICITY,1120,10-Jan-18,122293,12.4,BRITISH GAS,BRI040
EFDC,YB110,SUPERVISION/MANAGEMENT SPECIAL,ELECTRICITY,1120,10-Jan-18,122293,12.41,BRITISH GAS,BRI040
EFDC,YB110,SUPERVISION/MANAGEMENT SPECIAL,ELECTRICITY,1120,10-Jan-18,122293,12.6,BRITISH GAS,BRI040
EFDC,YB110,SUPERVISION/MANAGEMENT SPECIAL,ELECTRICITY,1120,10-Jan-18,122293,14.95,BRITISH GAS,BRI040
EFDC,YB110,SUPERVISION/MANAGEMENT SPECIAL,ELECTRICITY,1120,10-Jan-18,122293,15.56,BRITISH GAS,BRI040
EFDC,YB110,SUPERVISION/MANAGEMENT SPECIAL,ELECTRICITY,1120,10-Jan-18,122293,67.39,BRITISH GAS,BRI040
EFDC,YB110,SUPERVISION/MANAGEMENT SPECIAL,ELECTRICITY,1120,10-Jan-18,122293,13.49,BRITISH GAS,BRI040
EFDC,YB110,SUPERVISION/MANAGEMENT SPECIAL,ELECTRICITY,1120,10-Jan-18,122293,13.5,BRITISH GAS,BRI040
EFDC,YB110,SUPERVISION/MANAGEMENT SPECIAL,ELECTRICITY,1120,10-Jan-18,122293,7.75,BRITISH GAS,BRI040
EFDC,YB110,SUPERVISION/MANAGEMENT SPECIAL,ELECTRICITY,1120,10-Jan-18,122293,10.98,BRITISH GAS,BRI040
EFDC,YB110,SUPERVISION/MANAGEMENT SPECIAL,ELECTRICITY,1120,10-Jan-18,122293,12.81,BRITISH GAS,BRI040
EFDC,YB110,SUPERVISION/MANAGEMENT SPECIAL,ELECTRICITY,1120,10-Jan-18,122293,111.77,BRITISH GAS,BRI040
EFDC,YB110,SUPERVISION/MANAGEMENT SPECIAL,ELECTRICITY,1120,10-Jan-18,122293,6.96,BRITISH GAS,BRI040
EFDC,YB110,SUPERVISION/MANAGEMENT SPECIAL,ELECTRICITY,1120,10-Jan-18,122293,12.77,BRITISH GAS,BRI040
EFDC,YB110,SUPERVISION/MANAGEMENT SPECIAL,ELECTRICITY,1120,10-Jan-18,122293,69.67,BRITISH GAS,BRI040
EFDC,YB110,SUPERVISION/MANAGEMENT SPECIAL,ELECTRICITY,1120,10-Jan-18,122293,14.24,BRITISH GAS,BRI040
EFDC,YB110,SUPERVISION/MANAGEMENT SPECIAL,ELECTRICITY,1120,10-Jan-18,122293,43.99,BRITISH GAS,BRI040
EFDC,YB110,SUPERVISION/MANAGEMENT SPECIAL,ELECTRICITY,1120,10-Jan-18,122293,-12.89,BRITISH GAS,BRI040
EFDC,YB110,SUPERVISION/MANAGEMENT SPECIAL,ELECTRICITY,1120,10-Jan-18,122293,-11.95,BRITISH GAS,BRI040
EFDC,YB110,SUPERVISION/MANAGEMENT SPECIAL,ELECTRICITY,1120,10-Jan-18,122293,-13.6,BRITISH GAS,BRI040
EFDC,YB110,SUPERVISION/MANAGEMENT SPECIAL,ELECTRICITY,1120,10-Jan-18,122293,-12.99,BRITISH GAS,BRI040
EFDC,YB110,SUPERVISION/MANAGEMENT SPECIAL,ELECTRICITY,1120,10-Jan-18,122293,-11.95,BRITISH GAS,BRI040
EFDC,YB110,SUPERVISION/MANAGEMENT SPECIAL,ELECTRICITY,1120,10-Jan-18,122293,-13.47,BRITISH GAS,BRI040
EFDC,YB110,SUPERVISION/MANAGEMENT SPECIAL,ELECTRICITY,1120,10-Jan-18,122293,-12.03,BRITISH GAS,BRI040
EFDC,YB110,SUPERVISION/MANAGEMENT SPECIAL,ELECTRICITY,1120,10-Jan-18,122293,-12.61,BRITISH GAS,BRI040
EFDC,YB110,SUPERVISION/MANAGEMENT SPECIAL,ELECTRICITY,1120,10-Jan-18,122293,14.43,BRITISH GAS,BRI040
EFDC,YB110,SUPERVISION/MANAGEMENT SPECIAL,ELECTRICITY,1120,10-Jan-18,122293,15.44,BRITISH GAS,BRI040
EFDC,YB110,SUPERVISION/MANAGEMENT SPECIAL,ELECTRICITY,1120,10-Jan-18,122293,-13.79,BRITISH GAS,BRI040
EFDC,YB110,SUPERVISION/MANAGEMENT SPECIAL,ELECTRICITY,1120,10-Jan-18,122293,94.12,BRITISH GAS,BRI040
EFDC,YB110,SUPERVISION/MANAGEMENT SPECIAL,ELECTRICITY,1120,10-Jan-18,122293,19.59,BRITISH GAS,BRI040
EFDC,YB110,SUPERVISION/MANAGEMENT SPECIAL,ELECTRICITY,1120,10-Jan-18,122293,-11.83,BRITISH GAS,BRI040
EFDC,YB110,SUPERVISION/MANAGEMENT SPECIAL,ELECTRICITY,1120,10-Jan-18,122293,-13.85,BRITISH GAS,BRI040
EFDC,YB110,SUPERVISION/MANAGEMENT SPECIAL,ELECTRICITY,1120,10-Jan-18,122293,-11.93,BRITISH GAS,BRI040
EFDC,YB110,SUPERVISION/MANAGEMENT SPECIAL,ELECTRICITY,1120,10-Jan-18,122293,-620.13,BRITISH GAS,BRI040
EFDC,YB110,SUPERVISION/MANAGEMENT SPECIAL,ELECTRICITY,1120,10-Jan-18,122293,-206.28,BRITISH GAS,BRI040
EFDC,YB110,SUPERVISION/MANAGEMENT SPECIAL,ELECTRICITY,1120,10-Jan-18,122293,-396.51,BRITISH GAS,BRI040
EFDC,YB110,SUPERVISION/MANAGEMENT SPECIAL,ELECTRICITY,1120,10-Jan-18,122293,13.65,BRITISH GAS,BRI040
EFDC,YB110,SUPERVISION/MANAGEMENT SPECIAL,ELECTRICITY,1120,10-Jan-18,122293,7.67,BRITISH GAS,BRI040
EFDC,YB110,SUPERVISION/MANAGEMENT SPECIAL,ELECTRICITY,1120,10-Jan-18,122293,27.42,BRITISH GAS,BRI040
EFDC,YB110,SUPERVISION/MANAGEMENT SPECIAL,ELECTRICITY,1120,10-Jan-18,122293,17.19,BRITISH GAS,BRI040
EFDC,YB110,SUPERVISION/MANAGEMENT SPECIAL,ELECTRICITY,1120,10-Jan-18,122293,23.1,BRITISH GAS,BRI040
EFDC,YB110,SUPERVISION/MANAGEMENT SPECIAL,ELECTRICITY,1120,10-Jan-18,122293,13.39,BRITISH GAS,BRI040
EFDC,YB110,SUPERVISION/MANAGEMENT SPECIAL,ELECTRICITY,1120,10-Jan-18,122293,12.56,BRITISH GAS,BRI040
EFDC,YB110,SUPERVISION/MANAGEMENT SPECIAL,ELECTRICITY,1120,10-Jan-18,122293,12.58,BRITISH GAS,BRI040
EFDC,YB110,SUPERVISION/MANAGEMENT SPECIAL,ELECTRICITY,1120,10-Jan-18,122293,10.48,BRITISH GAS,BRI040
EFDC,YB110,SUPERVISION/MANAGEMENT SPECIAL,ELECTRICITY,1120,10-Jan-18,122293,11.96,BRITISH GAS,BRI040
EFDC,YB110,SUPERVISION/MANAGEMENT SPECIAL,ELECTRICITY,1120,10-Jan-18,122293,12.3,BRITISH GAS,BRI040
EFDC,YB110,SUPERVISION/MANAGEMENT SPECIAL,ELECTRICITY,1120,10-Jan-18,122293,12.5,BRITISH GAS,BRI040
EFDC,YB110,SUPERVISION/MANAGEMENT SPECIAL,ELECTRICITY,1120,10-Jan-18,122293,14.48,BRITISH GAS,BRI040
EFDC,YB110,SUPERVISION/MANAGEMENT SPECIAL,ELECTRICITY,1120,10-Jan-18,122293,13.51,BRITISH GAS,BRI040
EFDC,YB110,SUPERVISION/MANAGEMENT SPECIAL,ELECTRICITY,1120,10-Jan-18,122293,14.54,BRITISH GAS,BRI040
EFDC,YB110,SUPERVISION/MANAGEMENT SPECIAL,ELECTRICITY,1120,10-Jan-18,122293,17.06,BRITISH GAS,BRI040
EFDC,YB110,SUPERVISION/MANAGEMENT SPECIAL,ELECTRICITY,1120,10-Jan-18,122293,26.18,BRITISH GAS,BRI040
EFDC,YB110,SUPERVISION/MANAGEMENT SPECIAL,ELECTRICITY,1120,10-Jan-18,122293,13.95,BRITISH GAS,BRI040
EFDC,YB110,SUPERVISION/MANAGEMENT SPECIAL,ELECTRICITY,1120,10-Jan-18,122293,13.69,BRITISH GAS,BRI040
EFDC,YB110,SUPERVISION/MANAGEMENT SPECIAL,ELECTRICITY,1120,10-Jan-18,122293,14.17,BRITISH GAS,BRI040
EFDC,YB110,SUPERVISION/MANAGEMENT SPECIAL,ELECTRICITY,1120,10-Jan-18,122293,14.05,BRITISH GAS,BRI040
EFDC,YB110,SUPERVISION/MANAGEMENT SPECIAL,ELECTRICITY,1120,10-Jan-18,122293,14.77,BRITISH GAS,BRI040
EFDC,YB110,SUPERVISION/MANAGEMENT SPECIAL,ELECTRICITY,1120,10-Jan-18,122293,17.23,BRITISH GAS,BRI040
EFDC,YB110,SUPERVISION/MANAGEMENT SPECIAL,ELECTRICITY,1120,10-Jan-18,122293,11.3,BRITISH GAS,BRI040
EFDC,YB110,SUPERVISION/MANAGEMENT SPECIAL,ELECTRICITY,1120,10-Jan-18,122293,12.47,BRITISH GAS,BRI040
EFDC,YB110,SUPERVISION/MANAGEMENT SPECIAL,ELECTRICITY,1120,10-Jan-18,122293,56.27,BRITISH GAS,BRI040
EFDC,YB110,SUPERVISION/MANAGEMENT SPECIAL,ELECTRICITY,1120,10-Jan-18,122293,16.92,BRITISH GAS,BRI040
EFDC,YB110,SUPERVISION/MANAGEMENT SPECIAL,ELECTRICITY,1120,10-Jan-18,122293,15.01,BRITISH GAS,BRI040
EFDC,YB110,SUPERVISION/MANAGEMENT SPECIAL,ELECTRICITY,1120,10-Jan-18,122293,11.49,BRITISH GAS,BRI040
EFDC,YB110,SUPERVISION/MANAGEMENT SPECIAL,ELECTRICITY,1120,10-Jan-18,122293,3.34,BRITISH GAS,BRI040
EFDC,YB110,SUPERVISION/MANAGEMENT SPECIAL,ELECTRICITY,1120,10-Jan-18,122293,23.19,BRITISH GAS,BRI040
EFDC,YB110,SUPERVISION/MANAGEMENT SPECIAL,ELECTRICITY,1120,10-Jan-18,122293,30.44,BRITISH GAS,BRI040
EFDC,YB110,SUPERVISION/MANAGEMENT SPECIAL,ELECTRICITY,1120,10-Jan-18,122293,50.13,BRITISH GAS,BRI040
EFDC,YB110,SUPERVISION/MANAGEMENT SPECIAL,ELECTRICITY,1120,10-Jan-18,122293,23.45,BRITISH GAS,BRI040
EFDC,YB110,SUPERVISION/MANAGEMENT SPECIAL,ELECTRICITY,1120,10-Jan-18,122293,29.3,BRITISH GAS,BRI040
EFDC,YB110,SUPERVISION/MANAGEMENT SPECIAL,ELECTRICITY,1120,10-Jan-18,122293,23.61,BRITISH GAS,BRI040
EFDC,YB110,SUPERVISION/MANAGEMENT SPECIAL,ELECTRICITY,1120,10-Jan-18,122293,27.22,BRITISH GAS,BRI040
EFDC,YB110,SUPERVISION/MANAGEMENT SPECIAL,ELECTRICITY,1120,10-Jan-18,122293,25.24,BRITISH GAS,BRI040
EFDC,YB110,SUPERVISION/MANAGEMENT SPECIAL,ELECTRICITY,1120,10-Jan-18,122293,11.82,BRITISH GAS,BRI040
EFDC,YB110,SUPERVISION/MANAGEMENT SPECIAL,ELECTRICITY,1120,10-Jan-18,122293,12.73,BRITISH GAS,BRI040
EFDC,YB110,SUPERVISION/MANAGEMENT SPECIAL,ELECTRICITY,1120,10-Jan-18,122293,22.62,BRITISH GAS,BRI040
EFDC,YB110,SUPERVISION/MANAGEMENT SPECIAL,ELECTRICITY,1120,10-Jan-18,122293,12.1,BRITISH GAS,BRI040
EFDC,YB110,SUPERVISION/MANAGEMENT SPECIAL,ELECTRICITY,1120,10-Jan-18,122293,11.36,BRITISH GAS,BRI040
EFDC,YB110,SUPERVISION/MANAGEMENT SPECIAL,ELECTRICITY,1120,10-Jan-18,122293,10.56,BRITISH GAS,BRI040
EFDC,YB110,SUPERVISION/MANAGEMENT SPECIAL,ELECTRICITY,1120,10-Jan-18,122293,9.78,BRITISH GAS,BRI040
EFDC,YB110,SUPERVISION/MANAGEMENT SPECIAL,ELECTRICITY,1120,10-Jan-18,122293,8.03,BRITISH GAS,BRI040
EFDC,YB110,SUPERVISION/MANAGEMENT SPECIAL,ELECTRICITY,1120,10-Jan-18,122293,19.98,BRITISH GAS,BRI040
EFDC,YB110,SUPERVISION/MANAGEMENT SPECIAL,ELECTRICITY,1120,10-Jan-18,122293,15.23,BRITISH GAS,BRI040
EFDC,YB110,SUPERVISION/MANAGEMENT SPECIAL,ELECTRICITY,1120,10-Jan-18,122293,13.07,BRITISH GAS,BRI040
EFDC,YB110,SUPERVISION/MANAGEMENT SPECIAL,ELECTRICITY,1120,10-Jan-18,122293,13.17,BRITISH GAS,BRI040
EFDC,YB110,SUPERVISION/MANAGEMENT SPECIAL,ELECTRICITY,1120,10-Jan-18,122293,7.51,BRITISH GAS,BRI040
EFDC,YB110,SUPERVISION/MANAGEMENT SPECIAL,ELECTRICITY,1120,10-Jan-18,122293,16.61,BRITISH GAS,BRI040
EFDC,YB110,SUPERVISION/MANAGEMENT SPECIAL,ELECTRICITY,1120,10-Jan-18,122293,12.05,BRITISH GAS,BRI040
EFDC,YB110,SUPERVISION/MANAGEMENT SPECIAL,ELECTRICITY,1120,10-Jan-18,122293,548.99,BRITISH GAS,BRI040
EFDC,YB110,SUPERVISION/MANAGEMENT SPECIAL,ELECTRICITY,1120,10-Jan-18,122293,13.28,BRITISH GAS,BRI040
EFDC,YB110,SUPERVISION/MANAGEMENT SPECIAL,ELECTRICITY,1120,10-Jan-18,122293,8.03,BRITISH GAS,BRI040
EFDC,YB110,SUPERVISION/MANAGEMENT SPECIAL,ELECTRICITY,1120,10-Jan-18,122293,13.53,BRITISH GAS,BRI040
EFDC,YB110,SUPERVISION/MANAGEMENT SPECIAL,ELECTRICITY,1120,10-Jan-18,122293,10.31,BRITISH GAS,BRI040
EFDC,YB110,SUPERVISION/MANAGEMENT SPECIAL,ELECTRICITY,1120,10-Jan-18,122293,11.95,BRITISH GAS,BRI040
EFDC,YB110,SUPERVISION/MANAGEMENT SPECIAL,ELECTRICITY,1120,10-Jan-18,122293,15.79,BRITISH GAS,BRI040
EFDC,YB110,SUPERVISION/MANAGEMENT SPECIAL,ELECTRICITY,1120,10-Jan-18,122293,13.64,BRITISH GAS,BRI040
EFDC,YB110,SUPERVISION/MANAGEMENT SPECIAL,ELECTRICITY,1120,10-Jan-18,122293,11.87,BRITISH GAS,BRI040
EFDC,YB110,SUPERVISION/MANAGEMENT SPECIAL,ELECTRICITY,1120,10-Jan-18,122293,36.59,BRITISH GAS,BRI040
EFDC,YB110,SUPERVISION/MANAGEMENT SPECIAL,ELECTRICITY,1120,10-Jan-18,122293,10.39,BRITISH GAS,BRI040
EFDC,YB110,SUPERVISION/MANAGEMENT SPECIAL,ELECTRICITY,1120,10-Jan-18,122293,10.6,BRITISH GAS,BRI040
EFDC,YB110,SUPERVISION/MANAGEMENT SPECIAL,ELECTRICITY,1120,10-Jan-18,122293,12.26,BRITISH GAS,BRI040
EFDC,YB110,SUPERVISION/MANAGEMENT SPECIAL,ELECTRICITY,1120,10-Jan-18,122293,11.95,BRITISH GAS,BRI040
EFDC,YB110,SUPERVISION/MANAGEMENT SPECIAL,ELECTRICITY,1120,10-Jan-18,122293,14.57,BRITISH GAS,BRI040
EFDC,YB110,SUPERVISION/MANAGEMENT SPECIAL,ELECTRICITY,1120,10-Jan-18,122293,14.87,BRITISH GAS,BRI040
EFDC,YB110,SUPERVISION/MANAGEMENT SPECIAL,ELECTRICITY,1120,10-Jan-18,122293,14.23,BRITISH GAS,BRI040
EFDC,YB110,SUPERVISION/MANAGEMENT SPECIAL,ELECTRICITY,1120,10-Jan-18,122293,13.71,BRITISH GAS,BRI040
EFDC,YB110,SUPERVISION/MANAGEMENT SPECIAL,ELECTRICITY,1120,10-Jan-18,122293,14.05,BRITISH GAS,BRI040
EFDC,YB110,SUPERVISION/MANAGEMENT SPECIAL,ELECTRICITY,1120,10-Jan-18,122293,15.25,BRITISH GAS,BRI040
EFDC,YB110,SUPERVISION/MANAGEMENT SPECIAL,ELECTRICITY,1120,10-Jan-18,122293,11.77,BRITISH GAS,BRI040
EFDC,YB110,SUPERVISION/MANAGEMENT SPECIAL,ELECTRICITY,1120,10-Jan-18,122293,9.42,BRITISH GAS,BRI040
EFDC,YB110,SUPERVISION/MANAGEMENT SPECIAL,ELECTRICITY,1120,10-Jan-18,122293,4.45,BRITISH GAS,BRI040
EFDC,YB110,SUPERVISION/MANAGEMENT SPECIAL,ELECTRICITY,1120,10-Jan-18,122293,6.36,BRITISH GAS,BRI040
EFDC,YB110,SUPERVISION/MANAGEMENT SPECIAL,ELECTRICITY,1120,10-Jan-18,122293,8.49,BRITISH GAS,BRI040
EFDC,YB110,SUPERVISION/MANAGEMENT SPECIAL,ELECTRICITY,1120,10-Jan-18,122293,14.27,BRITISH GAS,BRI040
EFDC,YB110,SUPERVISION/MANAGEMENT SPECIAL,ELECTRICITY,1120,10-Jan-18,122293,22.5,BRITISH GAS,BRI040
EFDC,YB110,SUPERVISION/MANAGEMENT SPECIAL,ELECTRICITY,1120,10-Jan-18,122293,13.57,BRITISH GAS,BRI040
EFDC,YB110,SUPERVISION/MANAGEMENT SPECIAL,ELECTRICITY,1120,10-Jan-18,122293,10.04,BRITISH GAS,BRI040
EFDC,YB110,SUPERVISION/MANAGEMENT SPECIAL,ELECTRICITY,1120,10-Jan-18,122293,35.82,BRITISH GAS,BRI040
EFDC,YB110,SUPERVISION/MANAGEMENT SPECIAL,ELECTRICITY,1120,10-Jan-18,122293,43.25,BRITISH GAS,BRI040
EFDC,YB110,SUPERVISION/MANAGEMENT SPECIAL,ELECTRICITY,1120,10-Jan-18,122293,8.29,BRITISH GAS,BRI040
EFDC,YB110,SUPERVISION/MANAGEMENT SPECIAL,ELECTRICITY,1120,10-Jan-18,122293,13.71,BRITISH GAS,BRI040
EFDC,YB110,SUPERVISION/MANAGEMENT SPECIAL,ELECTRICITY,1120,10-Jan-18,122293,10.21,BRITISH GAS,BRI040
EFDC,YB110,SUPERVISION/MANAGEMENT SPECIAL,ELECTRICITY,1120,10-Jan-18,122293,20.4,BRITISH GAS,BRI040
EFDC,YB110,SUPERVISION/MANAGEMENT SPECIAL,ELECTRICITY,1120,10-Jan-18,122293,39.06,BRITISH GAS,BRI040
EFDC,YB110,SUPERVISION/MANAGEMENT SPECIAL,ELECTRICITY,1120,10-Jan-18,122293,17.61,BRITISH GAS,BRI040
EFDC,YB110,SUPERVISION/MANAGEMENT SPECIAL,ELECTRICITY,1120,10-Jan-18,122293,15.85,BRITISH GAS,BRI040
EFDC,YB110,SUPERVISION/MANAGEMENT SPECIAL,ELECTRICITY,1120,10-Jan-18,122293,12.41,BRITISH GAS,BRI040
EFDC,YB110,SUPERVISION/MANAGEMENT SPECIAL,ELECTRICITY,1120,10-Jan-18,122293,104.85,BRITISH GAS,BRI040
EFDC,YB110,SUPERVISION/MANAGEMENT SPECIAL,ELECTRICITY,1120,10-Jan-18,122293,11.21,BRITISH GAS,BRI040
EFDC,YB110,SUPERVISION/MANAGEMENT SPECIAL,ELECTRICITY,1120,10-Jan-18,122293,39.2,BRITISH GAS,BRI040
EFDC,YB110,SUPERVISION/MANAGEMENT SPECIAL,ELECTRICITY,1120,10-Jan-18,122293,10.52,BRITISH GAS,BRI040
EFDC,YB110,SUPERVISION/MANAGEMENT SPECIAL,ELECTRICITY,1120,10-Jan-18,122293,14.94,BRITISH GAS,BRI040
EFDC,YB110,SUPERVISION/MANAGEMENT SPECIAL,ELECTRICITY,1120,10-Jan-18,122293,12.28,BRITISH GAS,BRI040
EFDC,YB110,SUPERVISION/MANAGEMENT SPECIAL,ELECTRICITY,1120,10-Jan-18,122293,22.65,BRITISH GAS,BRI040
EFDC,YB110,SUPERVISION/MANAGEMENT SPECIAL,ELECTRICITY,1120,10-Jan-18,122293,15.03,BRITISH GAS,BRI040
EFDC,YB110,SUPERVISION/MANAGEMENT SPECIAL,ELECTRICITY,1120,10-Jan-18,122293,16.59,BRITISH GAS,BRI040
EFDC,YB110,SUPERVISION/MANAGEMENT SPECIAL,ELECTRICITY,1120,10-Jan-18,122293,14.94,BRITISH GAS,BRI040
EFDC,YB110,SUPERVISION/MANAGEMENT SPECIAL,ELECTRICITY,1120,10-Jan-18,122293,14.05,BRITISH GAS,BRI040
EFDC,YB110,SUPERVISION/MANAGEMENT SPECIAL,ELECTRICITY,1120,10-Jan-18,122293,14,BRITISH GAS,BRI040
EFDC,YB110,SUPERVISION/MANAGEMENT SPECIAL,ELECTRICITY,1120,10-Jan-18,122293,13.45,BRITISH GAS,BRI040
EFDC,YB500,SUPERVISION/MANAGEMENT SPECIAL,ELECTRICITY,1120,10-Jan-18,122293,230.41,BRITISH GAS,BRI040
EFDC,YB500,SUPERVISION/MANAGEMENT SPECIAL,ELECTRICITY,1120,10-Jan-18,122293,313.6,BRITISH GAS,BRI040
EFDC,YB500,SUPERVISION/MANAGEMENT SPECIAL,ELECTRICITY,1120,10-Jan-18,122293,42.22,BRITISH GAS,BRI040
EFDC,YB500,SUPERVISION/MANAGEMENT SPECIAL,ELECTRICITY,1120,10-Jan-18,122293,7.74,BRITISH GAS,BRI040
EFDC,YB500,SUPERVISION/MANAGEMENT SPECIAL,ELECTRICITY,1120,10-Jan-18,122293,7.76,BRITISH GAS,BRI040
EFDC,YB500,SUPERVISION/MANAGEMENT SPECIAL,ELECTRICITY,1120,10-Jan-18,122293,18.14,BRITISH GAS,BRI040
EFDC,YB500,SUPERVISION/MANAGEMENT SPECIAL,ELECTRICITY,1120,10-Jan-18,122293,186.44,BRITISH GAS,BRI040
EFDC,YB500,SUPERVISION/MANAGEMENT SPECIAL,ELECTRICITY,1120,10-Jan-18,122293,13.37,BRITISH GAS,BRI040
EFDC,YB500,SUPERVISION/MANAGEMENT SPECIAL,ELECTRICITY,1120,10-Jan-18,122293,7.51,BRITISH GAS,BRI040
EFDC,YB500,SUPERVISION/MANAGEMENT SPECIAL,ELECTRICITY,1120,10-Jan-18,122293,32.75,BRITISH GAS,BRI040
EFDC,YB500,SUPERVISION/MANAGEMENT SPECIAL,ELECTRICITY,1120,10-Jan-18,122293,677.92,BRITISH GAS,BRI040
EFDC,YB500,SUPERVISION/MANAGEMENT SPECIAL,ELECTRICITY,1120,10-Jan-18,122293,304.54,BRITISH GAS,BRI040
EFDC,YB500,SUPERVISION/MANAGEMENT SPECIAL,ELECTRICITY,1120,10-Jan-18,122293,13.21,BRITISH GAS,BRI040
EFDC,YB500,SUPERVISION/MANAGEMENT SPECIAL,ELECTRICITY,1120,10-Jan-18,122293,33.85,BRITISH GAS,BRI040
EFDC,YB500,SUPERVISION/MANAGEMENT SPECIAL,ELECTRICITY,1120,10-Jan-18,122293,174.7,BRITISH GAS,BRI040
EFDC,YB500,SUPERVISION/MANAGEMENT SPECIAL,ELECTRICITY,1120,10-Jan-18,122293,9.93,BRITISH GAS,BRI040
EFDC,YB500,SUPERVISION/MANAGEMENT SPECIAL,ELECTRICITY,1120,10-Jan-18,122293,422.81,BRITISH GAS,BRI040
EFDC,YB500,SUPERVISION/MANAGEMENT SPECIAL,ELECTRICITY,1120,10-Jan-18,122293,17.79,BRITISH GAS,BRI040
EFDC,YB500,SUPERVISION/MANAGEMENT SPECIAL,ELECTRICITY,1120,10-Jan-18,122293,11.87,BRITISH GAS,BRI040
EFDC,YB500,SUPERVISION/MANAGEMENT SPECIAL,ELECTRICITY,1120,10-Jan-18,122293,13.61,BRITISH GAS,BRI040
EFDC,YB500,SUPERVISION/MANAGEMENT SPECIAL,ELECTRICITY,1120,10-Jan-18,122293,9.97,BRITISH GAS,BRI040
EFDC,YB500,SUPERVISION/MANAGEMENT SPECIAL,ELECTRICITY,1120,10-Jan-18,122293,12.91,BRITISH GAS,BRI040
EFDC,YB500,SUPERVISION/MANAGEMENT SPECIAL,ELECTRICITY,1120,10-Jan-18,122293,11.26,BRITISH GAS,BRI040
EFDC,YB500,SUPERVISION/MANAGEMENT SPECIAL,ELECTRICITY,1120,10-Jan-18,122293,8.03,BRITISH GAS,BRI040
EFDC,YB500,SUPERVISION/MANAGEMENT SPECIAL,ELECTRICITY,1120,10-Jan-18,122293,253.86,BRITISH GAS,BRI040
EFDC,YB500,SUPERVISION/MANAGEMENT SPECIAL,ELECTRICITY,1120,10-Jan-18,122293,8.03,BRITISH GAS,BRI040
EFDC,YB500,SUPERVISION/MANAGEMENT SPECIAL,ELECTRICITY,1120,10-Jan-18,122293,46.38,BRITISH GAS,BRI040
EFDC,YB500,SUPERVISION/MANAGEMENT SPECIAL,ELECTRICITY,1120,10-Jan-18,122293,17,BRITISH GAS,BRI040
EFDC,YB520,SUPERVISION/MANAGEMENT SPECIAL,ELECTRICITY,1120,10-Jan-18,122293,225.45,BRITISH GAS,BRI040
EFDC,YB500,SUPERVISION/MANAGEMENT SPECIAL,ELECTRICITY,1120,10-Jan-18,122293,23.35,BRITISH GAS,BRI040
EFDC,YB520,SUPERVISION/MANAGEMENT SPECIAL,ELECTRICITY,1120,10-Jan-18,122293,170.22,BRITISH GAS,BRI040
EFDC,YB110,SUPERVISION/MANAGEMENT SPECIAL,ELECTRICITY,1120,10-Jan-18,122293,8.03,BRITISH GAS,BRI040
EFDC,EH160,OTHER ACTIVITIES,ELECTRICITY,1120,10-Jan-18,122293,8.03,BRITISH GAS,BRI040
EFDC,EH160,OTHER ACTIVITIES,ELECTRICITY,1120,10-Jan-18,122293,20.94,BRITISH GAS,BRI040
EFDC,RS302,NORTH WEALD CENTRE,ELECTRICITY,1120,10-Jan-18,122293,7.76,BRITISH GAS,BRI040
EFDC,RS301,NORTH WEALD CENTRE,ELECTRICITY,1120,10-Jan-18,122293,11.94,BRITISH GAS,BRI040
EFDC,FD100,LAND DRAINAGE/SEWERAGE,ELECTRICITY,1120,10-Jan-18,122293,2027.49,BRITISH GAS,BRI040
EFDC,CH110,"MUSEUM, HERITAGE & CULTURE",ELECTRICITY,1120,10-Jan-18,122293,291.19,BRITISH GAS,BRI040
EFDC,35300,ENVIRONMENTAL OTHER,ELECTRICITY,1120,10-Jan-18,122293,116.97,BRITISH GAS,BRI040
EFDC,EH160,OTHER ACTIVITIES,ELECTRICITY,1120,10-Jan-18,122293,35.12,BRITISH GAS,BRI040
EFDC,EH160,OTHER ACTIVITIES,ELECTRICITY,1120,10-Jan-18,122293,53.69,BRITISH GAS,BRI040
EFDC,EH160,OTHER ACTIVITIES,ELECTRICITY,1120,10-Jan-18,122293,24.91,BRITISH GAS,BRI040
EFDC,UO130,LAND & PROPERTY,ELECTRICITY,1120,10-Jan-18,122293,7.16,BRITISH GAS,BRI040
EFDC,UO130,LAND & PROPERTY,ELECTRICITY,1120,10-Jan-18,122293,13.91,BRITISH GAS,BRI040
EFDC,UO130,LAND & PROPERTY,ELECTRICITY,1120,10-Jan-18,122293,39.01,BRITISH GAS,BRI040
EFDC,UO130,LAND & PROPERTY,ELECTRICITY,1120,10-Jan-18,122293,46.49,BRITISH GAS,BRI040
EFDC,27110,ACCOMMODATION,ELECTRICITY,1120,10-Jan-18,122293,67.26,BRITISH GAS,BRI040
EFDC,YB620,SUPERVISION/MANAGEMENT SPECIAL,ELECTRICITY,1120,10-Jan-18,122293,505.99,BRITISH GAS,BRI040
EFDC,UO130,LAND & PROPERTY,ELECTRICITY,1120,10-Jan-18,122293,19.55,BRITISH GAS,BRI040
EFDC,YB350,SUPERVISION/MANAGEMENT SPECIAL,ELECTRICITY,1120,10-Jan-18,122293,255.4,BRITISH GAS,BRI040
EFDC,27110,ACCOMMODATION,ELECTRICITY,1120,10-Jan-18,122293,71.31,BRITISH GAS,BRI040
EFDC,23130,ACCOMMODATION,ELECTRICITY,1120,10-Jan-18,122293,60.55,BRITISH GAS,BRI040
EFDC,23140,ACCOMMODATION,ELECTRICITY,1120,10-Jan-18,122293,91.13,BRITISH GAS,BRI040
EFDC,23140,ACCOMMODATION,ELECTRICITY,1120,10-Jan-18,122293,179.21,BRITISH GAS,BRI040
EFDC,27150,"COMMUNITY, HEALTH & WELLBEING",ELECTRICITY,1120,10-Jan-18,122293,617.57,BRITISH GAS,BRI040
EFDC,TI190,LAND & PROPERTY,ELECTRICITY,1120,10-Jan-18,122293,316.94,BRITISH GAS,BRI040
EFDC,27110,ACCOMMODATION,ELECTRICITY,1120,10-Jan-18,122293,53.03,BRITISH GAS,BRI040
EFDC,YB110,SUPERVISION/MANAGEMENT SPECIAL,ELECTRICITY,1120,10-Jan-18,122294,21.36,BRITISH GAS,BRI040
EFDC,YB110,SUPERVISION/MANAGEMENT SPECIAL,ELECTRICITY,1120,10-Jan-18,122294,14.69,BRITISH GAS,BRI040
EFDC,YB110,SUPERVISION/MANAGEMENT SPECIAL,ELECTRICITY,1120,10-Jan-18,122294,15.34,BRITISH GAS,BRI040
EFDC,YB110,SUPERVISION/MANAGEMENT SPECIAL,ELECTRICITY,1120,10-Jan-18,122294,7.56,BRITISH GAS,BRI040
EFDC,YB110,SUPERVISION/MANAGEMENT SPECIAL,ELECTRICITY,1120,10-Jan-18,122294,16.81,BRITISH GAS,BRI040
EFDC,YB110,SUPERVISION/MANAGEMENT SPECIAL,ELECTRICITY,1120,10-Jan-18,122294,14.15,BRITISH GAS,BRI040
EFDC,YB110,SUPERVISION/MANAGEMENT SPECIAL,ELECTRICITY,1120,10-Jan-18,122294,12.27,BRITISH GAS,BRI040
EFDC,YB110,SUPERVISION/MANAGEMENT SPECIAL,ELECTRICITY,1120,10-Jan-18,122294,52.81,BRITISH GAS,BRI040
EFDC,YB110,SUPERVISION/MANAGEMENT SPECIAL,ELECTRICITY,1120,10-Jan-18,122294,15.95,BRITISH GAS,BRI040
EFDC,YB110,SUPERVISION/MANAGEMENT SPECIAL,ELECTRICITY,1120,10-Jan-18,122294,14.1,BRITISH GAS,BRI040
EFDC,YB110,SUPERVISION/MANAGEMENT SPECIAL,ELECTRICITY,1120,10-Jan-18,122294,20.53,BRITISH GAS,BRI040
EFDC,YB110,SUPERVISION/MANAGEMENT SPECIAL,ELECTRICITY,1120,10-Jan-18,122294,202.07,BRITISH GAS,BRI040
EFDC,YB110,SUPERVISION/MANAGEMENT SPECIAL,ELECTRICITY,1120,10-Jan-18,122294,22.05,BRITISH GAS,BRI040
EFDC,YB110,SUPERVISION/MANAGEMENT SPECIAL,ELECTRICITY,1120,10-Jan-18,122294,15.36,BRITISH GAS,BRI040
EFDC,YB110,SUPERVISION/MANAGEMENT SPECIAL,ELECTRICITY,1120,10-Jan-18,122294,15.23,BRITISH GAS,BRI040
EFDC,YB110,SUPERVISION/MANAGEMENT SPECIAL,ELECTRICITY,1120,10-Jan-18,122294,13.63,BRITISH GAS,BRI040
EFDC,YB110,SUPERVISION/MANAGEMENT SPECIAL,ELECTRICITY,1120,10-Jan-18,122294,13.02,BRITISH GAS,BRI040
EFDC,YB110,SUPERVISION/MANAGEMENT SPECIAL,ELECTRICITY,1120,10-Jan-18,122294,12.88,BRITISH GAS,BRI040
EFDC,YB110,SUPERVISION/MANAGEMENT SPECIAL,ELECTRICITY,1120,10-Jan-18,122294,14.69,BRITISH GAS,BRI040
EFDC,YB110,SUPERVISION/MANAGEMENT SPECIAL,ELECTRICITY,1120,10-Jan-18,122294,12.88,BRITISH GAS,BRI040
EFDC,YB110,SUPERVISION/MANAGEMENT SPECIAL,ELECTRICITY,1120,10-Jan-18,122294,16.29,BRITISH GAS,BRI040
EFDC,YB110,SUPERVISION/MANAGEMENT SPECIAL,ELECTRICITY,1120,10-Jan-18,122294,16.77,BRITISH GAS,BRI040
EFDC,YB110,SUPERVISION/MANAGEMENT SPECIAL,ELECTRICITY,1120,10-Jan-18,122294,13.13,BRITISH GAS,BRI040
EFDC,YB110,SUPERVISION/MANAGEMENT SPECIAL,ELECTRICITY,1120,10-Jan-18,122294,13.29,BRITISH GAS,BRI040
EFDC,YB110,SUPERVISION/MANAGEMENT SPECIAL,ELECTRICITY,1120,10-Jan-18,122294,14.42,BRITISH GAS,BRI040
EFDC,YB110,SUPERVISION/MANAGEMENT SPECIAL,ELECTRICITY,1120,10-Jan-18,122294,13.37,BRITISH GAS,BRI040
EFDC,YB110,SUPERVISION/MANAGEMENT SPECIAL,ELECTRICITY,1120,10-Jan-18,122294,13.49,BRITISH GAS,BRI040
EFDC,YB110,SUPERVISION/MANAGEMENT SPECIAL,ELECTRICITY,1120,10-Jan-18,122294,19.09,BRITISH GAS,BRI040
EFDC,YB110,SUPERVISION/MANAGEMENT SPECIAL,ELECTRICITY,1120,10-Jan-18,122294,19.78,BRITISH GAS,BRI040
EFDC,YB110,SUPERVISION/MANAGEMENT SPECIAL,ELECTRICITY,1120,10-Jan-18,122294,21.17,BRITISH GAS,BRI040
EFDC,YB110,SUPERVISION/MANAGEMENT SPECIAL,ELECTRICITY,1120,10-Jan-18,122294,20.1,BRITISH GAS,BRI040
EFDC,YB110,SUPERVISION/MANAGEMENT SPECIAL,ELECTRICITY,1120,10-Jan-18,122294,23.2,BRITISH GAS,BRI040
EFDC,YB110,SUPERVISION/MANAGEMENT SPECIAL,ELECTRICITY,1120,10-Jan-18,122294,20.87,BRITISH GAS,BRI040
EFDC,YB110,SUPERVISION/MANAGEMENT SPECIAL,ELECTRICITY,1120,10-Jan-18,122294,13.22,BRITISH GAS,BRI040
EFDC,YB110,SUPERVISION/MANAGEMENT SPECIAL,ELECTRICITY,1120,10-Jan-18,122294,12.55,BRITISH GAS,BRI040
EFDC,YB110,SUPERVISION/MANAGEMENT SPECIAL,ELECTRICITY,1120,10-Jan-18,122294,13.42,BRITISH GAS,BRI040
EFDC,YB110,SUPERVISION/MANAGEMENT SPECIAL,ELECTRICITY,1120,10-Jan-18,122294,13.53,BRITISH GAS,BRI040
EFDC,YB110,SUPERVISION/MANAGEMENT SPECIAL,ELECTRICITY,1120,10-Jan-18,122294,15.3,BRITISH GAS,BRI040
EFDC,YB110,SUPERVISION/MANAGEMENT SPECIAL,ELECTRICITY,1120,10-Jan-18,122294,14.36,BRITISH GAS,BRI040
EFDC,YB110,SUPERVISION/MANAGEMENT SPECIAL,ELECTRICITY,1120,10-Jan-18,122294,12.8,BRITISH GAS,BRI040
EFDC,YB110,SUPERVISION/MANAGEMENT SPECIAL,ELECTRICITY,1120,10-Jan-18,122294,12.77,BRITISH GAS,BRI040
EFDC,YB110,SUPERVISION/MANAGEMENT SPECIAL,ELECTRICITY,1120,10-Jan-18,122294,17.37,BRITISH GAS,BRI040
EFDC,YB110,SUPERVISION/MANAGEMENT SPECIAL,ELECTRICITY,1120,10-Jan-18,122294,20.01,BRITISH GAS,BRI040
EFDC,YB110,SUPERVISION/MANAGEMENT SPECIAL,ELECTRICITY,1120,10-Jan-18,122294,15.96,BRITISH GAS,BRI040
EFDC,YB110,SUPERVISION/MANAGEMENT SPECIAL,ELECTRICITY,1120,10-Jan-18,122294,14.3,BRITISH GAS,BRI040
EFDC,YB110,SUPERVISION/MANAGEMENT SPECIAL,ELECTRICITY,1120,10-Jan-18,122294,22.76,BRITISH GAS,BRI040
EFDC,YB110,SUPERVISION/MANAGEMENT SPECIAL,ELECTRICITY,1120,10-Jan-18,122294,14.67,BRITISH GAS,BRI040
EFDC,YB110,SUPERVISION/MANAGEMENT SPECIAL,ELECTRICITY,1120,10-Jan-18,122294,12.49,BRITISH GAS,BRI040
EFDC,YB110,SUPERVISION/MANAGEMENT SPECIAL,ELECTRICITY,1120,10-Jan-18,122294,13.47,BRITISH GAS,BRI040
EFDC,YB110,SUPERVISION/MANAGEMENT SPECIAL,ELECTRICITY,1120,10-Jan-18,122294,15.4,BRITISH GAS,BRI040
EFDC,YB110,SUPERVISION/MANAGEMENT SPECIAL,ELECTRICITY,1120,10-Jan-18,122294,14.4,BRITISH GAS,BRI040
EFDC,YB110,SUPERVISION/MANAGEMENT SPECIAL,ELECTRICITY,1120,10-Jan-18,122294,14.3,BRITISH GAS,BRI040
EFDC,YB110,SUPERVISION/MANAGEMENT SPECIAL,ELECTRICITY,1120,10-Jan-18,122294,24.9,BRITISH GAS,BRI040
EFDC,YB110,SUPERVISION/MANAGEMENT SPECIAL,ELECTRICITY,1120,10-Jan-18,122294,40.05,BRITISH GAS,BRI040
EFDC,YB110,SUPERVISION/MANAGEMENT SPECIAL,ELECTRICITY,1120,10-Jan-18,122294,23.02,BRITISH GAS,BRI040
EFDC,YB110,SUPERVISION/MANAGEMENT SPECIAL,ELECTRICITY,1120,10-Jan-18,122294,15.55,BRITISH GAS,BRI040
EFDC,YB110,SUPERVISION/MANAGEMENT SPECIAL,ELECTRICITY,1120,10-Jan-18,122294,17.21,BRITISH GAS,BRI040
EFDC,YB110,SUPERVISION/MANAGEMENT SPECIAL,ELECTRICITY,1120,10-Jan-18,122294,7.55,BRITISH GAS,BRI040
EFDC,YB110,SUPERVISION/MANAGEMENT SPECIAL,ELECTRICITY,1120,10-Jan-18,122294,17.06,BRITISH GAS,BRI040
EFDC,YB110,SUPERVISION/MANAGEMENT SPECIAL,ELECTRICITY,1120,10-Jan-18,122294,25.28,BRITISH GAS,BRI040
EFDC,YB110,SUPERVISION/MANAGEMENT SPECIAL,ELECTRICITY,1120,10-Jan-18,122294,25.56,BRITISH GAS,BRI040
EFDC,YB110,SUPERVISION/MANAGEMENT SPECIAL,ELECTRICITY,1120,10-Jan-18,122294,25.97,BRITISH GAS,BRI040
EFDC,YB110,SUPERVISION/MANAGEMENT SPECIAL,ELECTRICITY,1120,10-Jan-18,122294,26.71,BRITISH GAS,BRI040
EFDC,YB110,SUPERVISION/MANAGEMENT SPECIAL,ELECTRICITY,1120,10-Jan-18,122294,33.64,BRITISH GAS,BRI040
EFDC,YB110,SUPERVISION/MANAGEMENT SPECIAL,ELECTRICITY,1120,10-Jan-18,122294,26.48,BRITISH GAS,BRI040
EFDC,YB110,SUPERVISION/MANAGEMENT SPECIAL,ELECTRICITY,1120,10-Jan-18,122294,7.28,BRITISH GAS,BRI040
EFDC,YB110,SUPERVISION/MANAGEMENT SPECIAL,ELECTRICITY,1120,10-Jan-18,122294,9.39,BRITISH GAS,BRI040
EFDC,YB110,SUPERVISION/MANAGEMENT SPECIAL,ELECTRICITY,1120,10-Jan-18,122294,9.64,BRITISH GAS,BRI040
EFDC,YB110,SUPERVISION/MANAGEMENT SPECIAL,ELECTRICITY,1120,10-Jan-18,122294,12.28,BRITISH GAS,BRI040
EFDC,YB110,SUPERVISION/MANAGEMENT SPECIAL,ELECTRICITY,1120,10-Jan-18,122294,14.13,BRITISH GAS,BRI040
EFDC,YB110,SUPERVISION/MANAGEMENT SPECIAL,ELECTRICITY,1120,10-Jan-18,122294,9.38,BRITISH GAS,BRI040
EFDC,YB110,SUPERVISION/MANAGEMENT SPECIAL,ELECTRICITY,1120,10-Jan-18,122294,9.48,BRITISH GAS,BRI040
EFDC,YB110,SUPERVISION/MANAGEMENT SPECIAL,ELECTRICITY,1120,10-Jan-18,122294,13.95,BRITISH GAS,BRI040
EFDC,YB110,SUPERVISION/MANAGEMENT SPECIAL,ELECTRICITY,1120,10-Jan-18,122294,15.71,BRITISH GAS,BRI040
EFDC,YB110,SUPERVISION/MANAGEMENT SPECIAL,ELECTRICITY,1120,10-Jan-18,122294,12.08,BRITISH GAS,BRI040
EFDC,YB110,SUPERVISION/MANAGEMENT SPECIAL,ELECTRICITY,1120,10-Jan-18,122294,12.28,BRITISH GAS,BRI040
EFDC,YB110,SUPERVISION/MANAGEMENT SPECIAL,ELECTRICITY,1120,10-Jan-18,122294,7.3,BRITISH GAS,BRI040
EFDC,YB110,SUPERVISION/MANAGEMENT SPECIAL,ELECTRICITY,1120,10-Jan-18,122294,13.95,BRITISH GAS,BRI040
EFDC,YB110,SUPERVISION/MANAGEMENT SPECIAL,ELECTRICITY,1120,10-Jan-18,122294,12.39,BRITISH GAS,BRI040
EFDC,YB110,SUPERVISION/MANAGEMENT SPECIAL,ELECTRICITY,1120,10-Jan-18,122294,19.28,BRITISH GAS,BRI040
EFDC,YB110,SUPERVISION/MANAGEMENT SPECIAL,ELECTRICITY,1120,10-Jan-18,122294,14.26,BRITISH GAS,BRI040
EFDC,YB110,SUPERVISION/MANAGEMENT SPECIAL,ELECTRICITY,1120,10-Jan-18,122294,2.92,BRITISH GAS,BRI040
EFDC,YB110,SUPERVISION/MANAGEMENT SPECIAL,ELECTRICITY,1120,10-Jan-18,122294,16.9,BRITISH GAS,BRI040
EFDC,YB110,SUPERVISION/MANAGEMENT SPECIAL,ELECTRICITY,1120,10-Jan-18,122294,11.25,BRITISH GAS,BRI040
EFDC,YB110,SUPERVISION/MANAGEMENT SPECIAL,ELECTRICITY,1120,10-Jan-18,122294,17.47,BRITISH GAS,BRI040
EFDC,YB110,SUPERVISION/MANAGEMENT SPECIAL,ELECTRICITY,1120,10-Jan-18,122294,19.03,BRITISH GAS,BRI040
EFDC,YB110,SUPERVISION/MANAGEMENT SPECIAL,ELECTRICITY,1120,10-Jan-18,122294,16.38,BRITISH GAS,BRI040
EFDC,YB110,SUPERVISION/MANAGEMENT SPECIAL,ELECTRICITY,1120,10-Jan-18,122294,19.45,BRITISH GAS,BRI040
EFDC,YB110,SUPERVISION/MANAGEMENT SPECIAL,ELECTRICITY,1120,10-Jan-18,122294,19.55,BRITISH GAS,BRI040
EFDC,YB110,SUPERVISION/MANAGEMENT SPECIAL,ELECTRICITY,1120,10-Jan-18,122294,11.81,BRITISH GAS,BRI040
EFDC,YB110,SUPERVISION/MANAGEMENT SPECIAL,ELECTRICITY,1120,10-Jan-18,122294,26.03,BRITISH GAS,BRI040
EFDC,YB110,SUPERVISION/MANAGEMENT SPECIAL,ELECTRICITY,1120,10-Jan-18,122294,11.76,BRITISH GAS,BRI040
EFDC,YB110,SUPERVISION/MANAGEMENT SPECIAL,ELECTRICITY,1120,10-Jan-18,122294,22.81,BRITISH GAS,BRI040
EFDC,YB110,SUPERVISION/MANAGEMENT SPECIAL,ELECTRICITY,1120,10-Jan-18,122294,12.01,BRITISH GAS,BRI040
EFDC,YB110,SUPERVISION/MANAGEMENT SPECIAL,ELECTRICITY,1120,10-Jan-18,122294,20.21,BRITISH GAS,BRI040
EFDC,YB110,SUPERVISION/MANAGEMENT SPECIAL,ELECTRICITY,1120,10-Jan-18,122294,6.82,BRITISH GAS,BRI040
EFDC,YB110,SUPERVISION/MANAGEMENT SPECIAL,ELECTRICITY,1120,10-Jan-18,122294,6.82,BRITISH GAS,BRI040
EFDC,YB110,SUPERVISION/MANAGEMENT SPECIAL,ELECTRICITY,1120,10-Jan-18,122294,3.9,BRITISH GAS,BRI040
EFDC,YB110,SUPERVISION/MANAGEMENT SPECIAL,ELECTRICITY,1120,10-Jan-18,122294,12.91,BRITISH GAS,BRI040
EFDC,YB110,SUPERVISION/MANAGEMENT SPECIAL,ELECTRICITY,1120,10-Jan-18,122294,7.3,BRITISH GAS,BRI040
EFDC,YB110,SUPERVISION/MANAGEMENT SPECIAL,ELECTRICITY,1120,10-Jan-18,122294,90.97,BRITISH GAS,BRI040
EFDC,YB110,SUPERVISION/MANAGEMENT SPECIAL,ELECTRICITY,1120,10-Jan-18,122294,46.49,BRITISH GAS,BRI040
EFDC,YB110,SUPERVISION/MANAGEMENT SPECIAL,ELECTRICITY,1120,10-Jan-18,122294,48.53,BRITISH GAS,BRI040
EFDC,YB110,SUPERVISION/MANAGEMENT SPECIAL,ELECTRICITY,1120,10-Jan-18,122294,13.85,BRITISH GAS,BRI040
EFDC,YB110,SUPERVISION/MANAGEMENT SPECIAL,ELECTRICITY,1120,10-Jan-18,122294,16.65,BRITISH GAS,BRI040
EFDC,YB110,SUPERVISION/MANAGEMENT SPECIAL,ELECTRICITY,1120,10-Jan-18,122294,11.47,BRITISH GAS,BRI040
EFDC,YB110,SUPERVISION/MANAGEMENT SPECIAL,ELECTRICITY,1120,10-Jan-18,122294,16.44,BRITISH GAS,BRI040
EFDC,YB110,SUPERVISION/MANAGEMENT SPECIAL,ELECTRICITY,1120,10-Jan-18,122294,20.84,BRITISH GAS,BRI040
EFDC,YB110,SUPERVISION/MANAGEMENT SPECIAL,ELECTRICITY,1120,10-Jan-18,122294,6.49,BRITISH GAS,BRI040
EFDC,YB110,SUPERVISION/MANAGEMENT SPECIAL,ELECTRICITY,1120,10-Jan-18,122294,11,BRITISH GAS,BRI040
EFDC,YB110,SUPERVISION/MANAGEMENT SPECIAL,ELECTRICITY,1120,10-Jan-18,122294,3.13,BRITISH GAS,BRI040
EFDC,YB110,SUPERVISION/MANAGEMENT SPECIAL,ELECTRICITY,1120,10-Jan-18,122294,4.17,BRITISH GAS,BRI040
EFDC,YB110,SUPERVISION/MANAGEMENT SPECIAL,ELECTRICITY,1120,10-Jan-18,122294,35.94,BRITISH GAS,BRI040
EFDC,YB110,SUPERVISION/MANAGEMENT SPECIAL,ELECTRICITY,1120,10-Jan-18,122294,11.97,BRITISH GAS,BRI040
EFDC,YB110,SUPERVISION/MANAGEMENT SPECIAL,ELECTRICITY,1120,10-Jan-18,122294,12.12,BRITISH GAS,BRI040
EFDC,YB110,SUPERVISION/MANAGEMENT SPECIAL,ELECTRICITY,1120,10-Jan-18,122294,12.39,BRITISH GAS,BRI040
EFDC,YB110,SUPERVISION/MANAGEMENT SPECIAL,ELECTRICITY,1120,10-Jan-18,122294,11.89,BRITISH GAS,BRI040
EFDC,YB110,SUPERVISION/MANAGEMENT SPECIAL,ELECTRICITY,1120,10-Jan-18,122294,15.96,BRITISH GAS,BRI040
EFDC,YB110,SUPERVISION/MANAGEMENT SPECIAL,ELECTRICITY,1120,10-Jan-18,122294,12.08,BRITISH GAS,BRI040
EFDC,YB110,SUPERVISION/MANAGEMENT SPECIAL,ELECTRICITY,1120,10-Jan-18,122294,12.6,BRITISH GAS,BRI040
EFDC,YB110,SUPERVISION/MANAGEMENT SPECIAL,ELECTRICITY,1120,10-Jan-18,122294,16.41,BRITISH GAS,BRI040
EFDC,YB110,SUPERVISION/MANAGEMENT SPECIAL,ELECTRICITY,1120,10-Jan-18,122294,11.22,BRITISH GAS,BRI040
EFDC,YB110,SUPERVISION/MANAGEMENT SPECIAL,ELECTRICITY,1120,10-Jan-18,122294,12.23,BRITISH GAS,BRI040
EFDC,YB110,SUPERVISION/MANAGEMENT SPECIAL,ELECTRICITY,1120,10-Jan-18,122294,12.71,BRITISH GAS,BRI040
EFDC,YB110,SUPERVISION/MANAGEMENT SPECIAL,ELECTRICITY,1120,10-Jan-18,122294,13.3,BRITISH GAS,BRI040
EFDC,YB110,SUPERVISION/MANAGEMENT SPECIAL,ELECTRICITY,1120,10-Jan-18,122294,13.54,BRITISH GAS,BRI040
EFDC,YB110,SUPERVISION/MANAGEMENT SPECIAL,ELECTRICITY,1120,10-Jan-18,122294,12.86,BRITISH GAS,BRI040
EFDC,YB110,SUPERVISION/MANAGEMENT SPECIAL,ELECTRICITY,1120,10-Jan-18,122294,11.63,BRITISH GAS,BRI040
EFDC,YB110,SUPERVISION/MANAGEMENT SPECIAL,ELECTRICITY,1120,10-Jan-18,122294,12.48,BRITISH GAS,BRI040
EFDC,YB110,SUPERVISION/MANAGEMENT SPECIAL,ELECTRICITY,1120,10-Jan-18,122294,34.81,BRITISH GAS,BRI040
EFDC,YB110,SUPERVISION/MANAGEMENT SPECIAL,ELECTRICITY,1120,10-Jan-18,122294,26.38,BRITISH GAS,BRI040
EFDC,YB110,SUPERVISION/MANAGEMENT SPECIAL,ELECTRICITY,1120,10-Jan-18,122294,31.72,BRITISH GAS,BRI040
EFDC,YB110,SUPERVISION/MANAGEMENT SPECIAL,ELECTRICITY,1120,10-Jan-18,122294,23.79,BRITISH GAS,BRI040
EFDC,YB110,SUPERVISION/MANAGEMENT SPECIAL,ELECTRICITY,1120,10-Jan-18,122294,19.25,BRITISH GAS,BRI040
EFDC,YB110,SUPERVISION/MANAGEMENT SPECIAL,ELECTRICITY,1120,10-Jan-18,122294,16.2,BRITISH GAS,BRI040
EFDC,YB110,SUPERVISION/MANAGEMENT SPECIAL,ELECTRICITY,1120,10-Jan-18,122294,21.25,BRITISH GAS,BRI040
EFDC,YB110,SUPERVISION/MANAGEMENT SPECIAL,ELECTRICITY,1120,10-Jan-18,122294,18.18,BRITISH GAS,BRI040
EFDC,YB110,SUPERVISION/MANAGEMENT SPECIAL,ELECTRICITY,1120,10-Jan-18,122294,19.1,BRITISH GAS,BRI040
EFDC,YB110,SUPERVISION/MANAGEMENT SPECIAL,ELECTRICITY,1120,10-Jan-18,122294,20.93,BRITISH GAS,BRI040
EFDC,YB110,SUPERVISION/MANAGEMENT SPECIAL,ELECTRICITY,1120,10-Jan-18,122294,13.09,BRITISH GAS,BRI040
EFDC,YB110,SUPERVISION/MANAGEMENT SPECIAL,ELECTRICITY,1120,10-Jan-18,122294,25.32,BRITISH GAS,BRI040
EFDC,YB110,SUPERVISION/MANAGEMENT SPECIAL,ELECTRICITY,1120,10-Jan-18,122294,14.98,BRITISH GAS,BRI040
EFDC,YB110,SUPERVISION/MANAGEMENT SPECIAL,ELECTRICITY,1120,10-Jan-18,122294,22.46,BRITISH GAS,BRI040
EFDC,YB110,SUPERVISION/MANAGEMENT SPECIAL,ELECTRICITY,1120,10-Jan-18,122294,14.38,BRITISH GAS,BRI040
EFDC,YB110,SUPERVISION/MANAGEMENT SPECIAL,ELECTRICITY,1120,10-Jan-18,122294,15.72,BRITISH GAS,BRI040
EFDC,YB110,SUPERVISION/MANAGEMENT SPECIAL,ELECTRICITY,1120,10-Jan-18,122294,14.51,BRITISH GAS,BRI040
EFDC,YB110,SUPERVISION/MANAGEMENT SPECIAL,ELECTRICITY,1120,10-Jan-18,122294,34.22,BRITISH GAS,BRI040
EFDC,YB110,SUPERVISION/MANAGEMENT SPECIAL,ELECTRICITY,1120,10-Jan-18,122294,24.39,BRITISH GAS,BRI040
EFDC,YB110,SUPERVISION/MANAGEMENT SPECIAL,ELECTRICITY,1120,10-Jan-18,122294,21.89,BRITISH GAS,BRI040
EFDC,YB110,SUPERVISION/MANAGEMENT SPECIAL,ELECTRICITY,1120,10-Jan-18,122294,30.69,BRITISH GAS,BRI040
EFDC,YB110,SUPERVISION/MANAGEMENT SPECIAL,ELECTRICITY,1120,10-Jan-18,122294,24.05,BRITISH GAS,BRI040
EFDC,YB110,SUPERVISION/MANAGEMENT SPECIAL,ELECTRICITY,1120,10-Jan-18,122294,24.01,BRITISH GAS,BRI040
EFDC,YB110,SUPERVISION/MANAGEMENT SPECIAL,ELECTRICITY,1120,10-Jan-18,122294,1259.15,BRITISH GAS,BRI040
EFDC,YB110,SUPERVISION/MANAGEMENT SPECIAL,ELECTRICITY,1120,10-Jan-18,122294,15.68,BRITISH GAS,BRI040
EFDC,YB110,SUPERVISION/MANAGEMENT SPECIAL,ELECTRICITY,1120,10-Jan-18,122294,7.52,BRITISH GAS,BRI040
EFDC,YB110,SUPERVISION/MANAGEMENT SPECIAL,ELECTRICITY,1120,10-Jan-18,122294,16.51,BRITISH GAS,BRI040
EFDC,YB110,SUPERVISION/MANAGEMENT SPECIAL,ELECTRICITY,1120,10-Jan-18,122294,10.81,BRITISH GAS,BRI040
EFDC,YB110,SUPERVISION/MANAGEMENT SPECIAL,ELECTRICITY,1120,10-Jan-18,122294,18.9,BRITISH GAS,BRI040
EFDC,YB110,SUPERVISION/MANAGEMENT SPECIAL,ELECTRICITY,1120,10-Jan-18,122294,11.66,BRITISH GAS,BRI040
EFDC,YB110,SUPERVISION/MANAGEMENT SPECIAL,ELECTRICITY,1120,10-Jan-18,122294,18.72,BRITISH GAS,BRI040
EFDC,YB110,SUPERVISION/MANAGEMENT SPECIAL,ELECTRICITY,1120,10-Jan-18,122294,14.03,BRITISH GAS,BRI040
EFDC,YB110,SUPERVISION/MANAGEMENT SPECIAL,ELECTRICITY,1120,10-Jan-18,122294,16.97,BRITISH GAS,BRI040
EFDC,YB110,SUPERVISION/MANAGEMENT SPECIAL,ELECTRICITY,1120,10-Jan-18,122294,51.74,BRITISH GAS,BRI040
EFDC,YB110,SUPERVISION/MANAGEMENT SPECIAL,ELECTRICITY,1120,10-Jan-18,122294,16.45,BRITISH GAS,BRI040
EFDC,YB110,SUPERVISION/MANAGEMENT SPECIAL,ELECTRICITY,1120,10-Jan-18,122294,14.74,BRITISH GAS,BRI040
EFDC,YB110,SUPERVISION/MANAGEMENT SPECIAL,ELECTRICITY,1120,10-Jan-18,122294,12.86,BRITISH GAS,BRI040
EFDC,YB110,SUPERVISION/MANAGEMENT SPECIAL,ELECTRICITY,1120,10-Jan-18,122294,11.56,BRITISH GAS,BRI040
EFDC,YB110,SUPERVISION/MANAGEMENT SPECIAL,ELECTRICITY,1120,10-Jan-18,122294,13.84,BRITISH GAS,BRI040
EFDC,YB110,SUPERVISION/MANAGEMENT SPECIAL,ELECTRICITY,1120,10-Jan-18,122294,16.64,BRITISH GAS,BRI040
EFDC,YB110,SUPERVISION/MANAGEMENT SPECIAL,ELECTRICITY,1120,10-Jan-18,122294,13.46,BRITISH GAS,BRI040
EFDC,YB110,SUPERVISION/MANAGEMENT SPECIAL,ELECTRICITY,1120,10-Jan-18,122294,11.53,BRITISH GAS,BRI040
EFDC,YB110,SUPERVISION/MANAGEMENT SPECIAL,ELECTRICITY,1120,10-Jan-18,122294,14,BRITISH GAS,BRI040
EFDC,YB110,SUPERVISION/MANAGEMENT SPECIAL,ELECTRICITY,1120,10-Jan-18,122294,10.98,BRITISH GAS,BRI040
EFDC,YB110,SUPERVISION/MANAGEMENT SPECIAL,ELECTRICITY,1120,10-Jan-18,122294,13.26,BRITISH GAS,BRI040
EFDC,YB110,SUPERVISION/MANAGEMENT SPECIAL,ELECTRICITY,1120,10-Jan-18,122294,11.95,BRITISH GAS,BRI040
EFDC,YB110,SUPERVISION/MANAGEMENT SPECIAL,ELECTRICITY,1120,10-Jan-18,122294,11.98,BRITISH GAS,BRI040
EFDC,YB110,SUPERVISION/MANAGEMENT SPECIAL,ELECTRICITY,1120,10-Jan-18,122294,13.09,BRITISH GAS,BRI040
EFDC,YB110,SUPERVISION/MANAGEMENT SPECIAL,ELECTRICITY,1120,10-Jan-18,122294,13.66,BRITISH GAS,BRI040
EFDC,YB110,SUPERVISION/MANAGEMENT SPECIAL,ELECTRICITY,1120,10-Jan-18,122294,13.69,BRITISH GAS,BRI040
EFDC,YB110,SUPERVISION/MANAGEMENT SPECIAL,ELECTRICITY,1120,10-Jan-18,122294,9.26,BRITISH GAS,BRI040
EFDC,YB110,SUPERVISION/MANAGEMENT SPECIAL,ELECTRICITY,1120,10-Jan-18,122294,13.5,BRITISH GAS,BRI040
EFDC,YB110,SUPERVISION/MANAGEMENT SPECIAL,ELECTRICITY,1120,10-Jan-18,122294,16.76,BRITISH GAS,BRI040
EFDC,YB110,SUPERVISION/MANAGEMENT SPECIAL,ELECTRICITY,1120,10-Jan-18,122294,48.54,BRITISH GAS,BRI040
EFDC,YB110,SUPERVISION/MANAGEMENT SPECIAL,ELECTRICITY,1120,10-Jan-18,122294,26.45,BRITISH GAS,BRI040
EFDC,YB110,SUPERVISION/MANAGEMENT SPECIAL,ELECTRICITY,1120,10-Jan-18,122294,148.52,BRITISH GAS,BRI040
EFDC,YB110,SUPERVISION/MANAGEMENT SPECIAL,ELECTRICITY,1120,10-Jan-18,122294,7.22,BRITISH GAS,BRI040
EFDC,YB110,SUPERVISION/MANAGEMENT SPECIAL,ELECTRICITY,1120,10-Jan-18,122294,15.22,BRITISH GAS,BRI040
EFDC,YB110,SUPERVISION/MANAGEMENT SPECIAL,ELECTRICITY,1120,10-Jan-18,122294,198.16,BRITISH GAS,BRI040
EFDC,YB110,SUPERVISION/MANAGEMENT SPECIAL,ELECTRICITY,1120,10-Jan-18,122294,24.24,BRITISH GAS,BRI040
EFDC,YB110,SUPERVISION/MANAGEMENT SPECIAL,ELECTRICITY,1120,10-Jan-18,122294,10.36,BRITISH GAS,BRI040
EFDC,YB110,SUPERVISION/MANAGEMENT SPECIAL,ELECTRICITY,1120,10-Jan-18,122294,14.44,BRITISH GAS,BRI040
EFDC,YB110,SUPERVISION/MANAGEMENT SPECIAL,ELECTRICITY,1120,10-Jan-18,122294,15.12,BRITISH GAS,BRI040
EFDC,YB110,SUPERVISION/MANAGEMENT SPECIAL,ELECTRICITY,1120,10-Jan-18,122294,15.34,BRITISH GAS,BRI040
EFDC,YB110,SUPERVISION/MANAGEMENT SPECIAL,ELECTRICITY,1120,10-Jan-18,122294,12.69,BRITISH GAS,BRI040
EFDC,YB110,SUPERVISION/MANAGEMENT SPECIAL,ELECTRICITY,1120,10-Jan-18,122294,41.87,BRITISH GAS,BRI040
EFDC,YB110,SUPERVISION/MANAGEMENT SPECIAL,ELECTRICITY,1120,10-Jan-18,122294,37.15,BRITISH GAS,BRI040
EFDC,YB110,SUPERVISION/MANAGEMENT SPECIAL,ELECTRICITY,1120,10-Jan-18,122294,6.74,BRITISH GAS,BRI040
EFDC,YB110,SUPERVISION/MANAGEMENT SPECIAL,ELECTRICITY,1120,10-Jan-18,122294,41.42,BRITISH GAS,BRI040
EFDC,YB110,SUPERVISION/MANAGEMENT SPECIAL,ELECTRICITY,1120,10-Jan-18,122294,13.11,BRITISH GAS,BRI040
EFDC,YB110,SUPERVISION/MANAGEMENT SPECIAL,ELECTRICITY,1120,10-Jan-18,122294,52.09,BRITISH GAS,BRI040
EFDC,YB110,SUPERVISION/MANAGEMENT SPECIAL,ELECTRICITY,1120,10-Jan-18,122294,11.8,BRITISH GAS,BRI040
EFDC,YB110,SUPERVISION/MANAGEMENT SPECIAL,ELECTRICITY,1120,10-Jan-18,122294,13.67,BRITISH GAS,BRI040
EFDC,YB110,SUPERVISION/MANAGEMENT SPECIAL,ELECTRICITY,1120,10-Jan-18,122294,13.55,BRITISH GAS,BRI040
EFDC,YB110,SUPERVISION/MANAGEMENT SPECIAL,ELECTRICITY,1120,10-Jan-18,122294,19.54,BRITISH GAS,BRI040
EFDC,YB110,SUPERVISION/MANAGEMENT SPECIAL,ELECTRICITY,1120,10-Jan-18,122294,11.05,BRITISH GAS,BRI040
EFDC,YB110,SUPERVISION/MANAGEMENT SPECIAL,ELECTRICITY,1120,10-Jan-18,122294,11.25,BRITISH GAS,BRI040
EFDC,YB110,SUPERVISION/MANAGEMENT SPECIAL,ELECTRICITY,1120,10-Jan-18,122294,15.65,BRITISH GAS,BRI040
EFDC,YB110,SUPERVISION/MANAGEMENT SPECIAL,ELECTRICITY,1120,10-Jan-18,122294,16.06,BRITISH GAS,BRI040
EFDC,YB110,SUPERVISION/MANAGEMENT SPECIAL,ELECTRICITY,1120,10-Jan-18,122294,15.23,BRITISH GAS,BRI040
EFDC,YB110,SUPERVISION/MANAGEMENT SPECIAL,ELECTRICITY,1120,10-Jan-18,122294,16.38,BRITISH GAS,BRI040
EFDC,YB110,SUPERVISION/MANAGEMENT SPECIAL,ELECTRICITY,1120,10-Jan-18,122294,14.4,BRITISH GAS,BRI040
EFDC,YB110,SUPERVISION/MANAGEMENT SPECIAL,ELECTRICITY,1120,10-Jan-18,122294,16.82,BRITISH GAS,BRI040
EFDC,YB110,SUPERVISION/MANAGEMENT SPECIAL,ELECTRICITY,1120,10-Jan-18,122294,16.98,BRITISH GAS,BRI040
EFDC,YB110,SUPERVISION/MANAGEMENT SPECIAL,ELECTRICITY,1120,10-Jan-18,122294,19.51,BRITISH GAS,BRI040
EFDC,YB110,SUPERVISION/MANAGEMENT SPECIAL,ELECTRICITY,1120,10-Jan-18,122294,12.11,BRITISH GAS,BRI040
EFDC,YB110,SUPERVISION/MANAGEMENT SPECIAL,ELECTRICITY,1120,10-Jan-18,122294,17.5,BRITISH GAS,BRI040
EFDC,YB110,SUPERVISION/MANAGEMENT SPECIAL,ELECTRICITY,1120,10-Jan-18,122294,24.16,BRITISH GAS,BRI040
EFDC,YB110,SUPERVISION/MANAGEMENT SPECIAL,ELECTRICITY,1120,10-Jan-18,122294,16.2,BRITISH GAS,BRI040
EFDC,YB110,SUPERVISION/MANAGEMENT SPECIAL,ELECTRICITY,1120,10-Jan-18,122294,15.51,BRITISH GAS,BRI040
EFDC,YB110,SUPERVISION/MANAGEMENT SPECIAL,ELECTRICITY,1120,10-Jan-18,122294,29.31,BRITISH GAS,BRI040
EFDC,YB110,SUPERVISION/MANAGEMENT SPECIAL,ELECTRICITY,1120,10-Jan-18,122294,63.95,BRITISH GAS,BRI040
EFDC,YB110,SUPERVISION/MANAGEMENT SPECIAL,ELECTRICITY,1120,10-Jan-18,122294,18.65,BRITISH GAS,BRI040
EFDC,YB110,SUPERVISION/MANAGEMENT SPECIAL,ELECTRICITY,1120,10-Jan-18,122294,14.23,BRITISH GAS,BRI040
EFDC,YB110,SUPERVISION/MANAGEMENT SPECIAL,ELECTRICITY,1120,10-Jan-18,122294,17.18,BRITISH GAS,BRI040
EFDC,YB110,SUPERVISION/MANAGEMENT SPECIAL,ELECTRICITY,1120,10-Jan-18,122294,14.1,BRITISH GAS,BRI040
EFDC,YB110,SUPERVISION/MANAGEMENT SPECIAL,ELECTRICITY,1120,10-Jan-18,122294,12.22,BRITISH GAS,BRI040
EFDC,YB110,SUPERVISION/MANAGEMENT SPECIAL,ELECTRICITY,1120,10-Jan-18,122294,13.07,BRITISH GAS,BRI040
EFDC,YB110,SUPERVISION/MANAGEMENT SPECIAL,ELECTRICITY,1120,10-Jan-18,122294,95.25,BRITISH GAS,BRI040
EFDC,YB110,SUPERVISION/MANAGEMENT SPECIAL,ELECTRICITY,1120,10-Jan-18,122294,17.47,BRITISH GAS,BRI040
EFDC,YB110,SUPERVISION/MANAGEMENT SPECIAL,ELECTRICITY,1120,10-Jan-18,122294,12.58,BRITISH GAS,BRI040
EFDC,YB110,SUPERVISION/MANAGEMENT SPECIAL,ELECTRICITY,1120,10-Jan-18,122294,15.4,BRITISH GAS,BRI040
EFDC,YB110,SUPERVISION/MANAGEMENT SPECIAL,ELECTRICITY,1120,10-Jan-18,122294,70.33,BRITISH GAS,BRI040
EFDC,YB110,SUPERVISION/MANAGEMENT SPECIAL,ELECTRICITY,1120,10-Jan-18,122294,17.66,BRITISH GAS,BRI040
EFDC,YB110,SUPERVISION/MANAGEMENT SPECIAL,ELECTRICITY,1120,10-Jan-18,122294,17.67,BRITISH GAS,BRI040
EFDC,YB110,SUPERVISION/MANAGEMENT SPECIAL,ELECTRICITY,1120,10-Jan-18,122294,104.39,BRITISH GAS,BRI040
EFDC,YB110,SUPERVISION/MANAGEMENT SPECIAL,ELECTRICITY,1120,10-Jan-18,122294,82.89,BRITISH GAS,BRI040
EFDC,YB110,SUPERVISION/MANAGEMENT SPECIAL,ELECTRICITY,1120,10-Jan-18,122294,12.7,BRITISH GAS,BRI040
EFDC,YB110,SUPERVISION/MANAGEMENT SPECIAL,ELECTRICITY,1120,10-Jan-18,122294,7.55,BRITISH GAS,BRI040
EFDC,YB110,SUPERVISION/MANAGEMENT SPECIAL,ELECTRICITY,1120,10-Jan-18,122294,13.15,BRITISH GAS,BRI040
EFDC,YB110,SUPERVISION/MANAGEMENT SPECIAL,ELECTRICITY,1120,10-Jan-18,122294,13.83,BRITISH GAS,BRI040
EFDC,YB110,SUPERVISION/MANAGEMENT SPECIAL,ELECTRICITY,1120,10-Jan-18,122294,16.95,BRITISH GAS,BRI040
EFDC,YB110,SUPERVISION/MANAGEMENT SPECIAL,ELECTRICITY,1120,10-Jan-18,122294,82.89,BRITISH GAS,BRI040
EFDC,YB110,SUPERVISION/MANAGEMENT SPECIAL,ELECTRICITY,1120,10-Jan-18,122294,79.67,BRITISH GAS,BRI040
EFDC,YB110,SUPERVISION/MANAGEMENT SPECIAL,ELECTRICITY,1120,10-Jan-18,122294,12.37,BRITISH GAS,BRI040
EFDC,YB110,SUPERVISION/MANAGEMENT SPECIAL,ELECTRICITY,1120,10-Jan-18,122294,12.37,BRITISH GAS,BRI040
EFDC,YB110,SUPERVISION/MANAGEMENT SPECIAL,ELECTRICITY,1120,10-Jan-18,122294,15.27,BRITISH GAS,BRI040
EFDC,YB110,SUPERVISION/MANAGEMENT SPECIAL,ELECTRICITY,1120,10-Jan-18,122294,17.19,BRITISH GAS,BRI040
EFDC,YB110,SUPERVISION/MANAGEMENT SPECIAL,ELECTRICITY,1120,10-Jan-18,122294,222.81,BRITISH GAS,BRI040
EFDC,YB110,SUPERVISION/MANAGEMENT SPECIAL,ELECTRICITY,1120,10-Jan-18,122294,11.99,BRITISH GAS,BRI040
EFDC,YB110,SUPERVISION/MANAGEMENT SPECIAL,ELECTRICITY,1120,10-Jan-18,122294,41.98,BRITISH GAS,BRI040
EFDC,YB110,SUPERVISION/MANAGEMENT SPECIAL,ELECTRICITY,1120,10-Jan-18,122294,13.15,BRITISH GAS,BRI040
EFDC,YB110,SUPERVISION/MANAGEMENT SPECIAL,ELECTRICITY,1120,10-Jan-18,122294,25.93,BRITISH GAS,BRI040
EFDC,YB110,SUPERVISION/MANAGEMENT SPECIAL,ELECTRICITY,1120,10-Jan-18,122294,-19.76,BRITISH GAS,BRI040
EFDC,YB110,SUPERVISION/MANAGEMENT SPECIAL,ELECTRICITY,1120,10-Jan-18,122294,-70.85,BRITISH GAS,BRI040
EFDC,YB110,SUPERVISION/MANAGEMENT SPECIAL,ELECTRICITY,1120,10-Jan-18,122294,-70.86,BRITISH GAS,BRI040
EFDC,YB110,SUPERVISION/MANAGEMENT SPECIAL,ELECTRICITY,1120,10-Jan-18,122294,-15.7,BRITISH GAS,BRI040
EFDC,YB110,SUPERVISION/MANAGEMENT SPECIAL,ELECTRICITY,1120,10-Jan-18,122294,-17.12,BRITISH GAS,BRI040
EFDC,YB110,SUPERVISION/MANAGEMENT SPECIAL,ELECTRICITY,1120,10-Jan-18,122294,-13.16,BRITISH GAS,BRI040
EFDC,YB110,SUPERVISION/MANAGEMENT SPECIAL,ELECTRICITY,1120,10-Jan-18,122294,-46.42,BRITISH GAS,BRI040
EFDC,YB110,SUPERVISION/MANAGEMENT SPECIAL,ELECTRICITY,1120,10-Jan-18,122294,-31.32,BRITISH GAS,BRI040
EFDC,YB110,SUPERVISION/MANAGEMENT SPECIAL,ELECTRICITY,1120,10-Jan-18,122294,-9.96,BRITISH GAS,BRI040
EFDC,YB110,SUPERVISION/MANAGEMENT SPECIAL,ELECTRICITY,1120,10-Jan-18,122294,54.63,BRITISH GAS,BRI040
EFDC,YB110,SUPERVISION/MANAGEMENT SPECIAL,ELECTRICITY,1120,10-Jan-18,122294,-9.07,BRITISH GAS,BRI040
EFDC,YB110,SUPERVISION/MANAGEMENT SPECIAL,ELECTRICITY,1120,10-Jan-18,122294,13.16,BRITISH GAS,BRI040
EFDC,YB110,SUPERVISION/MANAGEMENT SPECIAL,ELECTRICITY,1120,10-Jan-18,122294,61.41,BRITISH GAS,BRI040
EFDC,YB110,SUPERVISION/MANAGEMENT SPECIAL,ELECTRICITY,1120,10-Jan-18,122294,-10391.68,BRITISH GAS,BRI040
EFDC,YB110,SUPERVISION/MANAGEMENT SPECIAL,ELECTRICITY,1120,10-Jan-18,122294,6.82,BRITISH GAS,BRI040
EFDC,YB110,SUPERVISION/MANAGEMENT SPECIAL,ELECTRICITY,1120,10-Jan-18,122294,19.93,BRITISH GAS,BRI040
EFDC,YB110,SUPERVISION/MANAGEMENT SPECIAL,ELECTRICITY,1120,10-Jan-18,122294,6.82,BRITISH GAS,BRI040
EFDC,YB110,SUPERVISION/MANAGEMENT SPECIAL,ELECTRICITY,1120,10-Jan-18,122294,30.9,BRITISH GAS,BRI040
EFDC,YB110,SUPERVISION/MANAGEMENT SPECIAL,ELECTRICITY,1120,10-Jan-18,122294,14.39,BRITISH GAS,BRI040
EFDC,YB110,SUPERVISION/MANAGEMENT SPECIAL,ELECTRICITY,1120,10-Jan-18,122294,17.69,BRITISH GAS,BRI040
EFDC,YB110,SUPERVISION/MANAGEMENT SPECIAL,ELECTRICITY,1120,10-Jan-18,122294,12.18,BRITISH GAS,BRI040
EFDC,YB110,SUPERVISION/MANAGEMENT SPECIAL,ELECTRICITY,1120,10-Jan-18,122294,-14.05,BRITISH GAS,BRI040
EFDC,YB110,SUPERVISION/MANAGEMENT SPECIAL,ELECTRICITY,1120,10-Jan-18,122294,14.78,BRITISH GAS,BRI040
EFDC,YB110,SUPERVISION/MANAGEMENT SPECIAL,ELECTRICITY,1120,10-Jan-18,122294,13.01,BRITISH GAS,BRI040
EFDC,YB110,SUPERVISION/MANAGEMENT SPECIAL,ELECTRICITY,1120,10-Jan-18,122294,19.66,BRITISH GAS,BRI040
EFDC,YB110,SUPERVISION/MANAGEMENT SPECIAL,ELECTRICITY,1120,10-Jan-18,122294,9.96,BRITISH GAS,BRI040
EFDC,YB110,SUPERVISION/MANAGEMENT SPECIAL,ELECTRICITY,1120,10-Jan-18,122294,18.19,BRITISH GAS,BRI040
EFDC,YB110,SUPERVISION/MANAGEMENT SPECIAL,ELECTRICITY,1120,10-Jan-18,122294,6.82,BRITISH GAS,BRI040
EFDC,YB110,SUPERVISION/MANAGEMENT SPECIAL,ELECTRICITY,1120,10-Jan-18,122294,7.75,BRITISH GAS,BRI040
EFDC,YB110,SUPERVISION/MANAGEMENT SPECIAL,ELECTRICITY,1120,10-Jan-18,122294,10.34,BRITISH GAS,BRI040
EFDC,YB110,SUPERVISION/MANAGEMENT SPECIAL,ELECTRICITY,1120,10-Jan-18,122294,6.82,BRITISH GAS,BRI040
EFDC,YB110,SUPERVISION/MANAGEMENT SPECIAL,ELECTRICITY,1120,10-Jan-18,122294,13.88,BRITISH GAS,BRI040
EFDC,YB110,SUPERVISION/MANAGEMENT SPECIAL,ELECTRICITY,1120,10-Jan-18,122294,16.76,BRITISH GAS,BRI040
EFDC,YB110,SUPERVISION/MANAGEMENT SPECIAL,ELECTRICITY,1120,10-Jan-18,122294,29.45,BRITISH GAS,BRI040
EFDC,YB110,SUPERVISION/MANAGEMENT SPECIAL,ELECTRICITY,1120,10-Jan-18,122294,20.51,BRITISH GAS,BRI040
EFDC,YB110,SUPERVISION/MANAGEMENT SPECIAL,ELECTRICITY,1120,10-Jan-18,122294,9.96,BRITISH GAS,BRI040
EFDC,YB110,SUPERVISION/MANAGEMENT SPECIAL,ELECTRICITY,1120,10-Jan-18,122294,16.78,BRITISH GAS,BRI040
EFDC,YB110,SUPERVISION/MANAGEMENT SPECIAL,ELECTRICITY,1120,10-Jan-18,122294,7.28,BRITISH GAS,BRI040
EFDC,YB110,SUPERVISION/MANAGEMENT SPECIAL,ELECTRICITY,1120,10-Jan-18,122294,14.99,BRITISH GAS,BRI040
EFDC,YB110,SUPERVISION/MANAGEMENT SPECIAL,ELECTRICITY,1120,10-Jan-18,122294,14.99,BRITISH GAS,BRI040
EFDC,YB110,SUPERVISION/MANAGEMENT SPECIAL,ELECTRICITY,1120,10-Jan-18,122294,14.53,BRITISH GAS,BRI040
EFDC,YB110,SUPERVISION/MANAGEMENT SPECIAL,ELECTRICITY,1120,10-Jan-18,122294,17.51,BRITISH GAS,BRI040
EFDC,YB110,SUPERVISION/MANAGEMENT SPECIAL,ELECTRICITY,1120,10-Jan-18,122294,127.71,BRITISH GAS,BRI040
EFDC,YB110,SUPERVISION/MANAGEMENT SPECIAL,ELECTRICITY,1120,10-Jan-18,122294,14.05,BRITISH GAS,BRI040
EFDC,YB110,SUPERVISION/MANAGEMENT SPECIAL,ELECTRICITY,1120,10-Jan-18,122294,14.09,BRITISH GAS,BRI040
EFDC,YB110,SUPERVISION/MANAGEMENT SPECIAL,ELECTRICITY,1120,10-Jan-18,122294,14.22,BRITISH GAS,BRI040
EFDC,YB110,SUPERVISION/MANAGEMENT SPECIAL,ELECTRICITY,1120,10-Jan-18,122294,11.68,BRITISH GAS,BRI040
EFDC,YB110,SUPERVISION/MANAGEMENT SPECIAL,ELECTRICITY,1120,10-Jan-18,122294,14.2,BRITISH GAS,BRI040
EFDC,YB110,SUPERVISION/MANAGEMENT SPECIAL,ELECTRICITY,1120,10-Jan-18,122294,13.99,BRITISH GAS,BRI040
EFDC,YB110,SUPERVISION/MANAGEMENT SPECIAL,ELECTRICITY,1120,10-Jan-18,122294,11.54,BRITISH GAS,BRI040
EFDC,YB110,SUPERVISION/MANAGEMENT SPECIAL,ELECTRICITY,1120,10-Jan-18,122294,11.72,BRITISH GAS,BRI040
EFDC,YB110,SUPERVISION/MANAGEMENT SPECIAL,ELECTRICITY,1120,10-Jan-18,122294,11.39,BRITISH GAS,BRI040
EFDC,YB110,SUPERVISION/MANAGEMENT SPECIAL,ELECTRICITY,1120,10-Jan-18,122294,15.44,BRITISH GAS,BRI040
EFDC,YB110,SUPERVISION/MANAGEMENT SPECIAL,ELECTRICITY,1120,10-Jan-18,122294,15.13,BRITISH GAS,BRI040
EFDC,YB110,SUPERVISION/MANAGEMENT SPECIAL,ELECTRICITY,1120,10-Jan-18,122294,16.33,BRITISH GAS,BRI040
EFDC,YB110,SUPERVISION/MANAGEMENT SPECIAL,ELECTRICITY,1120,10-Jan-18,122294,9.07,BRITISH GAS,BRI040
EFDC,YB110,SUPERVISION/MANAGEMENT SPECIAL,ELECTRICITY,1120,10-Jan-18,122294,29.77,BRITISH GAS,BRI040
EFDC,YB110,SUPERVISION/MANAGEMENT SPECIAL,ELECTRICITY,1120,10-Jan-18,122294,9.1,BRITISH GAS,BRI040
EFDC,YB110,SUPERVISION/MANAGEMENT SPECIAL,ELECTRICITY,1120,10-Jan-18,122294,16.17,BRITISH GAS,BRI040
EFDC,YB110,SUPERVISION/MANAGEMENT SPECIAL,ELECTRICITY,1120,10-Jan-18,122294,14.13,BRITISH GAS,BRI040
EFDC,YB110,SUPERVISION/MANAGEMENT SPECIAL,ELECTRICITY,1120,10-Jan-18,122294,15.94,BRITISH GAS,BRI040
EFDC,YB110,SUPERVISION/MANAGEMENT SPECIAL,ELECTRICITY,1120,10-Jan-18,122294,32.56,BRITISH GAS,BRI040
EFDC,YB110,SUPERVISION/MANAGEMENT SPECIAL,ELECTRICITY,1120,10-Jan-18,122294,12.42,BRITISH GAS,BRI040
EFDC,YB110,SUPERVISION/MANAGEMENT SPECIAL,ELECTRICITY,1120,10-Jan-18,122294,13.9,BRITISH GAS,BRI040
EFDC,YB110,SUPERVISION/MANAGEMENT SPECIAL,ELECTRICITY,1120,10-Jan-18,122294,21.59,BRITISH GAS,BRI040
EFDC,YB110,SUPERVISION/MANAGEMENT SPECIAL,ELECTRICITY,1120,10-Jan-18,122294,16.63,BRITISH GAS,BRI040
EFDC,YB110,SUPERVISION/MANAGEMENT SPECIAL,ELECTRICITY,1120,10-Jan-18,122294,18.12,BRITISH GAS,BRI040
EFDC,YB110,SUPERVISION/MANAGEMENT SPECIAL,ELECTRICITY,1120,10-Jan-18,122294,17.52,BRITISH GAS,BRI040
EFDC,YB110,SUPERVISION/MANAGEMENT SPECIAL,ELECTRICITY,1120,10-Jan-18,122294,9.89,BRITISH GAS,BRI040
EFDC,YB110,SUPERVISION/MANAGEMENT SPECIAL,ELECTRICITY,1120,10-Jan-18,122294,50.43,BRITISH GAS,BRI040
EFDC,YB110,SUPERVISION/MANAGEMENT SPECIAL,ELECTRICITY,1120,10-Jan-18,122294,12.64,BRITISH GAS,BRI040
EFDC,YB110,SUPERVISION/MANAGEMENT SPECIAL,ELECTRICITY,1120,10-Jan-18,122294,13.76,BRITISH GAS,BRI040
EFDC,YB110,SUPERVISION/MANAGEMENT SPECIAL,ELECTRICITY,1120,10-Jan-18,122294,99.76,BRITISH GAS,BRI040
EFDC,YB110,SUPERVISION/MANAGEMENT SPECIAL,ELECTRICITY,1120,10-Jan-18,122294,14.92,BRITISH GAS,BRI040
EFDC,YB110,SUPERVISION/MANAGEMENT SPECIAL,ELECTRICITY,1120,10-Jan-18,122294,33.62,BRITISH GAS,BRI040
EFDC,YB110,SUPERVISION/MANAGEMENT SPECIAL,ELECTRICITY,1120,10-Jan-18,122294,11.03,BRITISH GAS,BRI040
EFDC,YB110,SUPERVISION/MANAGEMENT SPECIAL,ELECTRICITY,1120,10-Jan-18,122294,11.03,BRITISH GAS,BRI040
EFDC,YB110,SUPERVISION/MANAGEMENT SPECIAL,ELECTRICITY,1120,10-Jan-18,122294,20.01,BRITISH GAS,BRI040
EFDC,YB110,SUPERVISION/MANAGEMENT SPECIAL,ELECTRICITY,1120,10-Jan-18,122294,11.14,BRITISH GAS,BRI040
EFDC,YB110,SUPERVISION/MANAGEMENT SPECIAL,ELECTRICITY,1120,10-Jan-18,122294,15.23,BRITISH GAS,BRI040
EFDC,YB110,SUPERVISION/MANAGEMENT SPECIAL,ELECTRICITY,1120,10-Jan-18,122294,22.15,BRITISH GAS,BRI040
EFDC,YB110,SUPERVISION/MANAGEMENT SPECIAL,ELECTRICITY,1120,10-Jan-18,122294,16.48,BRITISH GAS,BRI040
EFDC,YB110,SUPERVISION/MANAGEMENT SPECIAL,ELECTRICITY,1120,10-Jan-18,122294,14.3,BRITISH GAS,BRI040
EFDC,YB110,SUPERVISION/MANAGEMENT SPECIAL,ELECTRICITY,1120,10-Jan-18,122294,17.41,BRITISH GAS,BRI040
EFDC,YB110,SUPERVISION/MANAGEMENT SPECIAL,ELECTRICITY,1120,10-Jan-18,122294,21.15,BRITISH GAS,BRI040
EFDC,YB110,SUPERVISION/MANAGEMENT SPECIAL,ELECTRICITY,1120,10-Jan-18,122294,11.55,BRITISH GAS,BRI040
EFDC,YB110,SUPERVISION/MANAGEMENT SPECIAL,ELECTRICITY,1120,10-Jan-18,122294,19.13,BRITISH GAS,BRI040
EFDC,YB110,SUPERVISION/MANAGEMENT SPECIAL,ELECTRICITY,1120,10-Jan-18,122294,25.96,BRITISH GAS,BRI040
EFDC,YB110,SUPERVISION/MANAGEMENT SPECIAL,ELECTRICITY,1120,10-Jan-18,122294,6.82,BRITISH GAS,BRI040
EFDC,YB110,SUPERVISION/MANAGEMENT SPECIAL,ELECTRICITY,1120,10-Jan-18,122294,19.11,BRITISH GAS,BRI040
EFDC,YB110,SUPERVISION/MANAGEMENT SPECIAL,ELECTRICITY,1120,10-Jan-18,122294,22.52,BRITISH GAS,BRI040
EFDC,YB110,SUPERVISION/MANAGEMENT SPECIAL,ELECTRICITY,1120,10-Jan-18,122294,28.35,BRITISH GAS,BRI040
EFDC,YB110,SUPERVISION/MANAGEMENT SPECIAL,ELECTRICITY,1120,10-Jan-18,122294,15.85,BRITISH GAS,BRI040
EFDC,YB110,SUPERVISION/MANAGEMENT SPECIAL,ELECTRICITY,1120,10-Jan-18,122294,12.53,BRITISH GAS,BRI040
EFDC,YB140,SUPERVISION/MANAGEMENT SPECIAL,ELECTRICITY,1120,10-Jan-18,122294,27.97,BRITISH GAS,BRI040
EFDC,YB140,SUPERVISION/MANAGEMENT SPECIAL,ELECTRICITY,1120,10-Jan-18,122294,-23.33,BRITISH GAS,BRI040
EFDC,YB140,SUPERVISION/MANAGEMENT SPECIAL,ELECTRICITY,1120,10-Jan-18,122294,-11.75,BRITISH GAS,BRI040
EFDC,YB140,SUPERVISION/MANAGEMENT SPECIAL,ELECTRICITY,1120,10-Jan-18,122294,-22.12,BRITISH GAS,BRI040
EFDC,YB140,SUPERVISION/MANAGEMENT SPECIAL,ELECTRICITY,1120,10-Jan-18,122294,-11.74,BRITISH GAS,BRI040
EFDC,YB140,SUPERVISION/MANAGEMENT SPECIAL,ELECTRICITY,1120,10-Jan-18,122294,-21.97,BRITISH GAS,BRI040
EFDC,YB140,SUPERVISION/MANAGEMENT SPECIAL,ELECTRICITY,1120,10-Jan-18,122294,-11.74,BRITISH GAS,BRI040
EFDC,YB140,SUPERVISION/MANAGEMENT SPECIAL,ELECTRICITY,1120,10-Jan-18,122294,-22.52,BRITISH GAS,BRI040
EFDC,YB140,SUPERVISION/MANAGEMENT SPECIAL,ELECTRICITY,1120,10-Jan-18,122294,-22.05,BRITISH GAS,BRI040
EFDC,YB140,SUPERVISION/MANAGEMENT SPECIAL,ELECTRICITY,1120,10-Jan-18,122294,20.5,BRITISH GAS,BRI040
EFDC,YB140,SUPERVISION/MANAGEMENT SPECIAL,ELECTRICITY,1120,10-Jan-18,122294,17.01,BRITISH GAS,BRI040
EFDC,YB140,SUPERVISION/MANAGEMENT SPECIAL,ELECTRICITY,1120,10-Jan-18,122294,31.11,BRITISH GAS,BRI040
EFDC,YB140,SUPERVISION/MANAGEMENT SPECIAL,ELECTRICITY,1120,10-Jan-18,122294,19.1,BRITISH GAS,BRI040
EFDC,YB140,SUPERVISION/MANAGEMENT SPECIAL,ELECTRICITY,1120,10-Jan-18,122294,34.95,BRITISH GAS,BRI040
EFDC,YB140,SUPERVISION/MANAGEMENT SPECIAL,ELECTRICITY,1120,10-Jan-18,122294,19.32,BRITISH GAS,BRI040
EFDC,YB140,SUPERVISION/MANAGEMENT SPECIAL,ELECTRICITY,1120,10-Jan-18,122294,10.73,BRITISH GAS,BRI040
EFDC,YB140,SUPERVISION/MANAGEMENT SPECIAL,ELECTRICITY,1120,10-Jan-18,122294,22.84,BRITISH GAS,BRI040
EFDC,YB140,SUPERVISION/MANAGEMENT SPECIAL,ELECTRICITY,1120,10-Jan-18,122294,22.07,BRITISH GAS,BRI040
EFDC,YB140,SUPERVISION/MANAGEMENT SPECIAL,ELECTRICITY,1120,10-Jan-18,122294,-12.88,BRITISH GAS,BRI040
EFDC,YB140,SUPERVISION/MANAGEMENT SPECIAL,ELECTRICITY,1120,10-Jan-18,122294,65.58,BRITISH GAS,BRI040
EFDC,YB140,SUPERVISION/MANAGEMENT SPECIAL,ELECTRICITY,1120,10-Jan-18,122294,25.32,BRITISH GAS,BRI040
EFDC,YB140,SUPERVISION/MANAGEMENT SPECIAL,ELECTRICITY,1120,10-Jan-18,122294,44.48,BRITISH GAS,BRI040
EFDC,YB200,SUPERVISION/MANAGEMENT SPECIAL,ELECTRICITY,1120,10-Jan-18,122294,15.79,BRITISH GAS,BRI040
EFDC,YB300,SUPERVISION/MANAGEMENT SPECIAL,ELECTRICITY,1120,10-Jan-18,122294,23.09,BRITISH GAS,BRI040
EFDC,EH112,LAND DRAINAGE/SEWERAGE,OTHER MAINTENANCE,1050,10-Jan-18,122294,180.35,BRITISH GAS,BRI040
EFDC,YB140,SUPERVISION/MANAGEMENT SPECIAL,ELECTRICITY,1120,10-Jan-18,122294,21.65,BRITISH GAS,BRI040
EFDC,YB140,SUPERVISION/MANAGEMENT SPECIAL,ELECTRICITY,1120,10-Jan-18,122294,27.69,BRITISH GAS,BRI040
EFDC,YB140,SUPERVISION/MANAGEMENT SPECIAL,ELECTRICITY,1120,10-Jan-18,122294,12.08,BRITISH GAS,BRI040
EFDC,YB140,SUPERVISION/MANAGEMENT SPECIAL,ELECTRICITY,1120,10-Jan-18,122294,12.63,BRITISH GAS,BRI040
EFDC,YB110,SUPERVISION/MANAGEMENT SPECIAL,ELECTRICITY,1120,10-Jan-18,122294,68.27,BRITISH GAS,BRI040
EFDC,YB110,SUPERVISION/MANAGEMENT SPECIAL,ELECTRICITY,1120,10-Jan-18,122294,15.12,BRITISH GAS,BRI040
EFDC,YB110,SUPERVISION/MANAGEMENT SPECIAL,ELECTRICITY,1120,10-Jan-18,122294,7.55,BRITISH GAS,BRI040
EFDC,YB110,SUPERVISION/MANAGEMENT SPECIAL,ELECTRICITY,1120,10-Jan-18,122294,13.2,BRITISH GAS,BRI040
EFDC,YB110,SUPERVISION/MANAGEMENT SPECIAL,ELECTRICITY,1120,10-Jan-18,122294,16.29,BRITISH GAS,BRI040
EFDC,YB110,SUPERVISION/MANAGEMENT SPECIAL,ELECTRICITY,1120,10-Jan-18,122294,17.04,BRITISH GAS,BRI040
EFDC,YB110,SUPERVISION/MANAGEMENT SPECIAL,ELECTRICITY,1120,10-Jan-18,122294,13.54,BRITISH GAS,BRI040
EFDC,YB110,SUPERVISION/MANAGEMENT SPECIAL,ELECTRICITY,1120,10-Jan-18,122294,12.92,BRITISH GAS,BRI040
EFDC,YB110,SUPERVISION/MANAGEMENT SPECIAL,ELECTRICITY,1120,10-Jan-18,122294,13.28,BRITISH GAS,BRI040
EFDC,YB110,SUPERVISION/MANAGEMENT SPECIAL,ELECTRICITY,1120,10-Jan-18,122294,13.28,BRITISH GAS,BRI040
EFDC,YB110,SUPERVISION/MANAGEMENT SPECIAL,ELECTRICITY,1120,10-Jan-18,122294,11.37,BRITISH GAS,BRI040
EFDC,YB110,SUPERVISION/MANAGEMENT SPECIAL,ELECTRICITY,1120,10-Jan-18,122294,7.55,BRITISH GAS,BRI040
EFDC,YB110,SUPERVISION/MANAGEMENT SPECIAL,ELECTRICITY,1120,10-Jan-18,122294,15.63,BRITISH GAS,BRI040
EFDC,YB110,SUPERVISION/MANAGEMENT SPECIAL,ELECTRICITY,1120,10-Jan-18,122294,23.42,BRITISH GAS,BRI040
EFDC,YB110,SUPERVISION/MANAGEMENT SPECIAL,ELECTRICITY,1120,10-Jan-18,122294,21.89,BRITISH GAS,BRI040
EFDC,YB110,SUPERVISION/MANAGEMENT SPECIAL,ELECTRICITY,1120,10-Jan-18,122294,17.39,BRITISH GAS,BRI040
EFDC,YB110,SUPERVISION/MANAGEMENT SPECIAL,ELECTRICITY,1120,10-Jan-18,122294,29.52,BRITISH GAS,BRI040
EFDC,YB110,SUPERVISION/MANAGEMENT SPECIAL,ELECTRICITY,1120,10-Jan-18,122294,13.92,BRITISH GAS,BRI040
EFDC,YB110,SUPERVISION/MANAGEMENT SPECIAL,ELECTRICITY,1120,10-Jan-18,122294,12.89,BRITISH GAS,BRI040
EFDC,YB110,SUPERVISION/MANAGEMENT SPECIAL,ELECTRICITY,1120,10-Jan-18,122294,14.26,BRITISH GAS,BRI040
EFDC,YB110,SUPERVISION/MANAGEMENT SPECIAL,ELECTRICITY,1120,10-Jan-18,122294,15.7,BRITISH GAS,BRI040
EFDC,YB110,SUPERVISION/MANAGEMENT SPECIAL,ELECTRICITY,1120,10-Jan-18,122294,14,BRITISH GAS,BRI040
EFDC,YB110,SUPERVISION/MANAGEMENT SPECIAL,ELECTRICITY,1120,10-Jan-18,122294,29.11,BRITISH GAS,BRI040
EFDC,YB110,SUPERVISION/MANAGEMENT SPECIAL,ELECTRICITY,1120,10-Jan-18,122294,14.22,BRITISH GAS,BRI040
EFDC,YB110,SUPERVISION/MANAGEMENT SPECIAL,ELECTRICITY,1120,10-Jan-18,122294,15.26,BRITISH GAS,BRI040
EFDC,YB110,SUPERVISION/MANAGEMENT SPECIAL,ELECTRICITY,1120,10-Jan-18,122294,7.55,BRITISH GAS,BRI040
EFDC,YB110,SUPERVISION/MANAGEMENT SPECIAL,ELECTRICITY,1120,10-Jan-18,122294,17.25,BRITISH GAS,BRI040
EFDC,YB110,SUPERVISION/MANAGEMENT SPECIAL,ELECTRICITY,1120,10-Jan-18,122294,143.88,BRITISH GAS,BRI040
EFDC,YB110,SUPERVISION/MANAGEMENT SPECIAL,ELECTRICITY,1120,10-Jan-18,122294,77.82,BRITISH GAS,BRI040
EFDC,YB110,SUPERVISION/MANAGEMENT SPECIAL,ELECTRICITY,1120,10-Jan-18,122294,10.56,BRITISH GAS,BRI040
EFDC,YB110,SUPERVISION/MANAGEMENT SPECIAL,ELECTRICITY,1120,10-Jan-18,122294,7.55,BRITISH GAS,BRI040
EFDC,YB110,SUPERVISION/MANAGEMENT SPECIAL,ELECTRICITY,1120,10-Jan-18,122294,28.58,BRITISH GAS,BRI040
EFDC,YB110,SUPERVISION/MANAGEMENT SPECIAL,ELECTRICITY,1120,10-Jan-18,122294,32.86,BRITISH GAS,BRI040
EFDC,YB110,SUPERVISION/MANAGEMENT SPECIAL,ELECTRICITY,1120,10-Jan-18,122294,7.55,BRITISH GAS,BRI040
EFDC,YB110,SUPERVISION/MANAGEMENT SPECIAL,ELECTRICITY,1120,10-Jan-18,122294,7.55,BRITISH GAS,BRI040
EFDC,YB110,SUPERVISION/MANAGEMENT SPECIAL,ELECTRICITY,1120,10-Jan-18,122294,30.96,BRITISH GAS,BRI040
EFDC,YB110,SUPERVISION/MANAGEMENT SPECIAL,ELECTRICITY,1120,10-Jan-18,122294,14.65,BRITISH GAS,BRI040
EFDC,YB110,SUPERVISION/MANAGEMENT SPECIAL,ELECTRICITY,1120,10-Jan-18,122294,14.96,BRITISH GAS,BRI040
EFDC,YB110,SUPERVISION/MANAGEMENT SPECIAL,ELECTRICITY,1120,10-Jan-18,122294,11.48,BRITISH GAS,BRI040
EFDC,YB110,SUPERVISION/MANAGEMENT SPECIAL,ELECTRICITY,1120,10-Jan-18,122294,15.46,BRITISH GAS,BRI040
EFDC,YB110,SUPERVISION/MANAGEMENT SPECIAL,ELECTRICITY,1120,10-Jan-18,122294,14.87,BRITISH GAS,BRI040
EFDC,YB110,SUPERVISION/MANAGEMENT SPECIAL,ELECTRICITY,1120,10-Jan-18,122294,7.55,BRITISH GAS,BRI040
EFDC,YB110,SUPERVISION/MANAGEMENT SPECIAL,ELECTRICITY,1120,10-Jan-18,122294,17.41,BRITISH GAS,BRI040
EFDC,YB110,SUPERVISION/MANAGEMENT SPECIAL,ELECTRICITY,1120,10-Jan-18,122294,7.55,BRITISH GAS,BRI040
EFDC,YB110,SUPERVISION/MANAGEMENT SPECIAL,ELECTRICITY,1120,10-Jan-18,122294,7.55,BRITISH GAS,BRI040
EFDC,YB110,SUPERVISION/MANAGEMENT SPECIAL,ELECTRICITY,1120,10-Jan-18,122294,11.64,BRITISH GAS,BRI040
EFDC,YB110,SUPERVISION/MANAGEMENT SPECIAL,ELECTRICITY,1120,10-Jan-18,122294,14.85,BRITISH GAS,BRI040
EFDC,YB500,SUPERVISION/MANAGEMENT SPECIAL,ELECTRICITY,1120,10-Jan-18,122294,264.36,BRITISH GAS,BRI040
EFDC,YB500,SUPERVISION/MANAGEMENT SPECIAL,ELECTRICITY,1120,10-Jan-18,122294,465.92,BRITISH GAS,BRI040
EFDC,YB500,SUPERVISION/MANAGEMENT SPECIAL,ELECTRICITY,1120,10-Jan-18,122294,6.82,BRITISH GAS,BRI040
EFDC,YB500,SUPERVISION/MANAGEMENT SPECIAL,ELECTRICITY,1120,10-Jan-18,122294,364.26,BRITISH GAS,BRI040
EFDC,YB500,SUPERVISION/MANAGEMENT SPECIAL,ELECTRICITY,1120,10-Jan-18,122294,49.84,BRITISH GAS,BRI040
EFDC,YB500,SUPERVISION/MANAGEMENT SPECIAL,ELECTRICITY,1120,10-Jan-18,122294,11.9,BRITISH GAS,BRI040
EFDC,YB500,SUPERVISION/MANAGEMENT SPECIAL,ELECTRICITY,1120,10-Jan-18,122294,15.89,BRITISH GAS,BRI040
EFDC,YB500,SUPERVISION/MANAGEMENT SPECIAL,ELECTRICITY,1120,10-Jan-18,122294,40.42,BRITISH GAS,BRI040
EFDC,YB500,SUPERVISION/MANAGEMENT SPECIAL,ELECTRICITY,1120,10-Jan-18,122294,5.23,BRITISH GAS,BRI040
EFDC,YB500,SUPERVISION/MANAGEMENT SPECIAL,ELECTRICITY,1120,10-Jan-18,122294,143.38,BRITISH GAS,BRI040
EFDC,YB500,SUPERVISION/MANAGEMENT SPECIAL,ELECTRICITY,1120,10-Jan-18,122294,142.22,BRITISH GAS,BRI040
EFDC,YB500,SUPERVISION/MANAGEMENT SPECIAL,ELECTRICITY,1120,10-Jan-18,122294,18.49,BRITISH GAS,BRI040
EFDC,YB500,SUPERVISION/MANAGEMENT SPECIAL,ELECTRICITY,1120,10-Jan-18,122294,11.59,BRITISH GAS,BRI040
EFDC,YB500,SUPERVISION/MANAGEMENT SPECIAL,ELECTRICITY,1120,10-Jan-18,122294,10.43,BRITISH GAS,BRI040
EFDC,YB500,SUPERVISION/MANAGEMENT SPECIAL,ELECTRICITY,1120,10-Jan-18,122294,59.28,BRITISH GAS,BRI040
EFDC,YB500,SUPERVISION/MANAGEMENT SPECIAL,ELECTRICITY,1120,10-Jan-18,122294,22.88,BRITISH GAS,BRI040
EFDC,YB500,SUPERVISION/MANAGEMENT SPECIAL,ELECTRICITY,1120,10-Jan-18,122294,42.59,BRITISH GAS,BRI040
EFDC,YB500,SUPERVISION/MANAGEMENT SPECIAL,ELECTRICITY,1120,10-Jan-18,122294,16.78,BRITISH GAS,BRI040
EFDC,YB500,SUPERVISION/MANAGEMENT SPECIAL,ELECTRICITY,1120,10-Jan-18,122294,7.3,BRITISH GAS,BRI040
EFDC,YB500,SUPERVISION/MANAGEMENT SPECIAL,ELECTRICITY,1120,10-Jan-18,122294,60.08,BRITISH GAS,BRI040
EFDC,YB500,SUPERVISION/MANAGEMENT SPECIAL,ELECTRICITY,1120,10-Jan-18,122294,27.22,BRITISH GAS,BRI040
EFDC,YB520,SUPERVISION/MANAGEMENT SPECIAL,ELECTRICITY,1120,10-Jan-18,122294,161.06,BRITISH GAS,BRI040
EFDC,YB520,SUPERVISION/MANAGEMENT SPECIAL,ELECTRICITY,1120,10-Jan-18,122294,153.36,BRITISH GAS,BRI040
EFDC,YB500,SUPERVISION/MANAGEMENT SPECIAL,ELECTRICITY,1120,10-Jan-18,122294,158.68,BRITISH GAS,BRI040
EFDC,YB500,SUPERVISION/MANAGEMENT SPECIAL,ELECTRICITY,1120,10-Jan-18,122294,595.16,BRITISH GAS,BRI040
EFDC,YB500,SUPERVISION/MANAGEMENT SPECIAL,ELECTRICITY,1120,10-Jan-18,122294,17.62,BRITISH GAS,BRI040
EFDC,YB500,SUPERVISION/MANAGEMENT SPECIAL,ELECTRICITY,1120,10-Jan-18,122294,19.49,BRITISH GAS,BRI040
EFDC,YB500,SUPERVISION/MANAGEMENT SPECIAL,ELECTRICITY,1120,10-Jan-18,122294,19.52,BRITISH GAS,BRI040
EFDC,YB500,SUPERVISION/MANAGEMENT SPECIAL,ELECTRICITY,1120,10-Jan-18,122294,36.93,BRITISH GAS,BRI040
EFDC,YB500,SUPERVISION/MANAGEMENT SPECIAL,ELECTRICITY,1120,10-Jan-18,122294,192.29,BRITISH GAS,BRI040
EFDC,YB500,SUPERVISION/MANAGEMENT SPECIAL,ELECTRICITY,1120,10-Jan-18,122294,7.51,BRITISH GAS,BRI040
EFDC,RS302,NORTH WEALD CENTRE,ELECTRICITY,1120,10-Jan-18,122294,7.51,BRITISH GAS,BRI040
EFDC,FD100,LAND DRAINAGE/SEWERAGE,ELECTRICITY,1120,10-Jan-18,122294,15.25,BRITISH GAS,BRI040
EFDC,FD100,LAND DRAINAGE/SEWERAGE,ELECTRICITY,1120,10-Jan-18,122294,10.01,BRITISH GAS,BRI040
EFDC,FD100,LAND DRAINAGE/SEWERAGE,ELECTRICITY,1120,10-Jan-18,122294,-2027.49,BRITISH GAS,BRI040
EFDC,FD100,LAND DRAINAGE/SEWERAGE,ELECTRICITY,1120,10-Jan-18,122294,-33.42,BRITISH GAS,BRI040
EFDC,RS301,NORTH WEALD CENTRE,ELECTRICITY,1120,10-Jan-18,122294,12.9,BRITISH GAS,BRI040
EFDC,FD100,LAND DRAINAGE/SEWERAGE,ELECTRICITY,1120,10-Jan-18,122294,-31.32,BRITISH GAS,BRI040
EFDC,CH110,"MUSEUM, HERITAGE & CULTURE",ELECTRICITY,1120,10-Jan-18,122294,289.98,BRITISH GAS,BRI040
EFDC,35300,ENVIRONMENTAL OTHER,ELECTRICITY,1120,10-Jan-18,122294,173.31,BRITISH GAS,BRI040
EFDC,EH160,OTHER ACTIVITIES,ELECTRICITY,1120,10-Jan-18,122294,45.58,BRITISH GAS,BRI040
EFDC,EH160,OTHER ACTIVITIES,ELECTRICITY,1120,10-Jan-18,122294,31.78,BRITISH GAS,BRI040
EFDC,EH160,OTHER ACTIVITIES,ELECTRICITY,1120,10-Jan-18,122294,7.79,BRITISH GAS,BRI040
EFDC,EH160,OTHER ACTIVITIES,ELECTRICITY,1120,10-Jan-18,122294,89.26,BRITISH GAS,BRI040
EFDC,EH160,OTHER ACTIVITIES,ELECTRICITY,1120,10-Jan-18,122294,100.48,BRITISH GAS,BRI040
EFDC,27110,ACCOMMODATION,ELECTRICITY,1120,10-Jan-18,122294,35.72,BRITISH GAS,BRI040
EFDC,UO130,LAND & PROPERTY,ELECTRICITY,1120,10-Jan-18,122294,3.61,BRITISH GAS,BRI040
EFDC,27110,ACCOMMODATION,ELECTRICITY,1120,10-Jan-18,122294,158.09,BRITISH GAS,BRI040
EFDC,UO130,LAND & PROPERTY,ELECTRICITY,1120,10-Jan-18,122294,27.23,BRITISH GAS,BRI040
EFDC,UO130,LAND & PROPERTY,ELECTRICITY,1120,10-Jan-18,122294,13.43,BRITISH GAS,BRI040
EFDC,UO130,LAND & PROPERTY,ELECTRICITY,1120,10-Jan-18,122294,10.61,BRITISH GAS,BRI040
EFDC,UO130,LAND & PROPERTY,ELECTRICITY,1120,10-Jan-18,122294,423.85,BRITISH GAS,BRI040
EFDC,23140,ACCOMMODATION,ELECTRICITY,1120,10-Jan-18,122294,117.32,BRITISH GAS,BRI040
EFDC,YB350,SUPERVISION/MANAGEMENT SPECIAL,ELECTRICITY,1120,10-Jan-18,122294,327.54,BRITISH GAS,BRI040
EFDC,27110,ACCOMMODATION,ELECTRICITY,1120,10-Jan-18,122294,65.63,BRITISH GAS,BRI040
EFDC,YB620,SUPERVISION/MANAGEMENT SPECIAL,ELECTRICITY,1120,10-Jan-18,122294,1036.89,BRITISH GAS,BRI040
EFDC,23130,ACCOMMODATION,ELECTRICITY,1120,10-Jan-18,122294,158.64,BRITISH GAS,BRI040
EFDC,23140,ACCOMMODATION,ELECTRICITY,1120,10-Jan-18,122294,635.58,BRITISH GAS,BRI040
EFDC,27150,"COMMUNITY, HEALTH & WELLBEING",ELECTRICITY,1120,10-Jan-18,122294,657.56,BRITISH GAS,BRI040
EFDC,FD100,LAND DRAINAGE/SEWERAGE,ELECTRICITY,1120,10-Jan-18,122294,7.06,BRITISH GAS,BRI040
EFDC,TI190,LAND & PROPERTY,ELECTRICITY,1120,10-Jan-18,122294,395.11,BRITISH GAS,BRI040
EFDC,YB110,SUPERVISION/MANAGEMENT SPECIAL,ELECTRICITY,1120,10-Jan-18,122295,14.15,BRITISH GAS,BRI040
EFDC,YB110,SUPERVISION/MANAGEMENT SPECIAL,ELECTRICITY,1120,10-Jan-18,122295,28.75,BRITISH GAS,BRI040
EFDC,YB110,SUPERVISION/MANAGEMENT SPECIAL,ELECTRICITY,1120,10-Jan-18,122295,6.82,BRITISH GAS,BRI040
EFDC,YB110,SUPERVISION/MANAGEMENT SPECIAL,ELECTRICITY,1120,10-Jan-18,122295,13.42,BRITISH GAS,BRI040
EFDC,YB110,SUPERVISION/MANAGEMENT SPECIAL,ELECTRICITY,1120,10-Jan-18,122295,13.22,BRITISH GAS,BRI040
EFDC,YB110,SUPERVISION/MANAGEMENT SPECIAL,ELECTRICITY,1120,10-Jan-18,122295,13.53,BRITISH GAS,BRI040
EFDC,YB110,SUPERVISION/MANAGEMENT SPECIAL,ELECTRICITY,1120,10-Jan-18,122295,13.22,BRITISH GAS,BRI040
EFDC,YB110,SUPERVISION/MANAGEMENT SPECIAL,ELECTRICITY,1120,10-Jan-18,122295,46.07,BRITISH GAS,BRI040
EFDC,YB110,SUPERVISION/MANAGEMENT SPECIAL,ELECTRICITY,1120,10-Jan-18,122295,83.73,BRITISH GAS,BRI040
EFDC,YB110,SUPERVISION/MANAGEMENT SPECIAL,ELECTRICITY,1120,10-Jan-18,122295,13.95,BRITISH GAS,BRI040
EFDC,YB110,SUPERVISION/MANAGEMENT SPECIAL,ELECTRICITY,1120,10-Jan-18,122295,13.43,BRITISH GAS,BRI040
EFDC,YB110,SUPERVISION/MANAGEMENT SPECIAL,ELECTRICITY,1120,10-Jan-18,122295,18.2,BRITISH GAS,BRI040
EFDC,YB110,SUPERVISION/MANAGEMENT SPECIAL,ELECTRICITY,1120,10-Jan-18,122295,25.06,BRITISH GAS,BRI040
EFDC,YB110,SUPERVISION/MANAGEMENT SPECIAL,ELECTRICITY,1120,10-Jan-18,122295,12.08,BRITISH GAS,BRI040
EFDC,YB110,SUPERVISION/MANAGEMENT SPECIAL,ELECTRICITY,1120,10-Jan-18,122295,15.4,BRITISH GAS,BRI040
EFDC,YB110,SUPERVISION/MANAGEMENT SPECIAL,ELECTRICITY,1120,10-Jan-18,122295,11.66,BRITISH GAS,BRI040
EFDC,YB110,SUPERVISION/MANAGEMENT SPECIAL,ELECTRICITY,1120,10-Jan-18,122295,16.13,BRITISH GAS,BRI040
EFDC,YB110,SUPERVISION/MANAGEMENT SPECIAL,ELECTRICITY,1120,10-Jan-18,122295,19.24,BRITISH GAS,BRI040
EFDC,YB110,SUPERVISION/MANAGEMENT SPECIAL,ELECTRICITY,1120,10-Jan-18,122295,15.09,BRITISH GAS,BRI040
EFDC,YB110,SUPERVISION/MANAGEMENT SPECIAL,ELECTRICITY,1120,10-Jan-18,122295,20.1,BRITISH GAS,BRI040
EFDC,YB110,SUPERVISION/MANAGEMENT SPECIAL,ELECTRICITY,1120,10-Jan-18,122295,13.12,BRITISH GAS,BRI040
EFDC,YB110,SUPERVISION/MANAGEMENT SPECIAL,ELECTRICITY,1120,10-Jan-18,122295,13.15,BRITISH GAS,BRI040
EFDC,YB110,SUPERVISION/MANAGEMENT SPECIAL,ELECTRICITY,1120,10-Jan-18,122295,30.48,BRITISH GAS,BRI040
EFDC,YB110,SUPERVISION/MANAGEMENT SPECIAL,ELECTRICITY,1120,10-Jan-18,122295,13.81,BRITISH GAS,BRI040
EFDC,YB110,SUPERVISION/MANAGEMENT SPECIAL,ELECTRICITY,1120,10-Jan-18,122295,18.48,BRITISH GAS,BRI040
EFDC,YB110,SUPERVISION/MANAGEMENT SPECIAL,ELECTRICITY,1120,10-Jan-18,122295,9.19,BRITISH GAS,BRI040
EFDC,YB110,SUPERVISION/MANAGEMENT SPECIAL,ELECTRICITY,1120,10-Jan-18,122295,14.15,BRITISH GAS,BRI040
EFDC,YB110,SUPERVISION/MANAGEMENT SPECIAL,ELECTRICITY,1120,10-Jan-18,122295,12.49,BRITISH GAS,BRI040
EFDC,YB110,SUPERVISION/MANAGEMENT SPECIAL,ELECTRICITY,1120,10-Jan-18,122295,9.76,BRITISH GAS,BRI040
EFDC,YB110,SUPERVISION/MANAGEMENT SPECIAL,ELECTRICITY,1120,10-Jan-18,122295,13.63,BRITISH GAS,BRI040
EFDC,YB110,SUPERVISION/MANAGEMENT SPECIAL,ELECTRICITY,1120,10-Jan-18,122295,13.32,BRITISH GAS,BRI040
EFDC,YB110,SUPERVISION/MANAGEMENT SPECIAL,ELECTRICITY,1120,10-Jan-18,122295,38.24,BRITISH GAS,BRI040
EFDC,YB110,SUPERVISION/MANAGEMENT SPECIAL,ELECTRICITY,1120,10-Jan-18,122295,16.36,BRITISH GAS,BRI040
EFDC,YB110,SUPERVISION/MANAGEMENT SPECIAL,ELECTRICITY,1120,10-Jan-18,122295,13.3,BRITISH GAS,BRI040
EFDC,YB110,SUPERVISION/MANAGEMENT SPECIAL,ELECTRICITY,1120,10-Jan-18,122295,78.91,BRITISH GAS,BRI040
EFDC,YB110,SUPERVISION/MANAGEMENT SPECIAL,ELECTRICITY,1120,10-Jan-18,122295,21.32,BRITISH GAS,BRI040
EFDC,YB110,SUPERVISION/MANAGEMENT SPECIAL,ELECTRICITY,1120,10-Jan-18,122295,15.5,BRITISH GAS,BRI040
EFDC,YB110,SUPERVISION/MANAGEMENT SPECIAL,ELECTRICITY,1120,10-Jan-18,122295,14.36,BRITISH GAS,BRI040
EFDC,YB110,SUPERVISION/MANAGEMENT SPECIAL,ELECTRICITY,1120,10-Jan-18,122295,16.02,BRITISH GAS,BRI040
EFDC,YB110,SUPERVISION/MANAGEMENT SPECIAL,ELECTRICITY,1120,10-Jan-18,122295,15.81,BRITISH GAS,BRI040
EFDC,YB110,SUPERVISION/MANAGEMENT SPECIAL,ELECTRICITY,1120,10-Jan-18,122295,14.98,BRITISH GAS,BRI040
EFDC,YB110,SUPERVISION/MANAGEMENT SPECIAL,ELECTRICITY,1120,10-Jan-18,122295,14.98,BRITISH GAS,BRI040
EFDC,YB110,SUPERVISION/MANAGEMENT SPECIAL,ELECTRICITY,1120,10-Jan-18,122295,15.3,BRITISH GAS,BRI040
EFDC,YB110,SUPERVISION/MANAGEMENT SPECIAL,ELECTRICITY,1120,10-Jan-18,122295,15.4,BRITISH GAS,BRI040
EFDC,YB110,SUPERVISION/MANAGEMENT SPECIAL,ELECTRICITY,1120,10-Jan-18,122295,11.14,BRITISH GAS,BRI040
EFDC,YB110,SUPERVISION/MANAGEMENT SPECIAL,ELECTRICITY,1120,10-Jan-18,122295,14.46,BRITISH GAS,BRI040
EFDC,YB110,SUPERVISION/MANAGEMENT SPECIAL,ELECTRICITY,1120,10-Jan-18,122295,19.75,BRITISH GAS,BRI040
EFDC,YB110,SUPERVISION/MANAGEMENT SPECIAL,ELECTRICITY,1120,10-Jan-18,122295,15.1,BRITISH GAS,BRI040
EFDC,YB110,SUPERVISION/MANAGEMENT SPECIAL,ELECTRICITY,1120,10-Jan-18,122295,13.98,BRITISH GAS,BRI040
EFDC,YB110,SUPERVISION/MANAGEMENT SPECIAL,ELECTRICITY,1120,10-Jan-18,122295,10.3,BRITISH GAS,BRI040
EFDC,YB110,SUPERVISION/MANAGEMENT SPECIAL,ELECTRICITY,1120,10-Jan-18,122295,10.31,BRITISH GAS,BRI040
EFDC,YB110,SUPERVISION/MANAGEMENT SPECIAL,ELECTRICITY,1120,10-Jan-18,122295,42.31,BRITISH GAS,BRI040
EFDC,YB110,SUPERVISION/MANAGEMENT SPECIAL,ELECTRICITY,1120,10-Jan-18,122295,12.71,BRITISH GAS,BRI040
EFDC,YB110,SUPERVISION/MANAGEMENT SPECIAL,ELECTRICITY,1120,10-Jan-18,122295,14.41,BRITISH GAS,BRI040
EFDC,YB110,SUPERVISION/MANAGEMENT SPECIAL,ELECTRICITY,1120,10-Jan-18,122295,14.12,BRITISH GAS,BRI040
EFDC,YB110,SUPERVISION/MANAGEMENT SPECIAL,ELECTRICITY,1120,10-Jan-18,122295,14.22,BRITISH GAS,BRI040
EFDC,YB110,SUPERVISION/MANAGEMENT SPECIAL,ELECTRICITY,1120,10-Jan-18,122295,24.27,BRITISH GAS,BRI040
EFDC,YB110,SUPERVISION/MANAGEMENT SPECIAL,ELECTRICITY,1120,10-Jan-18,122295,13.26,BRITISH GAS,BRI040
EFDC,YB110,SUPERVISION/MANAGEMENT SPECIAL,ELECTRICITY,1120,10-Jan-18,122295,18.81,BRITISH GAS,BRI040
EFDC,YB110,SUPERVISION/MANAGEMENT SPECIAL,ELECTRICITY,1120,10-Jan-18,122295,11.32,BRITISH GAS,BRI040
EFDC,YB110,SUPERVISION/MANAGEMENT SPECIAL,ELECTRICITY,1120,10-Jan-18,122295,14.92,BRITISH GAS,BRI040
EFDC,YB110,SUPERVISION/MANAGEMENT SPECIAL,ELECTRICITY,1120,10-Jan-18,122295,15.91,BRITISH GAS,BRI040
EFDC,YB110,SUPERVISION/MANAGEMENT SPECIAL,ELECTRICITY,1120,10-Jan-18,122295,21.76,BRITISH GAS,BRI040
EFDC,YB110,SUPERVISION/MANAGEMENT SPECIAL,ELECTRICITY,1120,10-Jan-18,122295,877.62,BRITISH GAS,BRI040
EFDC,YB110,SUPERVISION/MANAGEMENT SPECIAL,ELECTRICITY,1120,10-Jan-18,122295,22.07,BRITISH GAS,BRI040
EFDC,YB110,SUPERVISION/MANAGEMENT SPECIAL,ELECTRICITY,1120,10-Jan-18,122295,21.04,BRITISH GAS,BRI040
EFDC,YB110,SUPERVISION/MANAGEMENT SPECIAL,ELECTRICITY,1120,10-Jan-18,122295,19.75,BRITISH GAS,BRI040
EFDC,YB110,SUPERVISION/MANAGEMENT SPECIAL,ELECTRICITY,1120,10-Jan-18,122295,18.09,BRITISH GAS,BRI040
EFDC,YB110,SUPERVISION/MANAGEMENT SPECIAL,ELECTRICITY,1120,10-Jan-18,122295,12.73,BRITISH GAS,BRI040
EFDC,YB110,SUPERVISION/MANAGEMENT SPECIAL,ELECTRICITY,1120,10-Jan-18,122295,16.67,BRITISH GAS,BRI040
EFDC,YB110,SUPERVISION/MANAGEMENT SPECIAL,ELECTRICITY,1120,10-Jan-18,122295,13.19,BRITISH GAS,BRI040
EFDC,YB110,SUPERVISION/MANAGEMENT SPECIAL,ELECTRICITY,1120,10-Jan-18,122295,14.98,BRITISH GAS,BRI040
EFDC,YB110,SUPERVISION/MANAGEMENT SPECIAL,ELECTRICITY,1120,10-Jan-18,122295,14.15,BRITISH GAS,BRI040
EFDC,YB110,SUPERVISION/MANAGEMENT SPECIAL,ELECTRICITY,1120,10-Jan-18,122295,11.09,BRITISH GAS,BRI040
EFDC,YB110,SUPERVISION/MANAGEMENT SPECIAL,ELECTRICITY,1120,10-Jan-18,122295,24.05,BRITISH GAS,BRI040
EFDC,YB110,SUPERVISION/MANAGEMENT SPECIAL,ELECTRICITY,1120,10-Jan-18,122295,15.38,BRITISH GAS,BRI040
EFDC,YB110,SUPERVISION/MANAGEMENT SPECIAL,ELECTRICITY,1120,10-Jan-18,122295,16.21,BRITISH GAS,BRI040
EFDC,YB110,SUPERVISION/MANAGEMENT SPECIAL,ELECTRICITY,1120,10-Jan-18,122295,28.92,BRITISH GAS,BRI040
EFDC,YB110,SUPERVISION/MANAGEMENT SPECIAL,ELECTRICITY,1120,10-Jan-18,122295,11.39,BRITISH GAS,BRI040
EFDC,YB110,SUPERVISION/MANAGEMENT SPECIAL,ELECTRICITY,1120,10-Jan-18,122295,12.67,BRITISH GAS,BRI040
EFDC,YB110,SUPERVISION/MANAGEMENT SPECIAL,ELECTRICITY,1120,10-Jan-18,122295,13.5,BRITISH GAS,BRI040
EFDC,YB110,SUPERVISION/MANAGEMENT SPECIAL,ELECTRICITY,1120,10-Jan-18,122295,21.02,BRITISH GAS,BRI040
EFDC,YB110,SUPERVISION/MANAGEMENT SPECIAL,ELECTRICITY,1120,10-Jan-18,122295,10.62,BRITISH GAS,BRI040
EFDC,YB110,SUPERVISION/MANAGEMENT SPECIAL,ELECTRICITY,1120,10-Jan-18,122295,16.54,BRITISH GAS,BRI040
EFDC,YB110,SUPERVISION/MANAGEMENT SPECIAL,ELECTRICITY,1120,10-Jan-18,122295,14.07,BRITISH GAS,BRI040
EFDC,YB110,SUPERVISION/MANAGEMENT SPECIAL,ELECTRICITY,1120,10-Jan-18,122295,12.63,BRITISH GAS,BRI040
EFDC,YB110,SUPERVISION/MANAGEMENT SPECIAL,ELECTRICITY,1120,10-Jan-18,122295,25.99,BRITISH GAS,BRI040
EFDC,YB110,SUPERVISION/MANAGEMENT SPECIAL,ELECTRICITY,1120,10-Jan-18,122295,14.58,BRITISH GAS,BRI040
EFDC,YB110,SUPERVISION/MANAGEMENT SPECIAL,ELECTRICITY,1120,10-Jan-18,122295,17.17,BRITISH GAS,BRI040
EFDC,YB110,SUPERVISION/MANAGEMENT SPECIAL,ELECTRICITY,1120,10-Jan-18,122295,19.02,BRITISH GAS,BRI040
EFDC,YB110,SUPERVISION/MANAGEMENT SPECIAL,ELECTRICITY,1120,10-Jan-18,122295,55.74,BRITISH GAS,BRI040
EFDC,YB110,SUPERVISION/MANAGEMENT SPECIAL,ELECTRICITY,1120,10-Jan-18,122295,51.62,BRITISH GAS,BRI040
EFDC,YB110,SUPERVISION/MANAGEMENT SPECIAL,ELECTRICITY,1120,10-Jan-18,122295,17.68,BRITISH GAS,BRI040
EFDC,YB110,SUPERVISION/MANAGEMENT SPECIAL,ELECTRICITY,1120,10-Jan-18,122295,15.55,BRITISH GAS,BRI040
EFDC,YB110,SUPERVISION/MANAGEMENT SPECIAL,ELECTRICITY,1120,10-Jan-18,122295,-104.85,BRITISH GAS,BRI040
EFDC,YB110,SUPERVISION/MANAGEMENT SPECIAL,ELECTRICITY,1120,10-Jan-18,122295,24.73,BRITISH GAS,BRI040
EFDC,YB110,SUPERVISION/MANAGEMENT SPECIAL,ELECTRICITY,1120,10-Jan-18,122295,27.83,BRITISH GAS,BRI040
EFDC,YB110,SUPERVISION/MANAGEMENT SPECIAL,ELECTRICITY,1120,10-Jan-18,122295,9.1,BRITISH GAS,BRI040
EFDC,YB110,SUPERVISION/MANAGEMENT SPECIAL,ELECTRICITY,1120,10-Jan-18,122295,104.85,BRITISH GAS,BRI040
EFDC,YB110,SUPERVISION/MANAGEMENT SPECIAL,ELECTRICITY,1120,10-Jan-18,122295,11.53,BRITISH GAS,BRI040
EFDC,YB110,SUPERVISION/MANAGEMENT SPECIAL,ELECTRICITY,1120,10-Jan-18,122295,17.86,BRITISH GAS,BRI040
EFDC,YB110,SUPERVISION/MANAGEMENT SPECIAL,ELECTRICITY,1120,10-Jan-18,122295,19.08,BRITISH GAS,BRI040
EFDC,YB110,SUPERVISION/MANAGEMENT SPECIAL,ELECTRICITY,1120,10-Jan-18,122295,-18.9,BRITISH GAS,BRI040
EFDC,YB110,SUPERVISION/MANAGEMENT SPECIAL,ELECTRICITY,1120,10-Jan-18,122295,-107.56,BRITISH GAS,BRI040
EFDC,YB110,SUPERVISION/MANAGEMENT SPECIAL,ELECTRICITY,1120,10-Jan-18,122295,7.3,BRITISH GAS,BRI040
EFDC,YB110,SUPERVISION/MANAGEMENT SPECIAL,ELECTRICITY,1120,10-Jan-18,122295,-85.34,BRITISH GAS,BRI040
EFDC,YB110,SUPERVISION/MANAGEMENT SPECIAL,ELECTRICITY,1120,10-Jan-18,122295,13.31,BRITISH GAS,BRI040
EFDC,YB110,SUPERVISION/MANAGEMENT SPECIAL,ELECTRICITY,1120,10-Jan-18,122295,-16.74,BRITISH GAS,BRI040
EFDC,YB110,SUPERVISION/MANAGEMENT SPECIAL,ELECTRICITY,1120,10-Jan-18,122295,-130.43,BRITISH GAS,BRI040
EFDC,YB110,SUPERVISION/MANAGEMENT SPECIAL,ELECTRICITY,1120,10-Jan-18,122295,-425.74,BRITISH GAS,BRI040
EFDC,YB110,SUPERVISION/MANAGEMENT SPECIAL,ELECTRICITY,1120,10-Jan-18,122295,-421.89,BRITISH GAS,BRI040
EFDC,YB110,SUPERVISION/MANAGEMENT SPECIAL,ELECTRICITY,1120,10-Jan-18,122295,-20.53,BRITISH GAS,BRI040
EFDC,YB110,SUPERVISION/MANAGEMENT SPECIAL,ELECTRICITY,1120,10-Jan-18,122295,-20.21,BRITISH GAS,BRI040
EFDC,YB110,SUPERVISION/MANAGEMENT SPECIAL,ELECTRICITY,1120,10-Jan-18,122295,-19.72,BRITISH GAS,BRI040
EFDC,YB110,SUPERVISION/MANAGEMENT SPECIAL,ELECTRICITY,1120,10-Jan-18,122295,-21.35,BRITISH GAS,BRI040
EFDC,YB110,SUPERVISION/MANAGEMENT SPECIAL,ELECTRICITY,1120,10-Jan-18,122295,-20.4,BRITISH GAS,BRI040
EFDC,YB110,SUPERVISION/MANAGEMENT SPECIAL,ELECTRICITY,1120,10-Jan-18,122295,-76.86,BRITISH GAS,BRI040
EFDC,YB110,SUPERVISION/MANAGEMENT SPECIAL,ELECTRICITY,1120,10-Jan-18,122295,8.44,BRITISH GAS,BRI040
EFDC,YB110,SUPERVISION/MANAGEMENT SPECIAL,ELECTRICITY,1120,10-Jan-18,122295,46.42,BRITISH GAS,BRI040
EFDC,YB110,SUPERVISION/MANAGEMENT SPECIAL,ELECTRICITY,1120,10-Jan-18,122295,23.54,BRITISH GAS,BRI040
EFDC,YB110,SUPERVISION/MANAGEMENT SPECIAL,ELECTRICITY,1120,10-Jan-18,122295,18.68,BRITISH GAS,BRI040
EFDC,YB110,SUPERVISION/MANAGEMENT SPECIAL,ELECTRICITY,1120,10-Jan-18,122295,18.78,BRITISH GAS,BRI040
EFDC,YB110,SUPERVISION/MANAGEMENT SPECIAL,ELECTRICITY,1120,10-Jan-18,122295,15.46,BRITISH GAS,BRI040
EFDC,YB110,SUPERVISION/MANAGEMENT SPECIAL,ELECTRICITY,1120,10-Jan-18,122295,12.36,BRITISH GAS,BRI040
EFDC,YB110,SUPERVISION/MANAGEMENT SPECIAL,ELECTRICITY,1120,10-Jan-18,122295,12.81,BRITISH GAS,BRI040
EFDC,YB110,SUPERVISION/MANAGEMENT SPECIAL,ELECTRICITY,1120,10-Jan-18,122295,24.34,BRITISH GAS,BRI040
EFDC,YB110,SUPERVISION/MANAGEMENT SPECIAL,ELECTRICITY,1120,10-Jan-18,122295,41.62,BRITISH GAS,BRI040
EFDC,YB110,SUPERVISION/MANAGEMENT SPECIAL,ELECTRICITY,1120,10-Jan-18,122295,49.54,BRITISH GAS,BRI040
EFDC,YB110,SUPERVISION/MANAGEMENT SPECIAL,ELECTRICITY,1120,10-Jan-18,122295,8.03,BRITISH GAS,BRI040
EFDC,YB110,SUPERVISION/MANAGEMENT SPECIAL,ELECTRICITY,1120,10-Jan-18,122295,22.44,BRITISH GAS,BRI040
EFDC,YB110,SUPERVISION/MANAGEMENT SPECIAL,ELECTRICITY,1120,10-Jan-18,122295,11.26,BRITISH GAS,BRI040
EFDC,YB110,SUPERVISION/MANAGEMENT SPECIAL,ELECTRICITY,1120,10-Jan-18,122295,8.03,BRITISH GAS,BRI040
EFDC,YB110,SUPERVISION/MANAGEMENT SPECIAL,ELECTRICITY,1120,10-Jan-18,122295,38.85,BRITISH GAS,BRI040
EFDC,YB110,SUPERVISION/MANAGEMENT SPECIAL,ELECTRICITY,1120,10-Jan-18,122295,13.63,BRITISH GAS,BRI040
EFDC,YB110,SUPERVISION/MANAGEMENT SPECIAL,ELECTRICITY,1120,10-Jan-18,122295,25.43,BRITISH GAS,BRI040
EFDC,YB110,SUPERVISION/MANAGEMENT SPECIAL,ELECTRICITY,1120,10-Jan-18,122295,30.35,BRITISH GAS,BRI040
EFDC,YB110,SUPERVISION/MANAGEMENT SPECIAL,ELECTRICITY,1120,10-Jan-18,122295,12.54,BRITISH GAS,BRI040
EFDC,YB110,SUPERVISION/MANAGEMENT SPECIAL,ELECTRICITY,1120,10-Jan-18,122295,107.56,BRITISH GAS,BRI040
EFDC,YB110,SUPERVISION/MANAGEMENT SPECIAL,ELECTRICITY,1120,10-Jan-18,122295,15.85,BRITISH GAS,BRI040
EFDC,YB110,SUPERVISION/MANAGEMENT SPECIAL,ELECTRICITY,1120,10-Jan-18,122295,16.35,BRITISH GAS,BRI040
EFDC,YB110,SUPERVISION/MANAGEMENT SPECIAL,ELECTRICITY,1120,10-Jan-18,122295,20.14,BRITISH GAS,BRI040
EFDC,YB110,SUPERVISION/MANAGEMENT SPECIAL,ELECTRICITY,1120,10-Jan-18,122295,91.14,BRITISH GAS,BRI040
EFDC,YB110,SUPERVISION/MANAGEMENT SPECIAL,ELECTRICITY,1120,10-Jan-18,122295,44.23,BRITISH GAS,BRI040
EFDC,YB110,SUPERVISION/MANAGEMENT SPECIAL,ELECTRICITY,1120,10-Jan-18,122295,70.85,BRITISH GAS,BRI040
EFDC,YB110,SUPERVISION/MANAGEMENT SPECIAL,ELECTRICITY,1120,10-Jan-18,122295,70.86,BRITISH GAS,BRI040
EFDC,YB110,SUPERVISION/MANAGEMENT SPECIAL,ELECTRICITY,1120,10-Jan-18,122295,15.4,BRITISH GAS,BRI040
EFDC,YB110,SUPERVISION/MANAGEMENT SPECIAL,ELECTRICITY,1120,10-Jan-18,122295,88.65,BRITISH GAS,BRI040
EFDC,YB110,SUPERVISION/MANAGEMENT SPECIAL,ELECTRICITY,1120,10-Jan-18,122295,14.82,BRITISH GAS,BRI040
EFDC,YB110,SUPERVISION/MANAGEMENT SPECIAL,ELECTRICITY,1120,10-Jan-18,122295,14.83,BRITISH GAS,BRI040
EFDC,YB110,SUPERVISION/MANAGEMENT SPECIAL,ELECTRICITY,1120,10-Jan-18,122295,14.84,BRITISH GAS,BRI040
EFDC,YB110,SUPERVISION/MANAGEMENT SPECIAL,ELECTRICITY,1120,10-Jan-18,122295,107.34,BRITISH GAS,BRI040
EFDC,YB110,SUPERVISION/MANAGEMENT SPECIAL,ELECTRICITY,1120,10-Jan-18,122295,17.52,BRITISH GAS,BRI040
EFDC,YB110,SUPERVISION/MANAGEMENT SPECIAL,ELECTRICITY,1120,10-Jan-18,122295,88.03,BRITISH GAS,BRI040
EFDC,YB110,SUPERVISION/MANAGEMENT SPECIAL,ELECTRICITY,1120,10-Jan-18,122295,14.67,BRITISH GAS,BRI040
EFDC,YB110,SUPERVISION/MANAGEMENT SPECIAL,ELECTRICITY,1120,10-Jan-18,122295,14.36,BRITISH GAS,BRI040
EFDC,YB110,SUPERVISION/MANAGEMENT SPECIAL,ELECTRICITY,1120,10-Jan-18,122295,15.4,BRITISH GAS,BRI040
EFDC,YB110,SUPERVISION/MANAGEMENT SPECIAL,ELECTRICITY,1120,10-Jan-18,122295,13.43,BRITISH GAS,BRI040
EFDC,YB110,SUPERVISION/MANAGEMENT SPECIAL,ELECTRICITY,1120,10-Jan-18,122295,12.3,BRITISH GAS,BRI040
EFDC,YB110,SUPERVISION/MANAGEMENT SPECIAL,ELECTRICITY,1120,10-Jan-18,122295,12.84,BRITISH GAS,BRI040
EFDC,YB110,SUPERVISION/MANAGEMENT SPECIAL,ELECTRICITY,1120,10-Jan-18,122295,14,BRITISH GAS,BRI040
EFDC,YB110,SUPERVISION/MANAGEMENT SPECIAL,ELECTRICITY,1120,10-Jan-18,122295,22.46,BRITISH GAS,BRI040
EFDC,YB110,SUPERVISION/MANAGEMENT SPECIAL,ELECTRICITY,1120,10-Jan-18,122295,9.51,BRITISH GAS,BRI040
EFDC,YB110,SUPERVISION/MANAGEMENT SPECIAL,ELECTRICITY,1120,10-Jan-18,122295,17.89,BRITISH GAS,BRI040
EFDC,YB110,SUPERVISION/MANAGEMENT SPECIAL,ELECTRICITY,1120,10-Jan-18,122295,14.01,BRITISH GAS,BRI040
EFDC,YB110,SUPERVISION/MANAGEMENT SPECIAL,ELECTRICITY,1120,10-Jan-18,122295,18.97,BRITISH GAS,BRI040
EFDC,YB110,SUPERVISION/MANAGEMENT SPECIAL,ELECTRICITY,1120,10-Jan-18,122295,10.87,BRITISH GAS,BRI040
EFDC,YB110,SUPERVISION/MANAGEMENT SPECIAL,ELECTRICITY,1120,10-Jan-18,122295,18.16,BRITISH GAS,BRI040
EFDC,YB110,SUPERVISION/MANAGEMENT SPECIAL,ELECTRICITY,1120,10-Jan-18,122295,127,BRITISH GAS,BRI040
EFDC,YB110,SUPERVISION/MANAGEMENT SPECIAL,ELECTRICITY,1120,10-Jan-18,122295,12.69,BRITISH GAS,BRI040
EFDC,YB110,SUPERVISION/MANAGEMENT SPECIAL,ELECTRICITY,1120,10-Jan-18,122295,17.35,BRITISH GAS,BRI040
EFDC,YB110,SUPERVISION/MANAGEMENT SPECIAL,ELECTRICITY,1120,10-Jan-18,122295,31.32,BRITISH GAS,BRI040
EFDC,YB110,SUPERVISION/MANAGEMENT SPECIAL,ELECTRICITY,1120,10-Jan-18,122295,9.24,BRITISH GAS,BRI040
EFDC,YB110,SUPERVISION/MANAGEMENT SPECIAL,ELECTRICITY,1120,10-Jan-18,122295,384.81,BRITISH GAS,BRI040
EFDC,YB110,SUPERVISION/MANAGEMENT SPECIAL,ELECTRICITY,1120,10-Jan-18,122295,13.38,BRITISH GAS,BRI040
EFDC,YB110,SUPERVISION/MANAGEMENT SPECIAL,ELECTRICITY,1120,10-Jan-18,122295,14.05,BRITISH GAS,BRI040
EFDC,YB110,SUPERVISION/MANAGEMENT SPECIAL,ELECTRICITY,1120,10-Jan-18,122295,78.47,BRITISH GAS,BRI040
EFDC,YB110,SUPERVISION/MANAGEMENT SPECIAL,ELECTRICITY,1120,10-Jan-18,122295,10.83,BRITISH GAS,BRI040
EFDC,YB110,SUPERVISION/MANAGEMENT SPECIAL,ELECTRICITY,1120,10-Jan-18,122295,22.09,BRITISH GAS,BRI040
EFDC,YB110,SUPERVISION/MANAGEMENT SPECIAL,ELECTRICITY,1120,10-Jan-18,122295,48.18,BRITISH GAS,BRI040
EFDC,YB110,SUPERVISION/MANAGEMENT SPECIAL,ELECTRICITY,1120,10-Jan-18,122295,16.35,BRITISH GAS,BRI040
EFDC,YB110,SUPERVISION/MANAGEMENT SPECIAL,ELECTRICITY,1120,10-Jan-18,122295,9.51,BRITISH GAS,BRI040
EFDC,YB110,SUPERVISION/MANAGEMENT SPECIAL,ELECTRICITY,1120,10-Jan-18,122295,17.69,BRITISH GAS,BRI040
EFDC,YB110,SUPERVISION/MANAGEMENT SPECIAL,ELECTRICITY,1120,10-Jan-18,122295,43.3,BRITISH GAS,BRI040
EFDC,YB110,SUPERVISION/MANAGEMENT SPECIAL,ELECTRICITY,1120,10-Jan-18,122295,15.7,BRITISH GAS,BRI040
EFDC,YB110,SUPERVISION/MANAGEMENT SPECIAL,ELECTRICITY,1120,10-Jan-18,122295,15.77,BRITISH GAS,BRI040
EFDC,YB110,SUPERVISION/MANAGEMENT SPECIAL,ELECTRICITY,1120,10-Jan-18,122295,7.3,BRITISH GAS,BRI040
EFDC,YB110,SUPERVISION/MANAGEMENT SPECIAL,ELECTRICITY,1120,10-Jan-18,122295,7.28,BRITISH GAS,BRI040
EFDC,YB110,SUPERVISION/MANAGEMENT SPECIAL,ELECTRICITY,1120,10-Jan-18,122295,43.06,BRITISH GAS,BRI040
EFDC,YB110,SUPERVISION/MANAGEMENT SPECIAL,ELECTRICITY,1120,10-Jan-18,122295,24.46,BRITISH GAS,BRI040
EFDC,YB110,SUPERVISION/MANAGEMENT SPECIAL,ELECTRICITY,1120,10-Jan-18,122295,10.3,BRITISH GAS,BRI040
EFDC,YB140,SUPERVISION/MANAGEMENT SPECIAL,ELECTRICITY,1120,10-Jan-18,122295,22.48,BRITISH GAS,BRI040
EFDC,YB140,SUPERVISION/MANAGEMENT SPECIAL,ELECTRICITY,1120,10-Jan-18,122295,24.59,BRITISH GAS,BRI040
EFDC,YB140,SUPERVISION/MANAGEMENT SPECIAL,ELECTRICITY,1120,10-Jan-18,122295,9.02,BRITISH GAS,BRI040
EFDC,YB140,SUPERVISION/MANAGEMENT SPECIAL,ELECTRICITY,1120,10-Jan-18,122295,20.14,BRITISH GAS,BRI040
EFDC,YB140,SUPERVISION/MANAGEMENT SPECIAL,ELECTRICITY,1120,10-Jan-18,122295,35.47,BRITISH GAS,BRI040
EFDC,YB140,SUPERVISION/MANAGEMENT SPECIAL,ELECTRICITY,1120,10-Jan-18,122295,18.3,BRITISH GAS,BRI040
EFDC,YB140,SUPERVISION/MANAGEMENT SPECIAL,ELECTRICITY,1120,10-Jan-18,122295,15.33,BRITISH GAS,BRI040
EFDC,YB140,SUPERVISION/MANAGEMENT SPECIAL,ELECTRICITY,1120,10-Jan-18,122295,11.21,BRITISH GAS,BRI040
EFDC,YB140,SUPERVISION/MANAGEMENT SPECIAL,ELECTRICITY,1120,10-Jan-18,122295,16.35,BRITISH GAS,BRI040
EFDC,YB140,SUPERVISION/MANAGEMENT SPECIAL,ELECTRICITY,1120,10-Jan-18,122295,19.37,BRITISH GAS,BRI040
EFDC,YB140,SUPERVISION/MANAGEMENT SPECIAL,ELECTRICITY,1120,10-Jan-18,122295,12.88,BRITISH GAS,BRI040
EFDC,YB140,SUPERVISION/MANAGEMENT SPECIAL,ELECTRICITY,1120,10-Jan-18,122295,23.33,BRITISH GAS,BRI040
EFDC,YB140,SUPERVISION/MANAGEMENT SPECIAL,ELECTRICITY,1120,10-Jan-18,122295,20.74,BRITISH GAS,BRI040
EFDC,YB140,SUPERVISION/MANAGEMENT SPECIAL,ELECTRICITY,1120,10-Jan-18,122295,16.43,BRITISH GAS,BRI040
EFDC,YB140,SUPERVISION/MANAGEMENT SPECIAL,ELECTRICITY,1120,10-Jan-18,122295,7.51,BRITISH GAS,BRI040
EFDC,YB200,SUPERVISION/MANAGEMENT SPECIAL,ELECTRICITY,1120,10-Jan-18,122295,11.42,BRITISH GAS,BRI040
EFDC,YB300,SUPERVISION/MANAGEMENT SPECIAL,ELECTRICITY,1120,10-Jan-18,122295,37.6,BRITISH GAS,BRI040
EFDC,EH112,LAND DRAINAGE/SEWERAGE,OTHER MAINTENANCE,1050,10-Jan-18,122295,163.88,BRITISH GAS,BRI040
EFDC,YB110,SUPERVISION/MANAGEMENT SPECIAL,ELECTRICITY,1120,10-Jan-18,122295,16.73,BRITISH GAS,BRI040
EFDC,YB520,SUPERVISION/MANAGEMENT SPECIAL,ELECTRICITY,1120,10-Jan-18,122295,179.27,BRITISH GAS,BRI040
EFDC,YB520,SUPERVISION/MANAGEMENT SPECIAL,ELECTRICITY,1120,10-Jan-18,122295,148.35,BRITISH GAS,BRI040
EFDC,YB500,SUPERVISION/MANAGEMENT SPECIAL,ELECTRICITY,1120,10-Jan-18,122295,23.75,BRITISH GAS,BRI040
EFDC,YB500,SUPERVISION/MANAGEMENT SPECIAL,ELECTRICITY,1120,10-Jan-18,122295,7.97,BRITISH GAS,BRI040
EFDC,YB500,SUPERVISION/MANAGEMENT SPECIAL,ELECTRICITY,1120,10-Jan-18,122295,13.05,BRITISH GAS,BRI040
EFDC,YB500,SUPERVISION/MANAGEMENT SPECIAL,ELECTRICITY,1120,10-Jan-18,122295,43.62,BRITISH GAS,BRI040
EFDC,YB500,SUPERVISION/MANAGEMENT SPECIAL,ELECTRICITY,1120,10-Jan-18,122295,223.81,BRITISH GAS,BRI040
EFDC,YB500,SUPERVISION/MANAGEMENT SPECIAL,ELECTRICITY,1120,10-Jan-18,122295,33.8,BRITISH GAS,BRI040
EFDC,YB500,SUPERVISION/MANAGEMENT SPECIAL,ELECTRICITY,1120,10-Jan-18,122295,264.26,BRITISH GAS,BRI040
EFDC,YB500,SUPERVISION/MANAGEMENT SPECIAL,ELECTRICITY,1120,10-Jan-18,122295,7.79,BRITISH GAS,BRI040
EFDC,YB500,SUPERVISION/MANAGEMENT SPECIAL,ELECTRICITY,1120,10-Jan-18,122295,234.29,BRITISH GAS,BRI040
EFDC,YB500,SUPERVISION/MANAGEMENT SPECIAL,ELECTRICITY,1120,10-Jan-18,122295,368.28,BRITISH GAS,BRI040
EFDC,YB500,SUPERVISION/MANAGEMENT SPECIAL,ELECTRICITY,1120,10-Jan-18,122295,8.03,BRITISH GAS,BRI040
EFDC,YB500,SUPERVISION/MANAGEMENT SPECIAL,ELECTRICITY,1120,10-Jan-18,122295,7.76,BRITISH GAS,BRI040
EFDC,YB500,SUPERVISION/MANAGEMENT SPECIAL,ELECTRICITY,1120,10-Jan-18,122295,12.68,BRITISH GAS,BRI040
EFDC,YB500,SUPERVISION/MANAGEMENT SPECIAL,ELECTRICITY,1120,10-Jan-18,122295,16.85,BRITISH GAS,BRI040
EFDC,YB500,SUPERVISION/MANAGEMENT SPECIAL,ELECTRICITY,1120,10-Jan-18,122295,18.41,BRITISH GAS,BRI040
EFDC,YB500,SUPERVISION/MANAGEMENT SPECIAL,ELECTRICITY,1120,10-Jan-18,122295,17.85,BRITISH GAS,BRI040
EFDC,YB500,SUPERVISION/MANAGEMENT SPECIAL,ELECTRICITY,1120,10-Jan-18,122295,28.24,BRITISH GAS,BRI040
EFDC,YB500,SUPERVISION/MANAGEMENT SPECIAL,ELECTRICITY,1120,10-Jan-18,122295,54.18,BRITISH GAS,BRI040
EFDC,YB500,SUPERVISION/MANAGEMENT SPECIAL,ELECTRICITY,1120,10-Jan-18,122295,-257.22,BRITISH GAS,BRI040
EFDC,YB500,SUPERVISION/MANAGEMENT SPECIAL,ELECTRICITY,1120,10-Jan-18,122295,614.07,BRITISH GAS,BRI040
EFDC,YB500,SUPERVISION/MANAGEMENT SPECIAL,ELECTRICITY,1120,10-Jan-18,122295,9.02,BRITISH GAS,BRI040
EFDC,YB500,SUPERVISION/MANAGEMENT SPECIAL,ELECTRICITY,1120,10-Jan-18,122295,9.97,BRITISH GAS,BRI040
EFDC,YB500,SUPERVISION/MANAGEMENT SPECIAL,ELECTRICITY,1120,10-Jan-18,122295,39.73,BRITISH GAS,BRI040
EFDC,YB500,SUPERVISION/MANAGEMENT SPECIAL,ELECTRICITY,1120,10-Jan-18,122295,8.63,BRITISH GAS,BRI040
EFDC,YB500,SUPERVISION/MANAGEMENT SPECIAL,ELECTRICITY,1120,10-Jan-18,122295,13.23,BRITISH GAS,BRI040
EFDC,YB500,SUPERVISION/MANAGEMENT SPECIAL,ELECTRICITY,1120,10-Jan-18,122295,15.28,BRITISH GAS,BRI040
EFDC,YB500,SUPERVISION/MANAGEMENT SPECIAL,ELECTRICITY,1120,10-Jan-18,122295,192.02,BRITISH GAS,BRI040
EFDC,YB500,SUPERVISION/MANAGEMENT SPECIAL,ELECTRICITY,1120,10-Jan-18,122295,432,BRITISH GAS,BRI040
EFDC,YB500,SUPERVISION/MANAGEMENT SPECIAL,ELECTRICITY,1120,10-Jan-18,122295,339.68,BRITISH GAS,BRI040
EFDC,YB500,SUPERVISION/MANAGEMENT SPECIAL,ELECTRICITY,1120,10-Jan-18,122295,46.34,BRITISH GAS,BRI040
EFDC,YB110,SUPERVISION/MANAGEMENT SPECIAL,ELECTRICITY,1120,10-Jan-18,122295,58.52,BRITISH GAS,BRI040
EFDC,YB110,SUPERVISION/MANAGEMENT SPECIAL,ELECTRICITY,1120,10-Jan-18,122295,21.78,BRITISH GAS,BRI040
EFDC,YB110,SUPERVISION/MANAGEMENT SPECIAL,ELECTRICITY,1120,10-Jan-18,122295,8.83,BRITISH GAS,BRI040
EFDC,YB110,SUPERVISION/MANAGEMENT SPECIAL,ELECTRICITY,1120,10-Jan-18,122295,8.83,BRITISH GAS,BRI040
EFDC,YB110,SUPERVISION/MANAGEMENT SPECIAL,ELECTRICITY,1120,10-Jan-18,122295,12.77,BRITISH GAS,BRI040
EFDC,YB110,SUPERVISION/MANAGEMENT SPECIAL,ELECTRICITY,1120,10-Jan-18,122295,12.46,BRITISH GAS,BRI040
EFDC,YB110,SUPERVISION/MANAGEMENT SPECIAL,ELECTRICITY,1120,10-Jan-18,122295,11.56,BRITISH GAS,BRI040
EFDC,YB110,SUPERVISION/MANAGEMENT SPECIAL,ELECTRICITY,1120,10-Jan-18,122295,11.21,BRITISH GAS,BRI040
EFDC,YB110,SUPERVISION/MANAGEMENT SPECIAL,ELECTRICITY,1120,10-Jan-18,122295,12.88,BRITISH GAS,BRI040
EFDC,YB110,SUPERVISION/MANAGEMENT SPECIAL,ELECTRICITY,1120,10-Jan-18,122295,11.32,BRITISH GAS,BRI040
EFDC,YB110,SUPERVISION/MANAGEMENT SPECIAL,ELECTRICITY,1120,10-Jan-18,122295,11.32,BRITISH GAS,BRI040
EFDC,YB110,SUPERVISION/MANAGEMENT SPECIAL,ELECTRICITY,1120,10-Jan-18,122295,11.11,BRITISH GAS,BRI040
EFDC,YB110,SUPERVISION/MANAGEMENT SPECIAL,ELECTRICITY,1120,10-Jan-18,122295,12.5,BRITISH GAS,BRI040
EFDC,YB110,SUPERVISION/MANAGEMENT SPECIAL,ELECTRICITY,1120,10-Jan-18,122295,17.83,BRITISH GAS,BRI040
EFDC,YB110,SUPERVISION/MANAGEMENT SPECIAL,ELECTRICITY,1120,10-Jan-18,122295,11.21,BRITISH GAS,BRI040
EFDC,YB110,SUPERVISION/MANAGEMENT SPECIAL,ELECTRICITY,1120,10-Jan-18,122295,62.96,BRITISH GAS,BRI040
EFDC,YB110,SUPERVISION/MANAGEMENT SPECIAL,ELECTRICITY,1120,10-Jan-18,122295,17.38,BRITISH GAS,BRI040
EFDC,YB110,SUPERVISION/MANAGEMENT SPECIAL,ELECTRICITY,1120,10-Jan-18,122295,15.09,BRITISH GAS,BRI040
EFDC,YB110,SUPERVISION/MANAGEMENT SPECIAL,ELECTRICITY,1120,10-Jan-18,122295,14.57,BRITISH GAS,BRI040
EFDC,YB110,SUPERVISION/MANAGEMENT SPECIAL,ELECTRICITY,1120,10-Jan-18,122295,13.34,BRITISH GAS,BRI040
EFDC,YB110,SUPERVISION/MANAGEMENT SPECIAL,ELECTRICITY,1120,10-Jan-18,122295,13.24,BRITISH GAS,BRI040
EFDC,YB110,SUPERVISION/MANAGEMENT SPECIAL,ELECTRICITY,1120,10-Jan-18,122295,29.7,BRITISH GAS,BRI040
EFDC,YB110,SUPERVISION/MANAGEMENT SPECIAL,ELECTRICITY,1120,10-Jan-18,122295,20.85,BRITISH GAS,BRI040
EFDC,YB110,SUPERVISION/MANAGEMENT SPECIAL,ELECTRICITY,1120,10-Jan-18,122295,18.78,BRITISH GAS,BRI040
EFDC,YB110,SUPERVISION/MANAGEMENT SPECIAL,ELECTRICITY,1120,10-Jan-18,122295,19.49,BRITISH GAS,BRI040
EFDC,YB110,SUPERVISION/MANAGEMENT SPECIAL,ELECTRICITY,1120,10-Jan-18,122295,21.26,BRITISH GAS,BRI040
EFDC,YB110,SUPERVISION/MANAGEMENT SPECIAL,ELECTRICITY,1120,10-Jan-18,122295,6.88,BRITISH GAS,BRI040
EFDC,YB110,SUPERVISION/MANAGEMENT SPECIAL,ELECTRICITY,1120,10-Jan-18,122295,18.15,BRITISH GAS,BRI040
EFDC,YB110,SUPERVISION/MANAGEMENT SPECIAL,ELECTRICITY,1120,10-Jan-18,122295,19.3,BRITISH GAS,BRI040
EFDC,YB110,SUPERVISION/MANAGEMENT SPECIAL,ELECTRICITY,1120,10-Jan-18,122295,18.3,BRITISH GAS,BRI040
EFDC,YB110,SUPERVISION/MANAGEMENT SPECIAL,ELECTRICITY,1120,10-Jan-18,122295,21.89,BRITISH GAS,BRI040
EFDC,YB110,SUPERVISION/MANAGEMENT SPECIAL,ELECTRICITY,1120,10-Jan-18,122295,18.9,BRITISH GAS,BRI040
EFDC,YB110,SUPERVISION/MANAGEMENT SPECIAL,ELECTRICITY,1120,10-Jan-18,122295,12.39,BRITISH GAS,BRI040
EFDC,YB110,SUPERVISION/MANAGEMENT SPECIAL,ELECTRICITY,1120,10-Jan-18,122295,13.46,BRITISH GAS,BRI040
EFDC,YB110,SUPERVISION/MANAGEMENT SPECIAL,ELECTRICITY,1120,10-Jan-18,122295,146.68,BRITISH GAS,BRI040
EFDC,YB110,SUPERVISION/MANAGEMENT SPECIAL,ELECTRICITY,1120,10-Jan-18,122295,13.97,BRITISH GAS,BRI040
EFDC,YB110,SUPERVISION/MANAGEMENT SPECIAL,ELECTRICITY,1120,10-Jan-18,122295,15.37,BRITISH GAS,BRI040
EFDC,YB110,SUPERVISION/MANAGEMENT SPECIAL,ELECTRICITY,1120,10-Jan-18,122295,15.62,BRITISH GAS,BRI040
EFDC,YB110,SUPERVISION/MANAGEMENT SPECIAL,ELECTRICITY,1120,10-Jan-18,122295,19.74,BRITISH GAS,BRI040
EFDC,YB110,SUPERVISION/MANAGEMENT SPECIAL,ELECTRICITY,1120,10-Jan-18,122295,13.23,BRITISH GAS,BRI040
EFDC,YB110,SUPERVISION/MANAGEMENT SPECIAL,ELECTRICITY,1120,10-Jan-18,122295,18.74,BRITISH GAS,BRI040
EFDC,YB110,SUPERVISION/MANAGEMENT SPECIAL,ELECTRICITY,1120,10-Jan-18,122295,11.36,BRITISH GAS,BRI040
EFDC,YB110,SUPERVISION/MANAGEMENT SPECIAL,ELECTRICITY,1120,10-Jan-18,122295,47.78,BRITISH GAS,BRI040
EFDC,YB110,SUPERVISION/MANAGEMENT SPECIAL,ELECTRICITY,1120,10-Jan-18,122295,191.69,BRITISH GAS,BRI040
EFDC,YB110,SUPERVISION/MANAGEMENT SPECIAL,ELECTRICITY,1120,10-Jan-18,122295,14.71,BRITISH GAS,BRI040
EFDC,YB110,SUPERVISION/MANAGEMENT SPECIAL,ELECTRICITY,1120,10-Jan-18,122295,10.04,BRITISH GAS,BRI040
EFDC,YB110,SUPERVISION/MANAGEMENT SPECIAL,ELECTRICITY,1120,10-Jan-18,122295,16.65,BRITISH GAS,BRI040
EFDC,YB110,SUPERVISION/MANAGEMENT SPECIAL,ELECTRICITY,1120,10-Jan-18,122295,21.07,BRITISH GAS,BRI040
EFDC,YB110,SUPERVISION/MANAGEMENT SPECIAL,ELECTRICITY,1120,10-Jan-18,122295,13.53,BRITISH GAS,BRI040
EFDC,YB110,SUPERVISION/MANAGEMENT SPECIAL,ELECTRICITY,1120,10-Jan-18,122295,11.89,BRITISH GAS,BRI040
EFDC,YB110,SUPERVISION/MANAGEMENT SPECIAL,ELECTRICITY,1120,10-Jan-18,122295,23.93,BRITISH GAS,BRI040
EFDC,YB110,SUPERVISION/MANAGEMENT SPECIAL,ELECTRICITY,1120,10-Jan-18,122295,15.85,BRITISH GAS,BRI040
EFDC,YB110,SUPERVISION/MANAGEMENT SPECIAL,ELECTRICITY,1120,10-Jan-18,122295,13.6,BRITISH GAS,BRI040
EFDC,YB110,SUPERVISION/MANAGEMENT SPECIAL,ELECTRICITY,1120,10-Jan-18,122295,15.1,BRITISH GAS,BRI040
EFDC,YB110,SUPERVISION/MANAGEMENT SPECIAL,ELECTRICITY,1120,10-Jan-18,122295,15.23,BRITISH GAS,BRI040
EFDC,YB110,SUPERVISION/MANAGEMENT SPECIAL,ELECTRICITY,1120,10-Jan-18,122295,14.51,BRITISH GAS,BRI040
EFDC,YB110,SUPERVISION/MANAGEMENT SPECIAL,ELECTRICITY,1120,10-Jan-18,122295,15.34,BRITISH GAS,BRI040
EFDC,YB110,SUPERVISION/MANAGEMENT SPECIAL,ELECTRICITY,1120,10-Jan-18,122295,15.52,BRITISH GAS,BRI040
EFDC,YB110,SUPERVISION/MANAGEMENT SPECIAL,ELECTRICITY,1120,10-Jan-18,122295,12.51,BRITISH GAS,BRI040
EFDC,YB110,SUPERVISION/MANAGEMENT SPECIAL,ELECTRICITY,1120,10-Jan-18,122295,15.32,BRITISH GAS,BRI040
EFDC,YB110,SUPERVISION/MANAGEMENT SPECIAL,ELECTRICITY,1120,10-Jan-18,122295,13.47,BRITISH GAS,BRI040
EFDC,YB110,SUPERVISION/MANAGEMENT SPECIAL,ELECTRICITY,1120,10-Jan-18,122295,12.48,BRITISH GAS,BRI040
EFDC,YB110,SUPERVISION/MANAGEMENT SPECIAL,ELECTRICITY,1120,10-Jan-18,122295,11.92,BRITISH GAS,BRI040
EFDC,YB110,SUPERVISION/MANAGEMENT SPECIAL,ELECTRICITY,1120,10-Jan-18,122295,13.01,BRITISH GAS,BRI040
EFDC,YB110,SUPERVISION/MANAGEMENT SPECIAL,ELECTRICITY,1120,10-Jan-18,122295,13.39,BRITISH GAS,BRI040
EFDC,YB110,SUPERVISION/MANAGEMENT SPECIAL,ELECTRICITY,1120,10-Jan-18,122295,11.89,BRITISH GAS,BRI040
EFDC,YB110,SUPERVISION/MANAGEMENT SPECIAL,ELECTRICITY,1120,10-Jan-18,122295,13.17,BRITISH GAS,BRI040
EFDC,YB110,SUPERVISION/MANAGEMENT SPECIAL,ELECTRICITY,1120,10-Jan-18,122295,12.56,BRITISH GAS,BRI040
EFDC,YB110,SUPERVISION/MANAGEMENT SPECIAL,ELECTRICITY,1120,10-Jan-18,122295,13.04,BRITISH GAS,BRI040
EFDC,YB110,SUPERVISION/MANAGEMENT SPECIAL,ELECTRICITY,1120,10-Jan-18,122295,12.92,BRITISH GAS,BRI040
EFDC,YB110,SUPERVISION/MANAGEMENT SPECIAL,ELECTRICITY,1120,10-Jan-18,122295,13.64,BRITISH GAS,BRI040
EFDC,YB110,SUPERVISION/MANAGEMENT SPECIAL,ELECTRICITY,1120,10-Jan-18,122295,17.18,BRITISH GAS,BRI040
EFDC,YB110,SUPERVISION/MANAGEMENT SPECIAL,ELECTRICITY,1120,10-Jan-18,122295,9.28,BRITISH GAS,BRI040
EFDC,YB110,SUPERVISION/MANAGEMENT SPECIAL,ELECTRICITY,1120,10-Jan-18,122295,10.9,BRITISH GAS,BRI040
EFDC,YB110,SUPERVISION/MANAGEMENT SPECIAL,ELECTRICITY,1120,10-Jan-18,122295,10.89,BRITISH GAS,BRI040
EFDC,YB110,SUPERVISION/MANAGEMENT SPECIAL,ELECTRICITY,1120,10-Jan-18,122295,14.48,BRITISH GAS,BRI040
EFDC,YB110,SUPERVISION/MANAGEMENT SPECIAL,ELECTRICITY,1120,10-Jan-18,122295,20.12,BRITISH GAS,BRI040
EFDC,YB110,SUPERVISION/MANAGEMENT SPECIAL,ELECTRICITY,1120,10-Jan-18,122295,17.12,BRITISH GAS,BRI040
EFDC,YB110,SUPERVISION/MANAGEMENT SPECIAL,ELECTRICITY,1120,10-Jan-18,122295,30.46,BRITISH GAS,BRI040
EFDC,YB110,SUPERVISION/MANAGEMENT SPECIAL,ELECTRICITY,1120,10-Jan-18,122295,21.18,BRITISH GAS,BRI040
EFDC,YB110,SUPERVISION/MANAGEMENT SPECIAL,ELECTRICITY,1120,10-Jan-18,122295,34.27,BRITISH GAS,BRI040
EFDC,YB110,SUPERVISION/MANAGEMENT SPECIAL,ELECTRICITY,1120,10-Jan-18,122295,37.86,BRITISH GAS,BRI040
EFDC,YB110,SUPERVISION/MANAGEMENT SPECIAL,ELECTRICITY,1120,10-Jan-18,122295,23.02,BRITISH GAS,BRI040
EFDC,YB110,SUPERVISION/MANAGEMENT SPECIAL,ELECTRICITY,1120,10-Jan-18,122295,23.37,BRITISH GAS,BRI040
EFDC,YB110,SUPERVISION/MANAGEMENT SPECIAL,ELECTRICITY,1120,10-Jan-18,122295,26.61,BRITISH GAS,BRI040
EFDC,YB110,SUPERVISION/MANAGEMENT SPECIAL,ELECTRICITY,1120,10-Jan-18,122295,29.86,BRITISH GAS,BRI040
EFDC,YB110,SUPERVISION/MANAGEMENT SPECIAL,ELECTRICITY,1120,10-Jan-18,122295,13.73,BRITISH GAS,BRI040
EFDC,YB110,SUPERVISION/MANAGEMENT SPECIAL,ELECTRICITY,1120,10-Jan-18,122295,6.83,BRITISH GAS,BRI040
EFDC,YB110,SUPERVISION/MANAGEMENT SPECIAL,ELECTRICITY,1120,10-Jan-18,122295,26.65,BRITISH GAS,BRI040
EFDC,YB110,SUPERVISION/MANAGEMENT SPECIAL,ELECTRICITY,1120,10-Jan-18,122295,23.76,BRITISH GAS,BRI040
EFDC,YB110,SUPERVISION/MANAGEMENT SPECIAL,ELECTRICITY,1120,10-Jan-18,122295,15.78,BRITISH GAS,BRI040
EFDC,YB110,SUPERVISION/MANAGEMENT SPECIAL,ELECTRICITY,1120,10-Jan-18,122295,16.41,BRITISH GAS,BRI040
EFDC,YB110,SUPERVISION/MANAGEMENT SPECIAL,ELECTRICITY,1120,10-Jan-18,122295,106.47,BRITISH GAS,BRI040
EFDC,YB110,SUPERVISION/MANAGEMENT SPECIAL,ELECTRICITY,1120,10-Jan-18,122295,14.06,BRITISH GAS,BRI040
EFDC,YB110,SUPERVISION/MANAGEMENT SPECIAL,ELECTRICITY,1120,10-Jan-18,122295,30.13,BRITISH GAS,BRI040
EFDC,YB110,SUPERVISION/MANAGEMENT SPECIAL,ELECTRICITY,1120,10-Jan-18,122295,14.72,BRITISH GAS,BRI040
EFDC,YB110,SUPERVISION/MANAGEMENT SPECIAL,ELECTRICITY,1120,10-Jan-18,122295,13.41,BRITISH GAS,BRI040
EFDC,YB110,SUPERVISION/MANAGEMENT SPECIAL,ELECTRICITY,1120,10-Jan-18,122295,13.61,BRITISH GAS,BRI040
EFDC,YB110,SUPERVISION/MANAGEMENT SPECIAL,ELECTRICITY,1120,10-Jan-18,122295,30.3,BRITISH GAS,BRI040
EFDC,YB110,SUPERVISION/MANAGEMENT SPECIAL,ELECTRICITY,1120,10-Jan-18,122295,7.06,BRITISH GAS,BRI040
EFDC,YB110,SUPERVISION/MANAGEMENT SPECIAL,ELECTRICITY,1120,10-Jan-18,122295,28.05,BRITISH GAS,BRI040
EFDC,YB110,SUPERVISION/MANAGEMENT SPECIAL,ELECTRICITY,1120,10-Jan-18,122295,13.47,BRITISH GAS,BRI040
EFDC,YB110,SUPERVISION/MANAGEMENT SPECIAL,ELECTRICITY,1120,10-Jan-18,122295,14.8,BRITISH GAS,BRI040
EFDC,YB110,SUPERVISION/MANAGEMENT SPECIAL,ELECTRICITY,1120,10-Jan-18,122295,15.81,BRITISH GAS,BRI040
EFDC,YB110,SUPERVISION/MANAGEMENT SPECIAL,ELECTRICITY,1120,10-Jan-18,122295,20.75,BRITISH GAS,BRI040
EFDC,YB110,SUPERVISION/MANAGEMENT SPECIAL,ELECTRICITY,1120,10-Jan-18,122295,14.31,BRITISH GAS,BRI040
EFDC,YB110,SUPERVISION/MANAGEMENT SPECIAL,ELECTRICITY,1120,10-Jan-18,122295,14.19,BRITISH GAS,BRI040
EFDC,YB110,SUPERVISION/MANAGEMENT SPECIAL,ELECTRICITY,1120,10-Jan-18,122295,14.95,BRITISH GAS,BRI040
EFDC,YB110,SUPERVISION/MANAGEMENT SPECIAL,ELECTRICITY,1120,10-Jan-18,122295,16.15,BRITISH GAS,BRI040
EFDC,YB110,SUPERVISION/MANAGEMENT SPECIAL,ELECTRICITY,1120,10-Jan-18,122295,16.14,BRITISH GAS,BRI040
EFDC,YB110,SUPERVISION/MANAGEMENT SPECIAL,ELECTRICITY,1120,10-Jan-18,122295,20.42,BRITISH GAS,BRI040
EFDC,YB110,SUPERVISION/MANAGEMENT SPECIAL,ELECTRICITY,1120,10-Jan-18,122295,15.85,BRITISH GAS,BRI040
EFDC,YB110,SUPERVISION/MANAGEMENT SPECIAL,ELECTRICITY,1120,10-Jan-18,122295,12.43,BRITISH GAS,BRI040
EFDC,YB110,SUPERVISION/MANAGEMENT SPECIAL,ELECTRICITY,1120,10-Jan-18,122295,18.58,BRITISH GAS,BRI040
EFDC,YB110,SUPERVISION/MANAGEMENT SPECIAL,ELECTRICITY,1120,10-Jan-18,122295,15.32,BRITISH GAS,BRI040
EFDC,YB110,SUPERVISION/MANAGEMENT SPECIAL,ELECTRICITY,1120,10-Jan-18,122295,11,BRITISH GAS,BRI040
EFDC,YB110,SUPERVISION/MANAGEMENT SPECIAL,ELECTRICITY,1120,10-Jan-18,122295,14.3,BRITISH GAS,BRI040
EFDC,YB110,SUPERVISION/MANAGEMENT SPECIAL,ELECTRICITY,1120,10-Jan-18,122295,12.85,BRITISH GAS,BRI040
EFDC,YB110,SUPERVISION/MANAGEMENT SPECIAL,ELECTRICITY,1120,10-Jan-18,122295,11.21,BRITISH GAS,BRI040
EFDC,YB110,SUPERVISION/MANAGEMENT SPECIAL,ELECTRICITY,1120,10-Jan-18,122295,12.77,BRITISH GAS,BRI040
EFDC,YB110,SUPERVISION/MANAGEMENT SPECIAL,ELECTRICITY,1120,10-Jan-18,122295,12.04,BRITISH GAS,BRI040
EFDC,YB110,SUPERVISION/MANAGEMENT SPECIAL,ELECTRICITY,1120,10-Jan-18,122295,14.92,BRITISH GAS,BRI040
EFDC,YB110,SUPERVISION/MANAGEMENT SPECIAL,ELECTRICITY,1120,10-Jan-18,122295,2.92,BRITISH GAS,BRI040
EFDC,YB110,SUPERVISION/MANAGEMENT SPECIAL,ELECTRICITY,1120,10-Jan-18,122295,3.9,BRITISH GAS,BRI040
EFDC,YB110,SUPERVISION/MANAGEMENT SPECIAL,ELECTRICITY,1120,10-Jan-18,122295,6.82,BRITISH GAS,BRI040
EFDC,YB110,SUPERVISION/MANAGEMENT SPECIAL,ELECTRICITY,1120,10-Jan-18,122295,14.84,BRITISH GAS,BRI040
EFDC,YB110,SUPERVISION/MANAGEMENT SPECIAL,ELECTRICITY,1120,10-Jan-18,122295,3.24,BRITISH GAS,BRI040
EFDC,YB110,SUPERVISION/MANAGEMENT SPECIAL,ELECTRICITY,1120,10-Jan-18,122295,11.08,BRITISH GAS,BRI040
EFDC,YB110,SUPERVISION/MANAGEMENT SPECIAL,ELECTRICITY,1120,10-Jan-18,122295,11.43,BRITISH GAS,BRI040
EFDC,YB110,SUPERVISION/MANAGEMENT SPECIAL,ELECTRICITY,1120,10-Jan-18,122295,13.57,BRITISH GAS,BRI040
EFDC,YB110,SUPERVISION/MANAGEMENT SPECIAL,ELECTRICITY,1120,10-Jan-18,122295,8.06,BRITISH GAS,BRI040
EFDC,YB110,SUPERVISION/MANAGEMENT SPECIAL,ELECTRICITY,1120,10-Jan-18,122295,14.39,BRITISH GAS,BRI040
EFDC,YB110,SUPERVISION/MANAGEMENT SPECIAL,ELECTRICITY,1120,10-Jan-18,122295,9.79,BRITISH GAS,BRI040
EFDC,YB110,SUPERVISION/MANAGEMENT SPECIAL,ELECTRICITY,1120,10-Jan-18,122295,7.72,BRITISH GAS,BRI040
EFDC,YB110,SUPERVISION/MANAGEMENT SPECIAL,ELECTRICITY,1120,10-Jan-18,122295,7.84,BRITISH GAS,BRI040
EFDC,YB110,SUPERVISION/MANAGEMENT SPECIAL,ELECTRICITY,1120,10-Jan-18,122295,8.42,BRITISH GAS,BRI040
EFDC,YB110,SUPERVISION/MANAGEMENT SPECIAL,ELECTRICITY,1120,10-Jan-18,122295,15.02,BRITISH GAS,BRI040
EFDC,YB110,SUPERVISION/MANAGEMENT SPECIAL,ELECTRICITY,1120,10-Jan-18,122295,47.39,BRITISH GAS,BRI040
EFDC,YB110,SUPERVISION/MANAGEMENT SPECIAL,ELECTRICITY,1120,10-Jan-18,122295,15.62,BRITISH GAS,BRI040
EFDC,YB110,SUPERVISION/MANAGEMENT SPECIAL,ELECTRICITY,1120,10-Jan-18,122295,4.31,BRITISH GAS,BRI040
EFDC,YB110,SUPERVISION/MANAGEMENT SPECIAL,ELECTRICITY,1120,10-Jan-18,122295,6.09,BRITISH GAS,BRI040
EFDC,YB110,SUPERVISION/MANAGEMENT SPECIAL,ELECTRICITY,1120,10-Jan-18,122295,11.94,BRITISH GAS,BRI040
EFDC,YB110,SUPERVISION/MANAGEMENT SPECIAL,ELECTRICITY,1120,10-Jan-18,122295,10.14,BRITISH GAS,BRI040
EFDC,YB110,SUPERVISION/MANAGEMENT SPECIAL,ELECTRICITY,1120,10-Jan-18,122295,17.44,BRITISH GAS,BRI040
EFDC,YB110,SUPERVISION/MANAGEMENT SPECIAL,ELECTRICITY,1120,10-Jan-18,122295,18.34,BRITISH GAS,BRI040
EFDC,YB110,SUPERVISION/MANAGEMENT SPECIAL,ELECTRICITY,1120,10-Jan-18,122295,18.35,BRITISH GAS,BRI040
EFDC,YB110,SUPERVISION/MANAGEMENT SPECIAL,ELECTRICITY,1120,10-Jan-18,122295,9.96,BRITISH GAS,BRI040
EFDC,YB110,SUPERVISION/MANAGEMENT SPECIAL,ELECTRICITY,1120,10-Jan-18,122295,9.65,BRITISH GAS,BRI040
EFDC,YB110,SUPERVISION/MANAGEMENT SPECIAL,ELECTRICITY,1120,10-Jan-18,122295,11.18,BRITISH GAS,BRI040
